Business Unit Description,Expense Code,Expense Code Description,GL Date,Document No.,Invoice No.,Invoiced Value,Supplier Name,Address Book No.,Proclass Details Level 1,Thomson Classification Description
STREET FORCE BALANCE SHEET    ,776,4332101 INVOICES PAID         ,01/07/2011,3067471,2190,1936.00,JJS SCAFFOLDING                         ,500893,Construction,CONSTRUCTION CONTRACTORS - GEN
ECS MEALS                     ,8150,CONTRACT CATERING             ,01/07/2011,3066537,92023355,4162.00,CHARTWELLS                              ,321443,Catering,CATERERS                      
STREET FORCE BALANCE SHEET    ,776,4332101 INVOICES PAID         ,01/07/2011,3067475,41861,3300.00,W D M LIMITED                           ,493108,Construction,ENGINEERS - GENERAL           
STREET FORCE BALANCE SHEET    ,776,4332101 INVOICES PAID         ,01/07/2011,3067470,16929,550.00,HITACHI CAPITAL INVOICE FINANCE         ,430983,Financial Services,FACTORING SERVICES            
STREET FORCE BALANCE SHEET    ,776,4332101 INVOICES PAID         ,01/07/2011,3067474,2850050384,11337.98,VEOLIA ENVIRONMENTAL SERVICES           ,464059,Environmental Services,WASTE DISPOSAL SERVICES       
STREET FORCE BALANCE SHEET    ,776,4332101 INVOICES PAID         ,01/07/2011,3067476,7452,2102.10,GLEADLESS CIVIL ENGINEERING LTD         ,412782,Highway Equipment and Materials,PAVING & DRIVEWAY CONTRACTORS 
STREET FORCE BALANCE SHEET    ,776,4332101 INVOICES PAID         ,01/07/2011,3067477,7453,1291.30,GLEADLESS CIVIL ENGINEERING LTD         ,412782,Highway Equipment and Materials,PAVING & DRIVEWAY CONTRACTORS 
STREET FORCE BALANCE SHEET    ,776,4332101 INVOICES PAID         ,01/07/2011,3067478,7454,1291.30,GLEADLESS CIVIL ENGINEERING LTD         ,412782,Highway Equipment and Materials,PAVING & DRIVEWAY CONTRACTORS 
STREET FORCE BALANCE SHEET    ,776,4332101 INVOICES PAID         ,01/07/2011,3067479,7455,1994.30,GLEADLESS CIVIL ENGINEERING LTD         ,412782,Highway Equipment and Materials,PAVING & DRIVEWAY CONTRACTORS 
STREET FORCE BALANCE SHEET    ,776,4332101 INVOICES PAID         ,01/07/2011,3067481,7456,2102.10,GLEADLESS CIVIL ENGINEERING LTD         ,412782,Highway Equipment and Materials,PAVING & DRIVEWAY CONTRACTORS 
STREET FORCE BALANCE SHEET    ,776,4332101 INVOICES PAID         ,01/07/2011,3067482,7459,1029.55,GLEADLESS CIVIL ENGINEERING LTD         ,412782,Highway Equipment and Materials,PAVING & DRIVEWAY CONTRACTORS 
STREET FORCE BALANCE SHEET    ,776,4332101 INVOICES PAID         ,01/07/2011,3067483,A27                      ,924.00,CHRIS WHITE                             ,493334,Transport,ROAD HAULAGE SERVICES         
STREET FORCE BALANCE SHEET    ,776,4332101 INVOICES PAID         ,01/07/2011,3067485,MFG043                   ,7587.00,MFG CONSTRUCTION LTD                    ,526453,Construction,CONSTRUCTION CONTRACTORS - GEN
STREET FORCE BALANCE SHEET    ,776,4332101 INVOICES PAID         ,01/07/2011,3067487,YD20121106               ,1553.14,YEDL                                    ,349525,Utilities,ELECTRICITY COMPANIES         
STREET FORCE BALANCE SHEET    ,776,4332101 INVOICES PAID         ,01/07/2011,3067488,YD20121109               ,7235.55,YEDL                                    ,349525,Utilities,ELECTRICITY COMPANIES         
STREET FORCE BALANCE SHEET    ,776,4332101 INVOICES PAID         ,01/07/2011,3067489,YD20121115               ,2001.23,YEDL                                    ,349525,Utilities,ELECTRICITY COMPANIES         
STREET FORCE BALANCE SHEET    ,776,4332101 INVOICES PAID         ,01/07/2011,3067490,YD20121121               ,5370.84,YEDL                                    ,349525,Utilities,ELECTRICITY COMPANIES         
STREET FORCE BALANCE SHEET    ,776,4332101 INVOICES PAID         ,01/07/2011,3067491,1099275548,2489.67,KONICA MINOLTA BUSINESS SOLUTIONS EAST  ,206267,ICT,OFFICE EQUIPMENT MNFRS & DISTR
STREET FORCE BALANCE SHEET    ,776,4332101 INVOICES PAID         ,01/07/2011,3067495,YD20121131               ,1683.32,YEDL                                    ,349525,Utilities,ELECTRICITY COMPANIES         
STREET FORCE BALANCE SHEET    ,776,4332101 INVOICES PAID         ,01/07/2011,3067499,YD20121139               ,1025.78,YEDL                                    ,349525,Utilities,ELECTRICITY COMPANIES         
STREET FORCE BALANCE SHEET    ,776,4332101 INVOICES PAID         ,01/07/2011,3067504,1106/03966               ,892.00,HATHER PLANT HIRE LIMITED               ,493155,Vehicles Not Buses,PLANT & MACHINERY HIRE & LEASI
STREET FORCE BALANCE SHEET    ,776,4332101 INVOICES PAID         ,01/07/2011,3067508,18633,2346.42,ACIDISATION CO LIMITED                  ,414647,Environmental Services,WASTE DISPOSAL SERVICES       
STREET FORCE BALANCE SHEET    ,776,4332101 INVOICES PAID         ,01/07/2011,3067720,2440,1515.12,PREMIER POLYTUNNELS LTD                 ,554344,Horticultural,HORTICULTURAL EQUIPMENT MNFRS 
SCC BALANCE SHEET             ,2050,CONTRACTOR BONDS (HIGH CONS)  ,01/07/2011,3067973,ERS INVOICE52936         ,2500.00,E BARKER & SONS (HILLSBOROUGH) LTD      ,553428,Unclassified Non Trade,OUT OF SCOPE FOR SIC MONITORIN
SCC BALANCE SHEET             ,2050,CONTRACTOR BONDS (HIGH CONS)  ,01/07/2011,3067974,ERS INVOICE52937         ,1250.00,KIER SHEFFIELD LLP                      ,352687,Construction,PROPERTY MAINTENANCE & REPAIRS
PURCHASING ELDERLY            ,9190,EXTRA CARE HOUSING            ,01/07/2011,3067976,ERS INVOICE52939         ,126130.90,THE EXTRACARE CHARITABLE TRUST (SP)     ,486025,Unclassified Non Trade,CHARITIES & VOLUNTARY ORGANISA
COMMUNITY ASSEMBLY EAST       ,9120,OTHER AGENCIES                ,01/07/2011,3067982,ERS INVOICE52945         ,1000.00,ARBOURTHORNE & DISTRICT T & R A         ,302412,Unclassified Non Trade,CHARITIES & VOLUNTARY ORGANISA
COMMUNITY ASSEMBLY EAST       ,9120,OTHER AGENCIES                ,01/07/2011,3067983,ERS INVOICE52946         ,1000.00,ARBOURTHORNE COMMUNITY FORUM            ,508153,Unclassified Non Trade,CHARITIES & VOLUNTARY ORGANISA
COMMUNITY ASSEMBLY EAST       ,9120,OTHER AGENCIES                ,01/07/2011,3067984,ERS INVOICE52947         ,770.00,ARBOURTHORNE COMMUNITY FORUM            ,508153,Unclassified Non Trade,CHARITIES & VOLUNTARY ORGANISA
COMMUNITY ASSEMBLY EAST       ,9120,OTHER AGENCIES                ,01/07/2011,3067985,ERS INVOICE52948         ,2000.00,NORFOLK HERITAGE PARK CRECHE            ,304738,Unclassified Non Trade,COMMUNITY CENTRES             
COMMUNITY ASSEMBLY EAST       ,9120,OTHER AGENCIES                ,01/07/2011,3067987,ERS INVOICE52949         ,1000.00,NORFOLK PARK TENANTS                    ,527023,Unclassified Non Trade,COMMUNITY PROJECTS            
COMMUNITY ASSEMBLY EAST       ,9120,OTHER AGENCIES                ,01/07/2011,3067990,ERS INVOICE52951         ,650.00,THE ARBOURTHORNE CENTRE &  FORUM LTD    ,481051,Unclassified Non Trade,CHARITIES & VOLUNTARY ORGANISA
COMMUNITY ASSEMBLY EAST       ,9120,OTHER AGENCIES                ,01/07/2011,3067991,ERS INVOICE52952         ,1000.00,MAGNETIZED                              ,545612,Unclassified Non Trade,OUT OF SCOPE FOR SIC MONITORIN
COMMUNITY ASSEMBLY EAST       ,9120,OTHER AGENCIES                ,01/07/2011,3067995,ERS INVOICE52956         ,1104.00,THE ARBOURTHORNE CENTRE &  FORUM LTD    ,481051,Unclassified Non Trade,CHARITIES & VOLUNTARY ORGANISA
COMMUNITY ASSEMBLY SOUTH WEST ,8180,GRANTS                        ,01/07/2011,3067996,ERS INVOICE52957         ,500.00,BRADWAY ACTION GROUP                    ,504382,Unclassified Non Trade,COMMUNITY PROJECTS            
COMMUNITY ASSEMBLY SOUTH WEST ,8180,GRANTS                        ,01/07/2011,3067997,ERS INVOICE52958         ,1820.00,WESTMINSTER AT LODGE MOOR               ,381293,Unclassified Non Trade,"HOUSING ASSOCIATIONS, SOCIETIE"
COMMUNITY ASSEMBLY SOUTH WEST ,8180,GRANTS                        ,01/07/2011,3067998,ERS INVOICE52959         ,520.00,CROSSPOOL FESTIVAL COMMITTEE            ,539133,Unclassified Non Trade,COMMUNITY PROJECTS            
CLAIMS                        ,8740,MOTOR VEHICLE                 ,01/07/2011,3068002,ERS INVOICE52963         ,1500.00,REDACTED PERSONAL DATA,549302,Unclassified Non Trade,OUT OF SCOPE FOR SIC MONITORIN
CLAIMS                        ,8740,MOTOR VEHICLE                 ,01/07/2011,3068003,ERS INVOICE52964         ,1404.00,THOMPSONS CLIENT ACCOUNT                ,505870,Legal Services,SOLICITORS                    
EAST RIDING RHB LOANS HAL     ,1194,OTHER FEES                    ,01/07/2011,3068004,ERS INVOICE52965         ,7441.75,M FOREMAN BUILDERS LTD                  ,545852,Construction,BUILDERS                      
CLAIMS                        ,8740,MOTOR VEHICLE                 ,01/07/2011,3068005,ERS INVOICE52966         ,1202.30,ACROMAS INSURANCE COMPANY LTD           ,525211,Financial Services,INSURANCE - OTHER             
CONTRACT PROVIDER 2010/11     ,9120,OTHER AGENCIES                ,01/07/2011,3024844,40282,523.36,FLOWER ESTATE FAMILY ACTION (GROUP A/C) ,418616,Unclassified Non Trade,CHARITIES & VOLUNTARY ORGANISA
CONTRACT PROVIDER 2010/11     ,9120,OTHER AGENCIES                ,01/07/2011,3027961,INV001154                ,613.50,SHEFFIELD NORTH CITY LEARNING CENTRE    ,397078,Education,EDUCATIONAL SERVICES          
ECONOMIC                      ,8460,CONSULTANTS FEES              ,01/07/2011,3041028,81,3150.00,ROSE REGENERATION LIMITED               ,548701,Unclassified Non Trade,DEVELOPMENT AGENCIES          
CHILDRENS' FESTIVAL           ,8440,FEE EXPENSES                  ,01/07/2011,3058440,178,10150.00,SARA UNWIN LTD                          ,423448,Leisure Services,"EXHIBITION, EVENT & TRADE FAIR"
TRAINING                      ,5750,TRAINING EXPENDITURE          ,01/07/2011,3059539,40878,2000.00,SHEFFIELD MENTAL HEALTH C.A.B.          ,316902,Medical ,COUNSELLING & ADVICE SERVICES 
CAR PARKING MANAGEMENT        ,8210,LICENCES EXPENSES             ,01/07/2011,3062682,0900000081-025           ,6608.16,AIRWAVE SOLUTIONS LIMITED               ,504320,ICT,TELECOMMUNICATION SERVICES    
CONTRACT PROVIDER 2010/11     ,9120,OTHER AGENCIES                ,01/07/2011,3062867,FDP0266                  ,546.00,FAMILY DEVELOPMENT PROJECT              ,315505,Social Community Care,CHILDCARE SERVICES            
SOVEREIGN HOUSE               ,6080,CONTRACT CLEANING             ,01/07/2011,3063649,80213,1128.47,SERVICEMASTER (C.S.) SHEFFIELD          ,208319,Cleaning and Janitorial,CLEANING SERVICES - COMMERCIAL
GALVANISE                     ,8440,FEE EXPENSES                  ,01/07/2011,3063923,9828,3500.00,IRIS ASSOCIATES LIMITED                 ,504531,Facilities Management,DESIGNERS - GRAPHIC           
BUSINESS GROWTH               ,8460,CONSULTANTS FEES              ,01/07/2011,3064051,133,1650.00,RELOCATE2SHEFFIELD LTD                  ,360440,Transport,RELOCATION SERVICES           
YOUNG APPRENTICESHIPS         ,9120,OTHER AGENCIES                ,01/07/2011,3064698,SCH0588                  ,2987.84,DONCASTER ROTH & DIST (MOTOR TRADES)GTA ,204434,Human Resources,TRAINING CENTRES              
NLDC 2010/11                  ,9120,OTHER AGENCIES                ,01/07/2011,3064709,40714,3603.00,BROOMHALL FORUM                         ,479084,Unclassified Non Trade,CHARITIES & VOLUNTARY ORGANISA
NLDC 2010/11                  ,9120,OTHER AGENCIES                ,01/07/2011,3064712,581-12                   ,1549.00,TINSLEY FORUM                           ,303283,Unclassified Non Trade,CHARITIES & VOLUNTARY ORGANISA
VSP DELIVER                   ,9120,OTHER AGENCIES                ,01/07/2011,3064715,504,1150.00,DART                                    ,541974,Human Resources,TRAINING SERVICES             
PURCHASING ELDERLY            ,8490,TRANSLATN/SIGN/INTERPRET FEES ,01/07/2011,3064739,16017,500.75,LANGUAGE LINE LIMITED                   ,471915,Human Resources,TRANSLATORS & INTERPRETERS    
PROVIDER INNOVATION FUND      ,5850,ANNUAL FUNDING REQUIREMENT    ,01/07/2011,3065414,1148,700.00,REACH 4 THE STARS                       ,548479,Education,EDUCATIONAL TRAINING PROVIDERS
NEETS 16+                     ,8370,PRINTING                      ,01/07/2011,3065424,117,565.00,RENTON PRODUCTIONS                      ,545082,Unclassified Non Trade,OUT OF SCOPE FOR SIC MONITORIN
SHEFFIELD HOMES MANAGEMENT COS,8350,MISCELLANEOUS EXPENSES        ,01/07/2011,3065461,438,23521.00,SHEFFIELD HOMES LTD                     ,503889,Unclassified Non Trade,"HOUSING ASSOCIATIONS, SOCIETIE"
STATUTORY ADVERTISING         ,8420,ADVERTISING AND PUBL-INVOICED ,01/07/2011,3065597,7243638,673.19,SHEFFIELD NEWSPAPERS LTD                ,208391,Education,NEWSPAPER & MAGAZINE PUBLISHER
NEETS 16+                     ,9120,OTHER AGENCIES                ,01/07/2011,3065663,I0050409                 ,4155.00,THE SHEFFIELD COLLEGE                   ,297611,Unclassified Non Trade,SCHOOLS & COLLEGES - FURTHER E
YOUTH JUSTICE ISSP GRANT      ,7140,PUBLIC TRANSPORT COSTS        ,01/07/2011,3065699,SL0061191                ,1139.20,SYPTE                                   ,208757,Transport,BUS & COACH OPERATORS & STATIO
NEETS 16+                     ,9120,OTHER AGENCIES                ,01/07/2011,3065766,100098,5386.70,SPRINT TRAINING LTD                     ,375572,Leisure Services,MOTOR SPORTS                  
TRANSPORT FLEET MANAGEMENT    ,7010,ROUTINE VEHICLE REPAIR & MTCE ,01/07/2011,3066282,924825,768.00,GLASS'S INFORMATION SERVICES LTD        ,205153,Human Resources,INFORMATION SERVICES          
STANIFORTH ROAD WORKSHOPS     ,7010,ROUTINE VEHICLE REPAIR & MTCE ,01/07/2011,3066283,924831,2173.00,SNAP ON DIAGNOSTICS                     ,208518,Environmental Services,"TESTING, INSPECTION & CALIBRAT"
TRANSPORT FLEET MANAGEMENT    ,7010,ROUTINE VEHICLE REPAIR & MTCE ,01/07/2011,3066284,924823,810.00,AUTODATA LIMITED                        ,483201,Education,PUBLISHERS                    
LAND AND PROPERTY             ,8420,ADVERTISING AND PUBLICITY     ,01/07/2011,3066309,FPK076                   ,660.00,SG PROPERTY AGENTS T/A BAIRSTOW EVES    ,538311,Unclassified Trade,ESTATE AGENTS                 
DELEGATED BUDGETS             ,8470,LEGAL FEES                    ,01/07/2011,3066310,127009,690.00,MR A J LORD                             ,486218,Legal Services,BARRISTERS                    
CARE4YOU EQUIPMENT            ,8110,"CLOTHING, UNIFORM AND LAUNDRY ",01/07/2011,3066417,13020,2794.60,BLUE DIAMOND HYGIENE SUPPLIES           ,203403,Cleaning and Janitorial,TOWEL SUPPLY & WASHROOM SERVIC
ECS MEALS                     ,8130,CATERING SUPPLIES             ,01/07/2011,3066482,HHP(L)50A                ,4311.48,ACADEMY SERVICES (SHEFFIELD) LTD        ,438883,Financial Services,LEASING SERVICES              
ECS MEALS                     ,8150,CONTRACT CATERING             ,01/07/2011,3066482,HHP(L)50A                ,2018.89,ACADEMY SERVICES (SHEFFIELD) LTD        ,438883,Financial Services,LEASING SERVICES              
ECS MEALS                     ,8130,CATERING SUPPLIES             ,01/07/2011,3066488,GP53A                    ,542.49,ACADEMY SERVICES (SHEFFIELD) LTD        ,438883,Financial Services,LEASING SERVICES              
ECS MEALS                     ,8150,CONTRACT CATERING             ,01/07/2011,3066488,GP53A                    ,3083.49,ACADEMY SERVICES (SHEFFIELD) LTD        ,438883,Financial Services,LEASING SERVICES              
PARTNERSHIP & GRANT AID MH    ,9160,PARTNERSHIP CONTRACTS         ,01/07/2011,3066490,PCFQ2-11/12              ,15482.50,ST WILFRID'S DAY CENTRE SHEFFIELD       ,361331,Unclassified Non Trade,RELIGIOUS ORGANISATIONS       
LOCAL HOUSING COMPANY         ,1146,L&B PROFESSIONAL FEES         ,01/07/2011,3066513,57203810,25295.00,DLA PIPER UK LLP                        ,204413,Legal Services,SOLICITORS                    
ECS MEALS                     ,8130,CATERING SUPPLIES             ,01/07/2011,3066538,50000384/92024718        ,14995.77,CHARTWELLS                              ,321443,Catering,CATERERS                      
CORPORATE DEBT RECOVERY       ,8440,FEE EXPENSES                  ,01/07/2011,3066775,C86120                   ,2734.66,ROSSENDALES COLLECT LTD                 ,477656,Financial Services,BAILIFFS                      
CORPORATE DEBT RECOVERY       ,8440,FEE EXPENSES                  ,01/07/2011,3066781,C85792                   ,567.12,ROSSENDALES COLLECT LTD                 ,477656,Financial Services,BAILIFFS                      
KETTLEBRIDGE BIOMASS STORE    ,1161,NC&A MAIN CONTRACT            ,01/07/2011,3066785,110302,121920.00,FORTNUM & WOOLLEY LTD                   ,553832,Construction,BUILDING SERVICES             
ADMIN SUPPORT                 ,8390,STATIONERY                    ,01/07/2011,3066808,57668,699.00,MERCATOR COMPUTER SYSTEMS LTD.          ,206823,Facilities Management,MARKET RESEARCH               
ECS MEALS                     ,8130,CATERING SUPPLIES             ,01/07/2011,3067097,92025158/92026210        ,5495.92,CHARTWELLS                              ,321443,Catering,CATERERS                      
ECS MEALS                     ,8150,CONTRACT CATERING             ,01/07/2011,3067097,92025158/92026210        ,268444.76,CHARTWELLS                              ,321443,Catering,CATERERS                      
ECS MEALS                     ,8140,GROCERIES                     ,01/07/2011,3067100,92026211,44583.80,CHARTWELLS                              ,321443,Catering,CATERERS                      
ECS MEALS                     ,8130,CATERING SUPPLIES             ,01/07/2011,3067103,1904/90303498            ,4067.35,MITIE PFI LIMITED                       ,472380,Facilities Management,FACILITIES MANAGEMENT         
ECS MEALS                     ,8140,GROCERIES                     ,01/07/2011,3067103,1904/90303498            ,9871.53,MITIE PFI LIMITED                       ,472380,Facilities Management,FACILITIES MANAGEMENT         
ECS MEALS                     ,8130,CATERING SUPPLIES             ,01/07/2011,3067107,1904/90300511            ,4879.04,MITIE PFI LIMITED                       ,472380,Facilities Management,FACILITIES MANAGEMENT         
ECS MEALS                     ,8140,GROCERIES                     ,01/07/2011,3067107,1904/90300511            ,3798.27,MITIE PFI LIMITED                       ,472380,Facilities Management,FACILITIES MANAGEMENT         
ECS MEALS                     ,8130,CATERING SUPPLIES             ,01/07/2011,3067114,WF(L)48A                 ,3534.55,ACADEMY SERVICES (SHEFFIELD) LTD        ,438883,Financial Services,LEASING SERVICES              
ECS MEALS                     ,8140,GROCERIES                     ,01/07/2011,3067114,WF(L)48A                 ,10053.52,ACADEMY SERVICES (SHEFFIELD) LTD        ,438883,Financial Services,LEASING SERVICES              
QUANTITY SURVEYORS            ,8460,CONSULTANTS FEES              ,01/07/2011,3067117,L16000/SL578             ,2665.55,SLEATHS LTD                             ,320740,Consultancy,QUANTITY SURVEYORS            
PROJECT MANAGEMENT - SCHEME   ,8440,FEE EXPENSES                  ,01/07/2011,3067121,3958,500.00,ENVIRONMENTAL DRAINAGE SOLUTIONS LTD    ,373384,Environmental Services,DRAINAGE CONTRACTORS          
RESOURCES EFFICIENCY NORTH    ,8460,CONSULTANTS FEES              ,01/07/2011,3067124,DR/251                   ,7500.00,PARKINSON PROCUREMENT SOLUTIONS LTD     ,487014,Consultancy,BUSINESS & MANAGEMENT CONSULTA
ECS MEALS                     ,8130,CATERING SUPPLIES             ,01/07/2011,3067129,MH(L)48A                 ,3499.10,ACADEMY SERVICES (SHEFFIELD) LTD        ,438883,Financial Services,LEASING SERVICES              
ECS MEALS                     ,8140,GROCERIES                     ,01/07/2011,3067129,MH(L)48A                 ,18402.37,ACADEMY SERVICES (SHEFFIELD) LTD        ,438883,Financial Services,LEASING SERVICES              
BUSINESS SUPPORT              ,8410,GENERAL OFFICE EXPENSES       ,01/07/2011,3067161,CG0009                   ,500.00,CUPOLA CONTEMPORARY ART LTD             ,438394,Leisure Services,ART GALLERIES & FINE ART DEALE
REHOUSING SERVICES            ,8370,PRINTING                      ,01/07/2011,3067232,872107,1256.51,DESIGN & PRINT SERVICE (SHEFFIELD HOMES),387617,Facilities Management,PRINTERS                      
BUSINESS GROWTH               ,5610,AGENCY STAFF                  ,01/07/2011,3067308,GEN0977                  ,1385.37,DLA PIPER UK LLP                        ,204413,Legal Services,SOLICITORS                    
BUSINESS GROWTH               ,5610,AGENCY STAFF                  ,01/07/2011,3067309,GEN0976                  ,1385.37,DLA PIPER UK LLP                        ,204413,Legal Services,SOLICITORS                    
BURNGREAVE NEW DEAL           ,8440,FEE EXPENSES                  ,01/07/2011,3067312,6289,1297.00,ASK4 BUSINESS LTD                       ,519129,ICT,BROADBAND SERVICES            
IT CLIENT                     ,8620,COMPUTER MAINTENANCE          ,01/07/2011,3067318,871747,5869.20,CHIEF EXECUTIVE DIRECTORATE (HOMES)     ,402954,Unclassified Non Trade,LOCAL GOVERNMENT              
RESOURCES EFFICIENCY NORTH    ,9120,OTHER AGENCIES                ,01/07/2011,3067319,30002326,24258.94,EAST RIDING OF YORKSHIRE COUNTY COUNCIL ,343520,Unclassified Non Trade,LOCAL GOVERNMENT              
SHEFFIELD HOMES GENERAL       ,8380,PHOTOCOPYING                  ,01/07/2011,3067320,871484,10718.61,CHIEF EXECUTIVE DIRECTORATE (HOMES)     ,402954,Unclassified Non Trade,LOCAL GOVERNMENT              
 KEY STAGE 4 INCLUSION CENTRE ,5610,AGENCY STAFF - INVOICE        ,01/07/2011,3067336,3436665,613.50,CAPITA EDUCATION RESOURCING             ,203721,Human Resources,EMPLOYMENT & RECRUITMENT AGENC
 KEY STAGE 4 INCLUSION CENTRE ,5610,AGENCY STAFF - INVOICE        ,01/07/2011,3067338,3436667,914.00,CAPITA EDUCATION RESOURCING             ,203721,Human Resources,EMPLOYMENT & RECRUITMENT AGENC
CHILDRENS' FESTIVAL           ,8440,FEE EXPENSES                  ,01/07/2011,3067350,823,1300.00,MUSEUMS SHEFFIELD                       ,519265,Leisure Services,MUSEUMS                       
NEETS 16+                     ,9120,OTHER AGENCIES                ,01/07/2011,3067352,100100,525.60,SPRINT TRAINING LTD                     ,375572,Leisure Services,MOTOR SPORTS                  
CASTLE MARKETS                ,8550,OTHER SERVICES                ,01/07/2011,3067353,CN17717149               ,1774.35,OCS GROUP UK LTD TA CANNON HYGIENE LTD  ,203709,Cleaning and Janitorial,HYGIENE & CLEANSING SERVICES  
ECONOMIC                      ,8270,SUBSCRIPTIONS                 ,01/07/2011,3067373,8500299146,33750.00,MANCHESTER CITY COUNCIL                 ,311077,Unclassified Non Trade,LOCAL GOVERNMENT              
SHEFFIELD HOMES ACCOMODATION  ,6020,REPAIRS AND MTCE - PROGRAMMED ,01/07/2011,3067384,869878,4800.93,NEIGHBOURHOODS DIRECTORATE (HOMES)      ,402953,Unclassified Non Trade,LOCAL GOVERNMENT              
SHEFFIELD HOMES ACCOMODATION  ,6030,REPAIRS AND MTCE - RESPONSIVE ,01/07/2011,3067384,869878,879.60,NEIGHBOURHOODS DIRECTORATE (HOMES)      ,402953,Unclassified Non Trade,LOCAL GOVERNMENT              
YOUTH SERVICES                ,9120,OTHER AGENCIES                ,01/07/2011,3067392,64,11666.67,THE DUKE OF EDINBURGH'S                 ,387932,Unclassified Non Trade,YOUTH ORGANISATIONS & CENTRES 
CONTRACT                      ,8050,FURNITURE PURCHASES           ,01/07/2011,3067405,13503,768.00,PYRAMID CARPETS                         ,243612,Building Construction Materials,CARPETS & RUGS - RETAIL       
LOCALITY 2 ACCOMMODATION      ,5610,AGENCY STAFF                  ,01/07/2011,3067448,2100064235,18159.40,SHEFFIELD HEALTH AND SOCIAL CARE        ,336425,Unclassified Non Trade,HEALTH AUTHORITIES            
ITC                           ,8440,FEE EXPENSES                  ,01/07/2011,3067701,6509,1275.00,QUBA NEW MEDIA LTD                      ,321509,Facilities Management,WEB SITE DESIGN               
DERWENT HOUSE                 ,6210,RENTS                         ,01/07/2011,3067721,18661,45530.96,LONDON & REGIONAL (SHEFFIELD) LIMITED   ,325006,Unclassified Trade,LETTING AGENTS                
DERWENT HOUSE                 ,6270,SERVICE / PFI UNITARY CHARGE  ,01/07/2011,3067722,18801,56194.59,LONDON & REGIONAL (SHEFFIELD) LIMITED   ,325006,Unclassified Trade,LETTING AGENTS                
DERWENT HOUSE                 ,6210,RENTS                         ,01/07/2011,3067723,18800,155000.00,LONDON & REGIONAL (SHEFFIELD) LIMITED   ,325006,Unclassified Trade,LETTING AGENTS                
DERWENT HOUSE                 ,6270,SERVICE / PFI UNITARY CHARGE  ,01/07/2011,3067726,18662,17070.62,LONDON & REGIONAL (SHEFFIELD) LIMITED   ,325006,Unclassified Trade,LETTING AGENTS                
CAR PARKING MANAGEMENT        ,8540,SECURITY SERVICES             ,01/07/2011,3067729,C1104130                 ,924.12,COBALT TELEPHONE TECHNOLOGIES LTD       ,525994,Consultancy,COMPUTER SYSTEMS & SOFTWARE (D
CAR PARKING MANAGEMENT        ,8540,SECURITY SERVICES             ,01/07/2011,3067730,C1103130                 ,1286.63,COBALT TELEPHONE TECHNOLOGIES LTD       ,525994,Consultancy,COMPUTER SYSTEMS & SOFTWARE (D
CAR PARKING MANAGEMENT        ,8540,SECURITY SERVICES             ,01/07/2011,3067731,C1105130                 ,1036.62,COBALT TELEPHONE TECHNOLOGIES LTD       ,525994,Consultancy,COMPUTER SYSTEMS & SOFTWARE (D
CASTLE MARKETS                ,6030,REPAIRS AND MTCE - RESPONSIVE ,01/07/2011,3067753,18835,643.13,TFS SYSTEMS LIMITED                     ,208791,Facilities Management,FIRE ALARM SYSTEMS            
PERFORMANCE PLANNING          ,8330,TENANTS SATISFACTION SURVEY   ,01/07/2011,3067813,233,2080.00,VIEWPOINT RESEARCH COMMUNITY INTEREST CO,511698,Facilities Management,MARKET RESEARCH               
CONTRACT PROVIDER 2010/11     ,9120,OTHER AGENCIES                ,01/07/2011,3068039,40721,1200.00,SOUTHEY DEVELOPMENT FORUM               ,422647,Unclassified Non Trade,SCHOOLS - LOCAL AUTHORITY     
CAR PARKING MANAGEMENT        ,8370,PRINTING                      ,01/07/2011,3067437,1099348643,3079.33,KONICA MINOLTA BUSINESS SOLUTIONS EAST  ,206267,ICT,OFFICE EQUIPMENT MNFRS & DISTR
ACRES HILL                    ,6160,GAS                           ,01/07/2011,3067459,A3645613/S1862821        ,1500.26,BRITISH GAS BUSINESS                    ,370790,Utilities,GAS COMPANIES                 
CARBROOK HALL                 ,6160,GAS                           ,01/07/2011,3067461,A3645613/S1862978        ,1301.63,BRITISH GAS BUSINESS                    ,370790,Utilities,GAS COMPANIES                 
COMMUNITY LAW                 ,8020,EQUIPMENT LEASE/ RENTAL/ HIRE ,01/07/2011,3067463,1099410376,503.78,KONICA MINOLTA BUSINESS SOLUTIONS EAST  ,206267,ICT,OFFICE EQUIPMENT MNFRS & DISTR
CONSOLIDATED LOANS FUND       ,8780,DEBT MANAGEMENT EXPENSES      ,01/07/2011,3067728,738938,15525.00,SECTOR TREASURY SERVICES LTD            ,507875,Consultancy,INVESTMENT CONSULTANTS        
PURCHASING LEARNING DISABILITI,9180,OTHER CLIENT EXPENDITURE      ,01/07/2011,3067587,J382727 030711           ,649.68,REDACTED PERSONAL DATA,328070,Social Community Care,HOME CARE SERVICES            
PURCHASING LEARNING DISABILITI,9190,CITYWIDE SPOT                 ,01/07/2011,3067619,JNA0049                  ,624.00,BLISS SUPPORT LTD                       ,387589,Social Community Care,HOME CARE SERVICES            
PURCHASING LEARNING DISABILITI,9190,CITYWIDE SPOT                 ,01/07/2011,3067621,RFL0038                  ,618.00,BLISS SUPPORT LTD                       ,387589,Social Community Care,HOME CARE SERVICES            
PURCHASING LEARNING DISABILITI,9190,CITYWIDE SPOT                 ,01/07/2011,3067622,SI073                    ,1816.96,BLISS SUPPORT LTD                       ,387589,Social Community Care,HOME CARE SERVICES            
PHYSICAL DISABILITIES PURCHASI,9190,CITYWIDE SPOT                 ,01/07/2011,3067623,SMD0032                  ,3903.20,BLISS SUPPORT LTD                       ,387589,Social Community Care,HOME CARE SERVICES            
PURCHASING LEARNING DISABILITI,9190,CITYWIDE SPOT                 ,01/07/2011,3067624,3811,8580.24,NEW ERA HOUSING AUTHORITY               ,505956,Unclassified Non Trade,"HOUSING ASSOCIATIONS, SOCIETIE"
PURCHASING ELDERLY            ,9190,CITYWIDE SPOT                 ,01/07/2011,3067626,14271,1598.00,QUALITY HOMECARE (BARNSLEY) LTD         ,440841,Social Community Care,HOME CARE SERVICES            
PURCHASING ELDERLY            ,9190,CITYWIDE SPOT                 ,01/07/2011,3067632,18372,562.88,SUTTON STAFF AGENCY LTD.                ,301604,Human Resources,EMPLOYMENT & RECRUITMENT AGENC
PURCHASING ELDERLY            ,9190,CITYWIDE SPOT                 ,01/07/2011,3067637,18396,598.43,SUTTON STAFF AGENCY LTD.                ,301604,Human Resources,EMPLOYMENT & RECRUITMENT AGENC
PURCHASING LEARNING DISABILITI,9190,CITYWIDE SPOT                 ,01/07/2011,3067639,2100064455,4720.08,COMMUNITY HEALTH SHEFFIELD              ,361895,Unclassified Non Trade,HOSPITALS                     
PURCHASING LEARNING DISABILITI,9190,CITYWIDE SPOT                 ,01/07/2011,3067640,2100064456,2973.27,COMMUNITY HEALTH SHEFFIELD              ,361895,Unclassified Non Trade,HOSPITALS                     
PURCHASING LEARNING DISABILITI,9190,CITYWIDE SPOT                 ,01/07/2011,3067641,2100064458,613.44,COMMUNITY HEALTH SHEFFIELD              ,361895,Unclassified Non Trade,HOSPITALS                     
PURCHASING LEARNING DISABILITI,9190,CITYWIDE SPOT                 ,01/07/2011,3067642,2100064460,1840.32,COMMUNITY HEALTH SHEFFIELD              ,361895,Unclassified Non Trade,HOSPITALS                     
PURCHASING LEARNING DISABILITI,9190,CITYWIDE SPOT                 ,01/07/2011,3067643,2100064461,2223.72,COMMUNITY HEALTH SHEFFIELD              ,361895,Unclassified Non Trade,HOSPITALS                     
PURCHASING LEARNING DISABILITI,9190,CITYWIDE SPOT                 ,01/07/2011,3067644,2100064463,4294.08,COMMUNITY HEALTH SHEFFIELD              ,361895,Unclassified Non Trade,HOSPITALS                     
PURCHASING LEARNING DISABILITI,9190,CITYWIDE SPOT                 ,01/07/2011,3067649,2100064472,2220.84,COMMUNITY HEALTH SHEFFIELD              ,361895,Unclassified Non Trade,HOSPITALS                     
PURCHASING LEARNING DISABILITI,9190,CITYWIDE SPOT                 ,01/07/2011,3067651,2100064473,805.16,COMMUNITY HEALTH SHEFFIELD              ,361895,Unclassified Non Trade,HOSPITALS                     
PURCHASING ELDERLY            ,9190,CITYWIDE SPOT                 ,01/07/2011,3067652,2100064474,713.80,COMMUNITY HEALTH SHEFFIELD              ,361895,Unclassified Non Trade,HOSPITALS                     
PURCHASING LEARNING DISABILITI,9190,CITYWIDE SPOT                 ,01/07/2011,3067653,2100064475,1199.52,COMMUNITY HEALTH SHEFFIELD              ,361895,Unclassified Non Trade,HOSPITALS                     
PURCHASING LEARNING DISABILITI,9190,CITYWIDE SPOT                 ,01/07/2011,3067654,2100064476,2900.80,COMMUNITY HEALTH SHEFFIELD              ,361895,Unclassified Non Trade,HOSPITALS                     
PURCHASING LEARNING DISABILITI,9190,CITYWIDE SPOT                 ,01/07/2011,3067655,2100064477,876.64,COMMUNITY HEALTH SHEFFIELD              ,361895,Unclassified Non Trade,HOSPITALS                     
PURCHASING ELDERLY            ,9190,CITYWIDE SPOT                 ,01/07/2011,3067656,2100064478,2228.08,COMMUNITY HEALTH SHEFFIELD              ,361895,Unclassified Non Trade,HOSPITALS                     
PURCHASING LEARNING DISABILITI,9190,CITYWIDE SPOT                 ,01/07/2011,3067657,2100064479,2773.84,COMMUNITY HEALTH SHEFFIELD              ,361895,Unclassified Non Trade,HOSPITALS                     
PURCHASING LEARNING DISABILITI,9190,CITYWIDE SPOT                 ,01/07/2011,3067658,2100064480,3322.64,COMMUNITY HEALTH SHEFFIELD              ,361895,Unclassified Non Trade,HOSPITALS                     
PURCHASING ELDERLY            ,9190,CITYWIDE SPOT                 ,01/07/2011,3067659,2100064481,1215.20,COMMUNITY HEALTH SHEFFIELD              ,361895,Unclassified Non Trade,HOSPITALS                     
PURCHASING                    ,9230,CCSP OTHER                    ,01/07/2011,3067662,4711`                    ,1744.60,SYHA LTD                                ,385143,Unclassified Non Trade,"HOUSING ASSOCIATIONS, SOCIETIE"
PHYSICAL DISABILITIES PURCHASI,9190,CITYWIDE SPOT                 ,01/07/2011,3067663,ANC0045                  ,1405.20,BLISS SUPPORT LTD                       ,387589,Social Community Care,HOME CARE SERVICES            
PHYSICAL DISABILITIES PURCHASI,9190,CITYWIDE SPOT                 ,01/07/2011,3067664,CZ0064                   ,660.32,BLISS SUPPORT LTD                       ,387589,Social Community Care,HOME CARE SERVICES            
PURCHASING LEARNING DISABILITI,9190,CITYWIDE SPOT                 ,01/07/2011,3067665,DE094                    ,655.76,BLISS SUPPORT LTD                       ,387589,Social Community Care,HOME CARE SERVICES            
CORPORATE PARENTING           ,9360,FUNDS ALLOCATED TO SCHOOLS    ,01/07/2011,3067611,4975,500.00,HOLLYBANK TRUST                         ,337541,Unclassified Non Trade,SCHOOLS - SPECIAL             
CORPORATE PARENTING           ,9360,FUNDS ALLOCATED TO SCHOOLS    ,01/07/2011,3067613,90109,736.10,SWIIS (UK) LIMITED                      ,363934,Social Community Care,Adoption & Fostering
VS- LUNCH CLUB GRANT          ,8180,GRANTS                        ,01/07/2011,3067886,MPA20110701114 1         ,998.00,CROSSPOOL LUNCH CLUB                    ,321911,Unclassified Non Trade,CHARITIES & VOLUNTARY ORGANISA
VS- LUNCH CLUB GRANT          ,8180,GRANTS                        ,01/07/2011,3067887,MPA20110701114 10        ,1018.75,DARNALL LUNCH CLUB                      ,295216,Unclassified Non Trade,CHARITIES & VOLUNTARY ORGANISA
VS- LUNCH CLUB GRANT          ,8180,GRANTS                        ,01/07/2011,3067890,MPA20110701114 13        ,668.75,DUKE STREET COMMUNITY CENTRE            ,375030,Unclassified Non Trade,COMMUNITY CENTRES             
VS- LUNCH CLUB GRANT          ,8180,GRANTS                        ,01/07/2011,3067891,MPA20110701114 14        ,976.00,ST OSWALDS LUNCHEON CLUB                ,385325,Unclassified Non Trade,CHARITIES & VOLUNTARY ORGANISA
VS- LUNCH CLUB GRANT          ,8180,GRANTS                        ,01/07/2011,3067893,MPA20110701114 16        ,723.75,BIRLEY SPA MONDAY CLUB                  ,295206,Unclassified Non Trade,CHARITIES & VOLUNTARY ORGANISA
VS- LUNCH CLUB GRANT          ,8180,GRANTS                        ,01/07/2011,3067894,MPA20110701114 17        ,921.00,BIRLEY SPA WEDNESDAY CLUB               ,295210,Unclassified Non Trade,CHARITIES & VOLUNTARY ORGANISA
VS- LUNCH CLUB GRANT          ,8180,GRANTS                        ,01/07/2011,3067899,MPA20110701114 21        ,695.25,ST JOHN'S ABBEYDALE LUNCH CLUB          ,385324,Unclassified Non Trade,CHARITIES & VOLUNTARY ORGANISA
VS- LUNCH CLUB GRANT          ,8180,GRANTS                        ,01/07/2011,3067901,MPA20110701114 23        ,1108.75,THE SALVATION ARMY SHEFFIELD CASTLE     ,327783,Unclassified Non Trade,"HOUSING ASSOCIATIONS, SOCIETIE"
VS- LUNCH CLUB GRANT          ,8180,GRANTS                        ,01/07/2011,3067903,MPA20110701114 25        ,671.00,LOUND TOP LUNCH CLUB                    ,295188,Unclassified Non Trade,CHARITIES & VOLUNTARY ORGANISA
VS- LUNCH CLUB GRANT          ,8180,GRANTS                        ,01/07/2011,3067905,MPA20110701114 27        ,798.75,SHIREGREEN UNITED REFORMED CHURCH       ,295203,Unclassified Non Trade,PLACES OF WORSHIP             
VS- LUNCH CLUB GRANT          ,8180,GRANTS                        ,01/07/2011,3067906,MPA20110701114 28        ,545.25,ST TIMOTHY'S LUNCH CLUB                 ,295163,Unclassified Non Trade,CHARITIES & VOLUNTARY ORGANISA
VS- LUNCH CLUB GRANT          ,8180,GRANTS                        ,01/07/2011,3067907,MPA20110701114 29        ,878.25,MEERSBROOK PARK LUNCH CLUB              ,363027,Unclassified Non Trade,CHARITIES & VOLUNTARY ORGANISA
VS- LUNCH CLUB GRANT          ,8180,GRANTS                        ,01/07/2011,3067909,MPA20110701114 30        ,947.50,ST BARTHOLOMEWS LUNCH CLUB              ,384447,Unclassified Non Trade,CHARITIES & VOLUNTARY ORGANISA
VS- LUNCH CLUB GRANT          ,8180,GRANTS                        ,01/07/2011,3067911,MPA20110701114 32        ,874.25,ST MARY'S LUNCH CLUB                    ,322012,Unclassified Non Trade,CHARITIES & VOLUNTARY ORGANISA
VS- LUNCH CLUB GRANT          ,8180,GRANTS                        ,01/07/2011,3067912,MPA20110701114 33        ,1452.75,ST MARY'S HANDSWORTH LUNCH CLUB         ,300780,Unclassified Non Trade,CHARITIES & VOLUNTARY ORGANISA
VS- LUNCH CLUB GRANT          ,8180,GRANTS                        ,01/07/2011,3067913,MPA20110701114 34        ,730.75,TINSLEY COMMUNITY CENTRE LUNCH CLUB     ,297105,Unclassified Non Trade,CHARITIES & VOLUNTARY ORGANISA
VS- LUNCH CLUB GRANT          ,8180,GRANTS                        ,01/07/2011,3067914,MPA20110701114 35        ,827.75,WILLIAM TEMPLE LUNCH CLUB               ,299806,Unclassified Non Trade,CHARITIES & VOLUNTARY ORGANISA
VS- LUNCH CLUB GRANT          ,8180,GRANTS                        ,01/07/2011,3067920,MPA20110701114 40        ,1029.75,DIOCESE OF HALLAM                       ,351301,Unclassified Non Trade,RELIGIOUS ORGANISATIONS       
VS- LUNCH CLUB GRANT          ,8180,GRANTS                        ,01/07/2011,3067923,MPA20110701114 43        ,1503.50,FRECHEVILLE PARISH DAY CENTRE           ,348612,Unclassified Non Trade,LOCAL GOVERNMENT              
VS- LUNCH CLUB GRANT          ,8180,GRANTS                        ,01/07/2011,3067928,MPA20110701114 48        ,780.75,LONGLEY LUNCH CLUB                      ,506517,Unclassified Non Trade,CHARITIES & VOLUNTARY ORGANISA
VS- LUNCH CLUB GRANT          ,8180,GRANTS                        ,01/07/2011,3067929,MPA20110701114 49        ,636.75,WESLEY HALL LUNCH CLUB                  ,511866,Unclassified Non Trade,CHARITIES & VOLUNTARY ORGANISA
VS- LUNCH CLUB GRANT          ,8180,GRANTS                        ,01/07/2011,3067931,MPA20110701114 50        ,988.00,MOSBOROUGH LUNCH & SOCIAL CLUB          ,510333,Leisure Services,"CLUBS & ASSOCIATIONS - SOCIAL,"
VS- LUNCH CLUB GRANT          ,8180,GRANTS                        ,01/07/2011,3067933,MPA20110701114 52        ,685.25,THE THURSDAY CLUB                       ,451641,Unclassified Non Trade,CHARITIES & VOLUNTARY ORGANISA
VS- LUNCH CLUB GRANT          ,8180,GRANTS                        ,01/07/2011,3067935,MPA20110701114 54        ,638.25,MADINA ASIAN ELDERLY WOMEN'S LUNCH CLUB ,549528,Unclassified Non Trade,CHARITIES & VOLUNTARY ORGANISA
VS- LUNCH CLUB GRANT          ,8180,GRANTS                        ,01/07/2011,3067936,MPA20110701114 55        ,590.00,MADINA ELDERLY DAY CARE CENTRE (MEN'S LU,549532,Unclassified Non Trade,CHARITIES & VOLUNTARY ORGANISA
VS- LUNCH CLUB GRANT          ,8180,GRANTS                        ,01/07/2011,3067939,MPA20110701114 8         ,833.25,GREYSTONES LUNCH CLUB                   ,295226,Unclassified Non Trade,CHARITIES & VOLUNTARY ORGANISA
PURCHASING ELDERLY            ,9200,CONTINUING RESIDENTIAL CARE   ,01/07/2011,3067588,J382803 240711           ,23080.00,BELMONT HOUSE NURSING HOME              ,361754,Social Community Care,RESIDENTIAL CARE HOMES        
PURCHASING ELDERLY            ,9210,CONTINUING NURSING CARE       ,01/07/2011,3067588,J382803 240711           ,7944.00,BELMONT HOUSE NURSING HOME              ,361754,Social Community Care,RESIDENTIAL CARE HOMES        
PURCHASING ELDERLY            ,9200,CONTINUING RESIDENTIAL CARE   ,01/07/2011,3067589,J382814 240711           ,36596.00,NIGHTINGALES RES.HOME                   ,361897,Social Community Care,RESIDENTIAL CARE HOMES        
PURCHASING LEARNING DISABILITI,9200,CONTINUING RESIDENTIAL CARE   ,01/07/2011,3067590,J382821 240711           ,2172.76,CARE SHANGTON                           ,362004,Social Community Care,DISABILITY & SPECIAL NEEDS - S
PURCHASING ELDERLY            ,9200,CONTINUING RESIDENTIAL CARE   ,01/07/2011,3067591,J382852 240711           ,1311.36,NETHERMORE CARE HOME (PREVIOUSLY KILLAMA,361936,Social Community Care,REST & RETIREMENT HOMES       
PURCHASING ELDERLY            ,9210,CONTINUING NURSING CARE       ,01/07/2011,3067592,J384752 240711           ,6587.00,MIMOSA HEALTHCARE LIMITED               ,362253,Social Community Care,RESIDENTIAL CARE HOMES        
PURCHASING ELDERLY            ,9200,CONTINUING RESIDENTIAL CARE   ,01/07/2011,3067593,J384753 240711           ,3028.57,WOODLANDS LODGE                         ,361818,Social Community Care,RESIDENTIAL CARE HOMES        
PURCHASING ELDERLY            ,9200,CONTINUING RESIDENTIAL CARE   ,01/07/2011,3067594,J384754 240711           ,10554.57,WOODBANK HOUSE                          ,361780,Social Community Care,REST & RETIREMENT HOMES       
PURCHASING ELDERLY            ,9200,CONTINUING RESIDENTIAL CARE   ,01/07/2011,3067595,J384756 240711           ,4664.00,NORTH HILL RESIDENTIAL HOME             ,362254,Social Community Care,RESIDENTIAL CARE HOMES        
PURCHASING ELDERLY            ,9200,CONTINUING RESIDENTIAL CARE   ,01/07/2011,3067596,J374218 260611           ,1311.36,NETHERMORE CARE HOME (PREVIOUSLY KILLAMA,361936,Social Community Care,REST & RETIREMENT HOMES       
PURCHASING ELDERLY            ,9200,SHORT TERM RESIDENTIAL CARE   ,01/07/2011,3067599,J384746 260611           ,2173.00,NEWFIELD NURSING HOME                   ,361980,Social Community Care,NURSING HOMES                 
PHYSICAL DISABILITIES PURCHASI,9200,SHORT TERM RESIDENTIAL CARE   ,01/07/2011,3067600,J384747 260611           ,676.00,NORTHFIELD NURSING HOME                 ,361770,Social Community Care,NURSING HOMES                 
UASC/ASYLUM - LEAVING CARE    ,6210,RENTS                         ,01/07/2011,3067681,1112LNW-006              ,895.50,CATCH 22                                ,508722,Unclassified Non Trade,CHARITIES & VOLUNTARY ORGANISA
UASC/ASYLUM - LEAVING CARE    ,6210,RENTS                         ,01/07/2011,3067695,J00010908/35             ,1376.00,PHOENIX SUPPORTED HOUSING               ,493418,Social Community Care,HOME SUPPORT SERVICES         
IN HOUSE FOSTER PLACEMENT     ,9270,IN-HOUSE FOSTERING            ,04/07/2011,3068270,100069 20110701 31250    ,1351.86,REDACTED PERSONAL DATA,333449,Social Community Care,ADOPTION & FOSTERING          
ADOPTION SUPPORT              ,9270,ADOPTION ALLOWANCES           ,04/07/2011,3068272,146973 20110701 31250    ,714.00,REDACTED PERSONAL DATA,443421,Social Community Care,ADOPTION & FOSTERING          
IN HOUSE FOSTER PLACEMENT     ,9270,IN-HOUSE FOSTERING            ,04/07/2011,3068273,147484 20110701 31250    ,598.00,REDACTED PERSONAL DATA,434175,Social Community Care,ADOPTION & FOSTERING          
IN HOUSE FOSTER PLACEMENT     ,9270,IN-HOUSE FOSTERING            ,04/07/2011,3068274,147500 20110701 31250    ,825.43,REDACTED PERSONAL DATA,400934,Social Community Care,ADOPTION & FOSTERING          
IN HOUSE FOSTER PLACEMENT     ,9270,IN-HOUSE FOSTERING            ,04/07/2011,3068275,147787 20110701 31250    ,1058.00,REDACTED PERSONAL DATA,435614,Social Community Care,ADOPTION & FOSTERING          
IN HOUSE FOSTER PLACEMENT     ,9270,IN-HOUSE FOSTERING            ,04/07/2011,3068280,149394 20110701 31250    ,1214.75,REDACTED PERSONAL DATA,453957,Social Community Care,ADOPTION & FOSTERING          
IN HOUSE FOSTER PLACEMENT     ,9270,IN-HOUSE FOSTERING            ,04/07/2011,3068281,149405 20110701 31250    ,1244.00,REDACTED PERSONAL DATA,408920,Social Community Care,ADOPTION & FOSTERING          
IN HOUSE FOSTER PLACEMENT     ,9270,IN-HOUSE FOSTERING            ,04/07/2011,3068286,151365 20110701 31250    ,996.00,REDACTED PERSONAL DATA,442473,Social Community Care,ADOPTION & FOSTERING          
IN HOUSE FOSTER PLACEMENT     ,9270,IN-HOUSE FOSTERING            ,04/07/2011,3068291,156226 20110701 31250    ,622.00,REDACTED PERSONAL DATA,549255,Social Community Care,ADOPTION & FOSTERING          
IN HOUSE FOSTER PLACEMENT     ,9270,IN-HOUSE FOSTERING            ,04/07/2011,3068303,16180 20110701 31250     ,996.00,REDACTED PERSONAL DATA,333718,Social Community Care,ADOPTION & FOSTERING          
IN HOUSE FOSTER PLACEMENT     ,9270,IN-HOUSE FOSTERING            ,04/07/2011,3068305,161854 20110701 31250    ,2464.00,REDACTED PERSONAL DATA,502396,Social Community Care,ADOPTION & FOSTERING          
ADOPTION ALLOWANCES           ,9270,ADOPTION ALLOWANCES           ,04/07/2011,3068313,162849 20110701 31250    ,546.74,REDACTED PERSONAL DATA,383481,Social Community Care,ADOPTION & FOSTERING          
IN HOUSE FOSTER PLACEMENT     ,9270,IN-HOUSE FOSTERING            ,04/07/2011,3068325,167097 20110701 31250    ,896.00,REDACTED PERSONAL DATA,424791,Social Community Care,ADOPTION & FOSTERING          
RESIDENCE ORDERS              ,9270,RESIDENCE ORDERS              ,04/07/2011,3068326,104921 20110701 31250    ,615.30,REDACTED PERSONAL DATA,550266,Unclassified Non Trade,OUT OF SCOPE FOR SIC MONITORIN
IN HOUSE FOSTER PLACEMENT     ,9270,IN-HOUSE FOSTERING            ,04/07/2011,3068327,16889 20110701 31250     ,628.00,REDACTED PERSONAL DATA,368064,Social Community Care,ADOPTION & FOSTERING          
ADOPTION ALLOWANCES           ,9270,ADOPTION ALLOWANCES           ,04/07/2011,3068347,179524 20110701 31250    ,568.78,REDACTED PERSONAL DATA,338804,Social Community Care,ADOPTION & FOSTERING          
IN HOUSE FOSTER PLACEMENT     ,9270,IN-HOUSE FOSTERING            ,04/07/2011,3068350,179693 20110701 31250    ,1592.27,REDACTED PERSONAL DATA,521983,Social Community Care,ADOPTION & FOSTERING          
IN HOUSE FOSTER PLACEMENT     ,9270,IN-HOUSE FOSTERING            ,04/07/2011,3068363,18403 20110701 31250     ,830.72,REDACTED PERSONAL DATA,333624,Social Community Care,ADOPTION & FOSTERING          
RESIDENCE ORDERS              ,9270,RESIDENCE ORDERS              ,04/07/2011,3068366,184267 20110701 31250    ,513.96,REDACTED PERSONAL DATA,455207,Social Community Care,ADOPTION & FOSTERING          
ADOPTION ALLOWANCES           ,9270,ADOPTION ALLOWANCES           ,04/07/2011,3068368,184782 20110701 31250    ,568.78,REDACTED PERSONAL DATA,373269,Social Community Care,ADOPTION & FOSTERING          
IN HOUSE FOSTER PLACEMENT     ,9270,IN-HOUSE FOSTERING            ,04/07/2011,3068369,185557 20110701 31250    ,1020.00,REDACTED PERSONAL DATA,462682,Social Community Care,ADOPTION & FOSTERING          
IN HOUSE FOSTER PLACEMENT     ,9270,IN-HOUSE FOSTERING            ,04/07/2011,3068378,187984 20110701 31250    ,660.00,REDACTED PERSONAL DATA,467299,Social Community Care,ADOPTION & FOSTERING          
IN HOUSE FOSTER PLACEMENT     ,9270,IN-HOUSE FOSTERING            ,04/07/2011,3068380,188969 20110701 31250    ,622.00,REDACTED PERSONAL DATA,467300,Social Community Care,ADOPTION & FOSTERING          
IN HOUSE FOSTER PLACEMENT     ,9270,IN-HOUSE FOSTERING            ,04/07/2011,3068381,100191 20110701 31250    ,598.00,REDACTED PERSONAL DATA,332848,Social Community Care,ADOPTION & FOSTERING          
IN HOUSE FOSTER PLACEMENT     ,9270,IN-HOUSE FOSTERING            ,04/07/2011,3068384,189523 20110701 31250    ,830.72,REDACTED PERSONAL DATA,464101,Social Community Care,ADOPTION & FOSTERING          
SPECIAL GUARDIANSHIP          ,9270,RESIDENCE ORDERS              ,04/07/2011,3068388,191065 20110701 31250    ,592.52,REDACTED PERSONAL DATA,444008,Social Community Care,ADOPTION & FOSTERING          
SPECIAL GUARDIANSHIP          ,9270,RESIDENCE ORDERS              ,04/07/2011,3068391,191801 20110701 31250    ,1439.20,REDACTED PERSONAL DATA,492572,Social Community Care,ADOPTION & FOSTERING          
IN HOUSE FOSTER PLACEMENT     ,9270,IN-HOUSE FOSTERING            ,04/07/2011,3068392,191832 20110701 31250    ,1008.04,REDACTED PERSONAL DATA,473384,Social Community Care,ADOPTION & FOSTERING          
IN HOUSE FOSTER PLACEMENT     ,9270,IN-HOUSE FOSTERING            ,04/07/2011,3068394,19266 20110701 31250     ,776.00,REDACTED PERSONAL DATA,332852,Social Community Care,ADOPTION & FOSTERING          
IN HOUSE FOSTER PLACEMENT     ,9270,IN-HOUSE FOSTERING            ,04/07/2011,3068395,193350 20110701 31250    ,622.00,REDACTED PERSONAL DATA,471003,Social Community Care,ADOPTION & FOSTERING          
IN HOUSE FOSTER PLACEMENT     ,9270,IN-HOUSE FOSTERING            ,04/07/2011,3068403,194407 20110701 31250    ,576.00,REDACTED PERSONAL DATA,502500,Social Community Care,ADOPTION & FOSTERING          
ADOPTION ALLOWANCES           ,9270,ADOPTION ALLOWANCES           ,04/07/2011,3068410,195074 20110701 31250    ,662.98,REDACTED PERSONAL DATA,333341,Social Community Care,ADOPTION & FOSTERING          
ADOPTION ALLOWANCES           ,9270,ADOPTION ALLOWANCES           ,04/07/2011,3068411,195134 20110701 31250    ,718.98,REDACTED PERSONAL DATA,332998,Social Community Care,ADOPTION & FOSTERING          
IN HOUSE FOSTER PLACEMENT     ,9270,IN-HOUSE FOSTERING            ,04/07/2011,3068413,195731 20110701 31250    ,996.00,REDACTED PERSONAL DATA,509843,Social Community Care,ADOPTION & FOSTERING          
SPECIAL GUARDIANSHIP          ,9270,RESIDENCE ORDERS              ,04/07/2011,3068414,19623 20110701 31250     ,508.18,REDACTED PERSONAL DATA,333147,Social Community Care,ADOPTION & FOSTERING          
IN HOUSE FOSTER PLACEMENT     ,9270,IN-HOUSE FOSTERING            ,04/07/2011,3068414,19623 20110701 31250     ,1910.00,REDACTED PERSONAL DATA,333147,Social Community Care,ADOPTION & FOSTERING          
IN HOUSE FOSTER PLACEMENT     ,9270,IN-HOUSE FOSTERING            ,04/07/2011,3068417,196657 20110701 31250    ,528.00,REDACTED PERSONAL DATA,537569,Unclassified Non Trade,OUT OF SCOPE FOR SIC MONITORIN
IN HOUSE FOSTER PLACEMENT     ,9270,IN-HOUSE FOSTERING            ,04/07/2011,3068420,197337 20110701 31250    ,880.00,REDACTED PERSONAL DATA,483157,Social Community Care,ADOPTION & FOSTERING          
FOSTERING RECHARGE SUSPENSE   ,9270,IN-HOUSE FOSTERING            ,04/07/2011,3068422,19759 20110701 31250     ,780.50,REDACTED PERSONAL DATA,529612,Social Community Care,ADOPTION & FOSTERING          
IN HOUSE FOSTER PLACEMENT     ,9270,IN-HOUSE FOSTERING            ,04/07/2011,3068430,20032 20110701 31250     ,918.30,REDACTED PERSONAL DATA,333731,Social Community Care,ADOPTION & FOSTERING          
IN HOUSE FOSTER PLACEMENT     ,9270,IN-HOUSE FOSTERING            ,04/07/2011,3068431,202495 20110701 31250    ,680.00,REDACTED PERSONAL DATA,489499,Social Community Care,ADOPTION & FOSTERING          
IN HOUSE FOSTER PLACEMENT     ,9270,IN-HOUSE FOSTERING            ,04/07/2011,3068435,204113 20110701 31250    ,598.00,REDACTED PERSONAL DATA,479993,Social Community Care,ADOPTION & FOSTERING          
IN HOUSE FOSTER PLACEMENT     ,9270,IN-HOUSE FOSTERING            ,04/07/2011,3068439,206213 20110701 31250    ,598.00,REDACTED PERSONAL DATA,502739,Social Community Care,ADOPTION & FOSTERING          
SPECIAL GUARDIANSHIP          ,9270,RESIDENCE ORDERS              ,04/07/2011,3068442,207629 20110701 31250    ,1607.60,REDACTED PERSONAL DATA,487226,Social Community Care,ADOPTION & FOSTERING          
IN HOUSE FOSTER PLACEMENT     ,9270,IN-HOUSE FOSTERING            ,04/07/2011,3068444,20809 20110701 31250     ,598.00,REDACTED PERSONAL DATA,333830,Social Community Care,ADOPTION & FOSTERING          
IN HOUSE FOSTER PLACEMENT     ,9270,IN-HOUSE FOSTERING            ,04/07/2011,3068446,208267 20110701 31250    ,852.00,REDACTED PERSONAL DATA,485929,Social Community Care,ADOPTION & FOSTERING          
IN HOUSE FOSTER PLACEMENT     ,9270,IN-HOUSE FOSTERING            ,04/07/2011,3068449,208906 20110701 31250    ,728.00,REDACTED PERSONAL DATA,502527,Social Community Care,ADOPTION & FOSTERING          
IN HOUSE FOSTER PLACEMENT     ,9270,IN-HOUSE FOSTERING            ,04/07/2011,3068450,21036 20110701 31250     ,989.84,REDACTED PERSONAL DATA,380258,Social Community Care,ADOPTION & FOSTERING          
IN HOUSE FOSTER PLACEMENT     ,9270,IN-HOUSE FOSTERING            ,04/07/2011,3068451,210431 20110701 31250    ,1035.07,REDACTED PERSONAL DATA,502737,Social Community Care,ADOPTION & FOSTERING          
IN HOUSE FOSTER PLACEMENT     ,9270,IN-HOUSE FOSTERING            ,04/07/2011,3068454,211112 20110701 31250    ,611.40,REDACTED PERSONAL DATA,525029,Social Community Care,ADOPTION & FOSTERING          
IN HOUSE FOSTER PLACEMENT     ,9270,IN-HOUSE FOSTERING            ,04/07/2011,3068459,110839 20110701 31250    ,790.00,REDACTED PERSONAL DATA,537589,Social Community Care,ADOPTION & FOSTERING          
IN HOUSE FOSTER PLACEMENT     ,9270,IN-HOUSE FOSTERING            ,04/07/2011,3068460,21312 20110701 31250     ,766.00,REDACTED PERSONAL DATA,333655,Social Community Care,ADOPTION & FOSTERING          
SPECIAL GUARDIANSHIP          ,9270,RESIDENCE ORDERS              ,04/07/2011,3068461,213411 20110701 31250    ,819.96,REDACTED PERSONAL DATA,502164,Social Community Care,ADOPTION & FOSTERING          
IN HOUSE FOSTER PLACEMENT     ,9270,IN-HOUSE FOSTERING            ,04/07/2011,3068464,21439 20110701 31250     ,1007.57,REDACTED PERSONAL DATA,338747,Social Community Care,ADOPTION & FOSTERING          
SPECIAL GUARDIANSHIP          ,9270,RESIDENCE ORDERS              ,04/07/2011,3068469,215348 20110701 31250    ,522.26,REDACTED PERSONAL DATA,477472,Social Community Care,ADOPTION & FOSTERING          
IN HOUSE FOSTER PLACEMENT     ,9270,IN-HOUSE FOSTERING            ,04/07/2011,3068478,21654 20110701 31250     ,1603.81,REDACTED PERSONAL DATA,333123,Social Community Care,ADOPTION & FOSTERING          
FOSTERING RECHARGE SUSPENSE   ,9270,IN-HOUSE FOSTERING            ,04/07/2011,3068481,111778 20110701 31250    ,780.50,REDACTED PERSONAL DATA,545879,Social Community Care,ADOPTION & FOSTERING          
IN HOUSE FOSTER PLACEMENT     ,9270,IN-HOUSE FOSTERING            ,04/07/2011,3068492,10113 20110701 31250     ,1082.00,REDACTED PERSONAL DATA,371949,Social Community Care,ADOPTION & FOSTERING          
IN HOUSE FOSTER PLACEMENT     ,9270,IN-HOUSE FOSTERING            ,04/07/2011,3068493,111911 20110701 31250    ,1566.39,REDACTED PERSONAL DATA,338765,Social Community Care,ADOPTION & FOSTERING          
RESIDENCE ORDERS              ,9270,RESIDENCE ORDERS              ,04/07/2011,3068504,11214 20110701 31250     ,522.26,REDACTED PERSONAL DATA,328124,Social Community Care,ADOPTION & FOSTERING          
RESIDENCE ORDERS              ,9270,RESIDENCE ORDERS              ,04/07/2011,3068511,217984 20110701 31250    ,574.10,REDACTED PERSONAL DATA,466697,Social Community Care,ADOPTION & FOSTERING          
IN HOUSE FOSTER PLACEMENT     ,9270,IN-HOUSE FOSTERING            ,04/07/2011,3068526,113481 20110701 31250    ,660.00,REDACTED PERSONAL DATA,333743,Social Community Care,ADOPTION & FOSTERING          
RESIDENCE ORDERS              ,9270,RESIDENCE ORDERS              ,04/07/2011,3068530,218299 20110701 31250    ,629.10,REDACTED PERSONAL DATA,425879,Social Community Care,ADOPTION & FOSTERING          
IN HOUSE FOSTER PLACEMENT     ,9270,IN-HOUSE FOSTERING            ,04/07/2011,3068555,224702 20110701 31250    ,766.00,REDACTED PERSONAL DATA,545493,Unclassified Non Trade,OUT OF SCOPE FOR SIC MONITORIN
IN HOUSE FOSTER PLACEMENT     ,9270,IN-HOUSE FOSTERING            ,04/07/2011,3068556,224962 20110701 31250    ,1020.00,REDACTED PERSONAL DATA,505290,Social Community Care,ADOPTION & FOSTERING          
IN HOUSE FOSTER PLACEMENT     ,9270,IN-HOUSE FOSTERING            ,04/07/2011,3068557,225284 20110701 31250    ,944.14,REDACTED PERSONAL DATA,521455,Social Community Care,ADOPTION & FOSTERING          
IN HOUSE FOSTER PLACEMENT     ,9270,IN-HOUSE FOSTERING            ,04/07/2011,3068559,11584 20110701 31250     ,1290.00,REDACTED PERSONAL DATA,338799,Social Community Care,ADOPTION & FOSTERING          
IN HOUSE FOSTER PLACEMENT     ,9270,IN-HOUSE FOSTERING            ,04/07/2011,3068560,226624 20110701 31250    ,530.74,REDACTED PERSONAL DATA,511885,Social Community Care,ADOPTION & FOSTERING          
ADOPTION ALLOWANCES           ,9270,ADOPTION ALLOWANCES           ,04/07/2011,3068565,23 20110701 31250        ,524.84,REDACTED PERSONAL DATA,333139,Social Community Care,ADOPTION & FOSTERING          
IN HOUSE FOSTER PLACEMENT     ,9270,IN-HOUSE FOSTERING            ,04/07/2011,3068565,23 20110701 31250        ,1152.86,REDACTED PERSONAL DATA,333139,Social Community Care,ADOPTION & FOSTERING          
IN HOUSE FOSTER PLACEMENT     ,9270,IN-HOUSE FOSTERING            ,04/07/2011,3068569,232766 20110701 31250    ,766.00,REDACTED PERSONAL DATA,518348,Social Community Care,ADOPTION & FOSTERING          
IN HOUSE FOSTER PLACEMENT     ,9270,IN-HOUSE FOSTERING            ,04/07/2011,3068571,233078 20110701 31250    ,1082.00,REDACTED PERSONAL DATA,520205,Social Community Care,ADOPTION & FOSTERING          
IN HOUSE FOSTER PLACEMENT     ,9270,IN-HOUSE FOSTERING            ,04/07/2011,3068574,234568 20110701 31250    ,665.00,REDACTED PERSONAL DATA,530876,Social Community Care,ADOPTION & FOSTERING          
IN HOUSE FOSTER PLACEMENT     ,9270,IN-HOUSE FOSTERING            ,04/07/2011,3068577,23882 20110701 31250     ,598.00,REDACTED PERSONAL DATA,333142,Social Community Care,ADOPTION & FOSTERING          
IN HOUSE FOSTER PLACEMENT     ,9270,IN-HOUSE FOSTERING            ,04/07/2011,3068581,118120 20110701 31250    ,1006.00,REDACTED PERSONAL DATA,333453,Social Community Care,ADOPTION & FOSTERING          
IN HOUSE FOSTER PLACEMENT     ,9270,IN-HOUSE FOSTERING            ,04/07/2011,3068584,242672 20110701 31250    ,766.00,REDACTED PERSONAL DATA,533358,Social Community Care,ADOPTION & FOSTERING          
IN HOUSE FOSTER PLACEMENT     ,9270,IN-HOUSE FOSTERING            ,04/07/2011,3068585,243392 20110701 31250    ,856.56,REDACTED PERSONAL DATA,521458,Social Community Care,ADOPTION & FOSTERING          
IN HOUSE FOSTER PLACEMENT     ,9270,IN-HOUSE FOSTERING            ,04/07/2011,3068601,26212 20110701 31250     ,2102.00,REDACTED PERSONAL DATA,333838,Social Community Care,ADOPTION & FOSTERING          
ADOPTION ALLOWANCES           ,9270,ADOPTION ALLOWANCES           ,04/07/2011,3068602,262762 20110701 31250    ,605.33,REDACTED PERSONAL DATA,543941,Social Community Care,ADOPTION & FOSTERING          
IN HOUSE FOSTER PLACEMENT     ,9270,IN-HOUSE FOSTERING            ,04/07/2011,3068605,26454 20110701 31250     ,637.40,REDACTED PERSONAL DATA,333025,Social Community Care,ADOPTION & FOSTERING          
SPECIAL GUARDIANSHIP          ,9270,RESIDENCE ORDERS              ,04/07/2011,3068608,267388 20110701 31250    ,536.06,REDACTED PERSONAL DATA,526295,Social Community Care,ADOPTION & FOSTERING          
IN HOUSE FOSTER PLACEMENT     ,9270,IN-HOUSE FOSTERING            ,04/07/2011,3068612,27047 20110701 31250     ,996.00,REDACTED PERSONAL DATA,338866,Social Community Care,ADOPTION & FOSTERING          
IN HOUSE FOSTER PLACEMENT     ,9270,IN-HOUSE FOSTERING            ,04/07/2011,3068613,27128 20110701 31250     ,537.23,REDACTED PERSONAL DATA,204768,Social Community Care,ADOPTION & FOSTERING          
IN HOUSE FOSTER PLACEMENT     ,9270,IN-HOUSE FOSTERING            ,04/07/2011,3068614,271426 20110701 31250    ,996.00,REDACTED PERSONAL DATA,527967,Social Community Care,ADOPTION & FOSTERING          
SPECIAL GUARDIANSHIP          ,9270,RESIDENCE ORDERS              ,04/07/2011,3068625,284355 20110701 31250    ,2439.90,REDACTED PERSONAL DATA,515224,Social Community Care,ADOPTION & FOSTERING          
IN HOUSE FOSTER PLACEMENT     ,9270,IN-HOUSE FOSTERING            ,04/07/2011,3068635,295330 20110701 31250    ,653.00,REDACTED PERSONAL DATA,539221,Social Community Care,ADOPTION & FOSTERING          
IN HOUSE FOSTER PLACEMENT     ,9270,IN-HOUSE FOSTERING            ,04/07/2011,3068640,296922 20110701 31250    ,766.00,REDACTED PERSONAL DATA,537564,Social Community Care,ADOPTION & FOSTERING          
IN HOUSE FOSTER PLACEMENT     ,9270,IN-HOUSE FOSTERING            ,04/07/2011,3068642,297215 20110701 31250    ,766.00,REDACTED PERSONAL DATA,539395,Social Community Care,HOME CARE SERVICES            
RESIDENCE ORDERS              ,9270,RESIDENCE ORDERS              ,04/07/2011,3068652,301894 20110701 31250    ,568.78,REDACTED PERSONAL DATA,532329,Social Community Care,HOME CARE SERVICES            
RESIDENCE ORDERS              ,9270,RESIDENCE ORDERS              ,04/07/2011,3068663,315061 20110701 31250    ,9138.08,REDACTED PERSONAL DATA,553535,Social Community Care,ADOPTION & FOSTERING          
IN HOUSE FOSTER PLACEMENT     ,9270,IN-HOUSE FOSTERING            ,04/07/2011,3068664,316839 20110701 31250    ,790.00,REDACTED PERSONAL DATA,547793,Social Community Care,ADOPTION & FOSTERING          
IN HOUSE FOSTER PLACEMENT     ,9270,IN-HOUSE FOSTERING            ,04/07/2011,3068667,31985 20110701 31250     ,1020.00,REDACTED PERSONAL DATA,379040,Social Community Care,ADOPTION & FOSTERING          
IN HOUSE FOSTER PLACEMENT     ,9270,IN-HOUSE FOSTERING            ,04/07/2011,3068670,121470 20110701 31250    ,1494.30,REDACTED PERSONAL DATA,453239,Social Community Care,ADOPTION & FOSTERING          
RESIDENCE ORDERS              ,9270,RESIDENCE ORDERS              ,04/07/2011,3068675,334411 20110701 31250    ,545.58,REDACTED PERSONAL DATA,551220,Social Community Care,ADOPTION & FOSTERING          
IN HOUSE FOSTER PLACEMENT     ,9270,IN-HOUSE FOSTERING            ,04/07/2011,3068677,3369 20110701 31250      ,776.00,REDACTED PERSONAL DATA,332891,Social Community Care,ADOPTION & FOSTERING          
IN HOUSE FOSTER PLACEMENT     ,9270,IN-HOUSE FOSTERING            ,04/07/2011,3068694,36362 20110701 31250     ,996.00,REDACTED PERSONAL DATA,338824,Social Community Care,ADOPTION & FOSTERING          
IN HOUSE FOSTER PLACEMENT     ,9270,IN-HOUSE FOSTERING            ,04/07/2011,3068696,37330 20110701 31250     ,755.72,REDACTED PERSONAL DATA,553309,Social Community Care,ADOPTION & FOSTERING          
IN HOUSE FOSTER PLACEMENT     ,9270,IN-HOUSE FOSTERING            ,04/07/2011,3068700,38284 20110701 31250     ,1383.43,REDACTED PERSONAL DATA,437897,Social Community Care,ADOPTION & FOSTERING          
IN HOUSE FOSTER PLACEMENT     ,9270,IN-HOUSE FOSTERING            ,04/07/2011,3068702,39742 20110701 31250     ,867.78,REDACTED PERSONAL DATA,333115,Social Community Care,ADOPTION & FOSTERING          
IN HOUSE FOSTER PLACEMENT     ,9270,IN-HOUSE FOSTERING            ,04/07/2011,3068708,4239 20110701 31250      ,776.00,REDACTED PERSONAL DATA,333683,Social Community Care,ADOPTION & FOSTERING          
RESIDENCE ORDERS              ,9270,RESIDENCE ORDERS              ,04/07/2011,3068712,42902 20110701 31250     ,647.80,REDACTED PERSONAL DATA,421999,Social Community Care,ADOPTION & FOSTERING          
IN HOUSE FOSTER PLACEMENT     ,9270,IN-HOUSE FOSTERING            ,04/07/2011,3068713,4340 20110701 31250      ,1218.00,REDACTED PERSONAL DATA,338749,Social Community Care,ADOPTION & FOSTERING          
IN HOUSE FOSTER PLACEMENT     ,9270,IN-HOUSE FOSTERING            ,04/07/2011,3068715,122743 20110701 31250    ,1864.00,REDACTED PERSONAL DATA,502731,Social Community Care,ADOPTION & FOSTERING          
IN HOUSE FOSTER PLACEMENT     ,9270,IN-HOUSE FOSTERING            ,04/07/2011,3068726,123178 20110701 31250    ,690.00,REDACTED PERSONAL DATA,368216,Social Community Care,ADOPTION & FOSTERING          
IN HOUSE FOSTER PLACEMENT     ,9270,IN-HOUSE FOSTERING            ,04/07/2011,3068731,50595 20110701 31250     ,753.07,REDACTED PERSONAL DATA,333732,Social Community Care,ADOPTION & FOSTERING          
IN HOUSE FOSTER PLACEMENT     ,9270,IN-HOUSE FOSTERING            ,04/07/2011,3068735,52188 20110701 31250     ,622.00,REDACTED PERSONAL DATA,395410,Social Community Care,ADOPTION & FOSTERING          
IN HOUSE FOSTER PLACEMENT     ,9270,IN-HOUSE FOSTERING            ,04/07/2011,3068736,5232 20110701 31250      ,1060.00,REDACTED PERSONAL DATA,333284,Social Community Care,ADOPTION & FOSTERING          
IN HOUSE FOSTER PLACEMENT     ,9270,IN-HOUSE FOSTERING            ,04/07/2011,3068737,125668 20110701 31250    ,692.57,REDACTED PERSONAL DATA,545888,Social Community Care,ADOPTION & FOSTERING          
IN HOUSE FOSTER PLACEMENT     ,9270,IN-HOUSE FOSTERING            ,04/07/2011,3068740,53755 20110701 31250     ,2440.88,REDACTED PERSONAL DATA,332878,Social Community Care,ADOPTION & FOSTERING          
IN HOUSE FOSTER PLACEMENT     ,9270,IN-HOUSE FOSTERING            ,04/07/2011,3068741,54948 20110701 31250     ,1280.00,REDACTED PERSONAL DATA,401257,Social Community Care,ADOPTION & FOSTERING          
IN HOUSE FOSTER PLACEMENT     ,9270,IN-HOUSE FOSTERING            ,04/07/2011,3068742,55871 20110701 31250     ,973.00,REDACTED PERSONAL DATA,332982,Social Community Care,ADOPTION & FOSTERING          
IN HOUSE FOSTER PLACEMENT     ,9270,IN-HOUSE FOSTERING            ,04/07/2011,3068743,56472 20110701 31250     ,660.00,REDACTED PERSONAL DATA,332894,Social Community Care,ADOPTION & FOSTERING          
IN HOUSE FOSTER PLACEMENT     ,9270,IN-HOUSE FOSTERING            ,04/07/2011,3068745,5899 20110701 31250      ,1513.04,REDACTED PERSONAL DATA,332893,Social Community Care,ADOPTION & FOSTERING          
IN HOUSE FOSTER PLACEMENT     ,9270,IN-HOUSE FOSTERING            ,04/07/2011,3068746,59012 20110701 31250     ,996.00,REDACTED PERSONAL DATA,333610,Social Community Care,ADOPTION & FOSTERING          
IN HOUSE FOSTER PLACEMENT     ,9270,IN-HOUSE FOSTERING            ,04/07/2011,3068747,59205 20110701 31250     ,1944.00,REDACTED PERSONAL DATA,368211,Social Community Care,ADOPTION & FOSTERING          
IN HOUSE FOSTER PLACEMENT     ,9270,IN-HOUSE FOSTERING            ,04/07/2011,3068750,60275 20110701 31250     ,1120.00,REDACTED PERSONAL DATA,429874,Social Community Care,ADOPTION & FOSTERING          
IN HOUSE FOSTER PLACEMENT     ,9270,IN-HOUSE FOSTERING            ,04/07/2011,3068751,60616 20110701 31250     ,3111.00,REDACTED PERSONAL DATA,333511,Social Community Care,ADOPTION & FOSTERING          
IN HOUSE FOSTER PLACEMENT     ,9270,IN-HOUSE FOSTERING            ,04/07/2011,3068752,60933 20110701 31250     ,1034.00,REDACTED PERSONAL DATA,333346,Social Community Care,ADOPTION & FOSTERING          
IN HOUSE FOSTER PLACEMENT     ,9270,IN-HOUSE FOSTERING            ,04/07/2011,3068754,6158 20110701 31250      ,852.00,REDACTED PERSONAL DATA,540317,Social Community Care,ADOPTION & FOSTERING          
IN HOUSE FOSTER PLACEMENT     ,9270,IN-HOUSE FOSTERING            ,04/07/2011,3068755,62204 20110701 31250     ,1034.00,REDACTED PERSONAL DATA,333618,Social Community Care,ADOPTION & FOSTERING          
RESIDENCE ORDERS              ,9270,RESIDENCE ORDERS              ,04/07/2011,3068758,62544 20110701 31250     ,536.06,REDACTED PERSONAL DATA,333037,Social Community Care,ADOPTION & FOSTERING          
ADOPTION ALLOWANCES           ,9270,ADOPTION ALLOWANCES           ,04/07/2011,3068760,62842 20110701 31250     ,709.50,REDACTED PERSONAL DATA,333091,Social Community Care,ADOPTION & FOSTERING          
IN HOUSE FOSTER PLACEMENT     ,9270,IN-HOUSE FOSTERING            ,04/07/2011,3068760,62842 20110701 31250     ,996.00,REDACTED PERSONAL DATA,333091,Social Community Care,ADOPTION & FOSTERING          
IN HOUSE FOSTER PLACEMENT     ,9270,IN-HOUSE FOSTERING            ,04/07/2011,3068764,64992 20110701 31250     ,2423.74,REDACTED PERSONAL DATA,333282,Social Community Care,ADOPTION & FOSTERING          
IN HOUSE FOSTER PLACEMENT     ,9270,IN-HOUSE FOSTERING            ,04/07/2011,3068765,65520 20110701 31250     ,1418.00,REDACTED PERSONAL DATA,333005,Social Community Care,ADOPTION & FOSTERING          
IN HOUSE FOSTER PLACEMENT     ,9270,IN-HOUSE FOSTERING            ,04/07/2011,3068766,65854 20110701 31250     ,852.00,REDACTED PERSONAL DATA,338734,Social Community Care,ADOPTION & FOSTERING          
IN HOUSE FOSTER PLACEMENT     ,9270,IN-HOUSE FOSTERING            ,04/07/2011,3068770,126452 20110701 31250    ,890.00,REDACTED PERSONAL DATA,471822,Social Community Care,ADOPTION & FOSTERING          
IN HOUSE FOSTER PLACEMENT     ,9270,IN-HOUSE FOSTERING            ,04/07/2011,3068771,68046 20110701 31250     ,660.00,REDACTED PERSONAL DATA,207768,Social Community Care,ADOPTION & FOSTERING          
IN HOUSE FOSTER PLACEMENT     ,9270,IN-HOUSE FOSTERING            ,04/07/2011,3068773,69464 20110701 31250     ,996.00,REDACTED PERSONAL DATA,333438,Social Community Care,ADOPTION & FOSTERING          
IN HOUSE FOSTER PLACEMENT     ,9270,IN-HOUSE FOSTERING            ,04/07/2011,3068774,69804 20110701 31250     ,1120.00,REDACTED PERSONAL DATA,333694,Social Community Care,ADOPTION & FOSTERING          
IN HOUSE FOSTER PLACEMENT     ,9270,IN-HOUSE FOSTERING            ,04/07/2011,3068775,69844 20110701 31250     ,862.00,REDACTED PERSONAL DATA,333815,Social Community Care,ADOPTION & FOSTERING          
IN HOUSE FOSTER PLACEMENT     ,9270,IN-HOUSE FOSTERING            ,04/07/2011,3068779,71652 20110701 31250     ,1242.00,REDACTED PERSONAL DATA,333207,Social Community Care,ADOPTION & FOSTERING          
IN HOUSE FOSTER PLACEMENT     ,9270,IN-HOUSE FOSTERING            ,04/07/2011,3068782,72432 20110701 31250     ,996.00,REDACTED PERSONAL DATA,398055,Social Community Care,ADOPTION & FOSTERING          
IN HOUSE FOSTER PLACEMENT     ,9270,IN-HOUSE FOSTERING            ,04/07/2011,3068783,73971 20110701 31250     ,996.00,REDACTED PERSONAL DATA,332984,Social Community Care,ADOPTION & FOSTERING          
IN HOUSE FOSTER PLACEMENT     ,9270,IN-HOUSE FOSTERING            ,04/07/2011,3068786,7644 20110701 31250      ,912.00,REDACTED PERSONAL DATA,527335,Social Community Care,ADOPTION & FOSTERING          
IN HOUSE FOSTER PLACEMENT     ,9270,IN-HOUSE FOSTERING            ,04/07/2011,3068787,77354 20110701 31250     ,1082.00,REDACTED PERSONAL DATA,333280,Social Community Care,ADOPTION & FOSTERING          
IN HOUSE FOSTER PLACEMENT     ,9270,IN-HOUSE FOSTERING            ,04/07/2011,3068788,774 20110701 31250       ,1566.44,REDACTED PERSONAL DATA,333661,Social Community Care,ADOPTION & FOSTERING          
IN HOUSE FOSTER PLACEMENT     ,9270,IN-HOUSE FOSTERING            ,04/07/2011,3068790,78545 20110701 31250     ,622.00,REDACTED PERSONAL DATA,332919,Social Community Care,ADOPTION & FOSTERING          
IN HOUSE FOSTER PLACEMENT     ,9270,IN-HOUSE FOSTERING            ,04/07/2011,3068791,78553 20110701 31250     ,1058.00,REDACTED PERSONAL DATA,333703,Social Community Care,ADOPTION & FOSTERING          
IN HOUSE FOSTER PLACEMENT     ,9270,IN-HOUSE FOSTERING            ,04/07/2011,3068795,81896 20110701 31250     ,1061.44,REDACTED PERSONAL DATA,338778,Social Community Care,ADOPTION & FOSTERING          
IN HOUSE FOSTER PLACEMENT     ,9270,IN-HOUSE FOSTERING            ,04/07/2011,3068800,84339 20110701 31250     ,1204.24,REDACTED PERSONAL DATA,333060,Social Community Care,ADOPTION & FOSTERING          
IN HOUSE FOSTER PLACEMENT     ,9270,IN-HOUSE FOSTERING            ,04/07/2011,3068802,84605 20110701 31250     ,1358.00,REDACTED PERSONAL DATA,333262,Social Community Care,ADOPTION & FOSTERING          
IN HOUSE FOSTER PLACEMENT     ,9270,IN-HOUSE FOSTERING            ,04/07/2011,3068805,8617 20110701 31250      ,628.00,REDACTED PERSONAL DATA,333606,Social Community Care,ADOPTION & FOSTERING          
IN HOUSE FOSTER PLACEMENT     ,9270,IN-HOUSE FOSTERING            ,04/07/2011,3068808,90340 20110701 31250     ,1343.04,REDACTED PERSONAL DATA,333663,Social Community Care,ADOPTION & FOSTERING          
IN HOUSE FOSTER PLACEMENT     ,9270,IN-HOUSE FOSTERING            ,04/07/2011,3068809,90657 20110701 31250     ,598.00,REDACTED PERSONAL DATA,371936,Social Community Care,ADOPTION & FOSTERING          
IN HOUSE FOSTER PLACEMENT     ,9270,IN-HOUSE FOSTERING            ,04/07/2011,3068811,91090 20110701 31250     ,1044.00,REDACTED PERSONAL DATA,333434,Social Community Care,ADOPTION & FOSTERING          
CDT - RESPITE FOSTERING       ,9270,IN-HOUSE FOSTERING            ,04/07/2011,3068812,91281 20110701 31250     ,500.00,REDACTED PERSONAL DATA,502223,Social Community Care,ADOPTION & FOSTERING          
IN HOUSE FOSTER PLACEMENT     ,9270,IN-HOUSE FOSTERING            ,04/07/2011,3068812,91281 20110701 31250     ,1075.08,REDACTED PERSONAL DATA,502223,Social Community Care,ADOPTION & FOSTERING          
IN HOUSE FOSTER PLACEMENT     ,9270,IN-HOUSE FOSTERING            ,04/07/2011,3068814,127476 20110701 31250    ,660.00,REDACTED PERSONAL DATA,394621,Social Community Care,ADOPTION & FOSTERING          
IN HOUSE FOSTER PLACEMENT     ,9270,IN-HOUSE FOSTERING            ,04/07/2011,3068815,91857 20110701 31250     ,2010.00,REDACTED PERSONAL DATA,414480,Social Community Care,ADOPTION & FOSTERING          
IN HOUSE FOSTER PLACEMENT     ,9270,IN-HOUSE FOSTERING            ,04/07/2011,3068819,92756 20110701 31250     ,990.00,REDACTED PERSONAL DATA,332988,Social Community Care,ADOPTION & FOSTERING          
IN HOUSE FOSTER PLACEMENT     ,9270,IN-HOUSE FOSTERING            ,04/07/2011,3068820,92844 20110701 31250     ,1543.36,REDACTED PERSONAL DATA,377924,Social Community Care,ADOPTION & FOSTERING          
IN HOUSE FOSTER PLACEMENT     ,9270,IN-HOUSE FOSTERING            ,04/07/2011,3068821,93353 20110701 31250     ,1280.00,REDACTED PERSONAL DATA,333631,Social Community Care,ADOPTION & FOSTERING          
IN HOUSE FOSTER PLACEMENT     ,9270,IN-HOUSE FOSTERING            ,04/07/2011,3068822,93512 20110701 31250     ,830.00,REDACTED PERSONAL DATA,329192,Social Community Care,ADOPTION & FOSTERING          
IN HOUSE FOSTER PLACEMENT     ,9270,IN-HOUSE FOSTERING            ,04/07/2011,3068823,93777 20110701 31250     ,598.00,REDACTED PERSONAL DATA,333179,Social Community Care,ADOPTION & FOSTERING          
RESIDENCE ORDERS              ,9270,RESIDENCE ORDERS              ,04/07/2011,3068824,93800 20110701 31250     ,733.66,REDACTED PERSONAL DATA,333100,Social Community Care,ADOPTION & FOSTERING          
FOSTERING RECHARGE SUSPENSE   ,9270,IN-HOUSE FOSTERING            ,04/07/2011,3068825,103313 20110701 31250    ,1424.50,REDACTED PERSONAL DATA,528402,Social Community Care,CAREFIRST DIRECT PAYMENTS     
IN HOUSE FOSTER PLACEMENT     ,9270,IN-HOUSE FOSTERING            ,04/07/2011,3068826,127884 20110701 31250    ,1191.44,REDACTED PERSONAL DATA,382392,Social Community Care,ADOPTION & FOSTERING          
IN HOUSE FOSTER PLACEMENT     ,9270,IN-HOUSE FOSTERING            ,04/07/2011,3068827,93897 20110701 31250     ,1432.86,REDACTED PERSONAL DATA,333547,Social Community Care,ADOPTION & FOSTERING          
IN HOUSE FOSTER PLACEMENT     ,9270,IN-HOUSE FOSTERING            ,04/07/2011,3068831,95231 20110701 31250     ,892.01,REDACTED PERSONAL DATA,333600,Social Community Care,ADOPTION & FOSTERING          
IN HOUSE FOSTER PLACEMENT     ,9270,IN-HOUSE FOSTERING            ,04/07/2011,3068835,98203 20110701 31250     ,622.00,REDACTED PERSONAL DATA,333450,Social Community Care,ADOPTION & FOSTERING          
IN HOUSE FOSTER PLACEMENT     ,9270,IN-HOUSE FOSTERING            ,04/07/2011,3068840,99174 20110701 31250     ,1020.00,REDACTED PERSONAL DATA,528898,Social Community Care,ADOPTION & FOSTERING          
IN HOUSE FOSTER PLACEMENT     ,9270,IN-HOUSE FOSTERING            ,04/07/2011,3068847,132001 20110701 31250    ,1741.00,REDACTED PERSONAL DATA,401464,Social Community Care,ADOPTION & FOSTERING          
IN HOUSE FOSTER PLACEMENT     ,9270,IN-HOUSE FOSTERING            ,04/07/2011,3068852,133705 20110701 31250    ,1596.58,REDACTED PERSONAL DATA,419128,Social Community Care,ADOPTION & FOSTERING          
IN HOUSE FOSTER PLACEMENT     ,9270,IN-HOUSE FOSTERING            ,04/07/2011,3068853,133942 20110701 31250    ,853.86,REDACTED PERSONAL DATA,391833,Social Community Care,ADOPTION & FOSTERING          
IN HOUSE FOSTER PLACEMENT     ,9270,IN-HOUSE FOSTERING            ,04/07/2011,3068858,135152 20110701 31250    ,622.00,REDACTED PERSONAL DATA,418759,Social Community Care,ADOPTION & FOSTERING          
IN HOUSE FOSTER PLACEMENT     ,9270,IN-HOUSE FOSTERING            ,04/07/2011,3068862,137064 20110701 31250    ,1120.00,REDACTED PERSONAL DATA,333536,Social Community Care,ADOPTION & FOSTERING          
IN HOUSE FOSTER PLACEMENT     ,9270,IN-HOUSE FOSTERING            ,04/07/2011,3068870,139839 20110701 31250    ,1236.00,REDACTED PERSONAL DATA,457380,Social Community Care,ADOPTION & FOSTERING          
IN HOUSE FOSTER PLACEMENT     ,9270,IN-HOUSE FOSTERING            ,04/07/2011,3068876,142307 20110701 31250    ,1058.00,REDACTED PERSONAL DATA,502726,Social Community Care,ADOPTION & FOSTERING          
IN HOUSE FOSTER PLACEMENT     ,9270,IN-HOUSE FOSTERING            ,04/07/2011,3068879,14509 20110701 31250     ,1499.52,REDACTED PERSONAL DATA,338767,Social Community Care,ADOPTION & FOSTERING          
STREET FORCE BALANCE SHEET    ,776,4332101 INVOICES PAID         ,04/07/2011,3068081,155158RI                 ,1191.60,HARSCO METALS GROUP LTD                 ,493119,Vehicles Not Buses,PLANT & MACHINERY HIRE & LEASI
STREET FORCE BALANCE SHEET    ,776,4332101 INVOICES PAID         ,04/07/2011,3068082,155159RI                 ,921.50,HARSCO METALS GROUP LTD                 ,493119,Vehicles Not Buses,PLANT & MACHINERY HIRE & LEASI
STREET FORCE BALANCE SHEET    ,776,4332101 INVOICES PAID         ,04/07/2011,3068083,155182RI                 ,1004.00,HARSCO METALS GROUP LTD                 ,493119,Vehicles Not Buses,PLANT & MACHINERY HIRE & LEASI
STREET FORCE BALANCE SHEET    ,776,4332101 INVOICES PAID         ,04/07/2011,3068084,155183RI                 ,822.00,HARSCO METALS GROUP LTD                 ,493119,Vehicles Not Buses,PLANT & MACHINERY HIRE & LEASI
STREET FORCE BALANCE SHEET    ,776,4332101 INVOICES PAID         ,04/07/2011,3068085,155184RI                 ,556.10,HARSCO METALS GROUP LTD                 ,493119,Vehicles Not Buses,PLANT & MACHINERY HIRE & LEASI
STREET FORCE BALANCE SHEET    ,776,4332101 INVOICES PAID         ,04/07/2011,3068088,155236RI                 ,799.00,HARSCO METALS GROUP LTD                 ,493119,Vehicles Not Buses,PLANT & MACHINERY HIRE & LEASI
STREET FORCE BALANCE SHEET    ,776,4332101 INVOICES PAID         ,04/07/2011,3068089,155240RI                 ,822.00,HARSCO METALS GROUP LTD                 ,493119,Vehicles Not Buses,PLANT & MACHINERY HIRE & LEASI
STREET FORCE BALANCE SHEET    ,776,4332101 INVOICES PAID         ,04/07/2011,3068090,155270RI                 ,995.00,HARSCO METALS GROUP LTD                 ,493119,Vehicles Not Buses,PLANT & MACHINERY HIRE & LEASI
STREET FORCE BALANCE SHEET    ,776,4332101 INVOICES PAID         ,04/07/2011,3068091,155271RI                 ,1184.00,HARSCO METALS GROUP LTD                 ,493119,Vehicles Not Buses,PLANT & MACHINERY HIRE & LEASI
STREET FORCE BALANCE SHEET    ,776,4332101 INVOICES PAID         ,04/07/2011,3068092,155303RI                 ,1007.00,HARSCO METALS GROUP LTD                 ,493119,Vehicles Not Buses,PLANT & MACHINERY HIRE & LEASI
STREET FORCE BALANCE SHEET    ,776,4332101 INVOICES PAID         ,04/07/2011,3068093,155304RI                 ,798.00,HARSCO METALS GROUP LTD                 ,493119,Vehicles Not Buses,PLANT & MACHINERY HIRE & LEASI
STREET FORCE BALANCE SHEET    ,776,4332101 INVOICES PAID         ,04/07/2011,3068098,1933/677                 ,6778.20,THE POST & COLUMN CO LTD                ,460157,Unclassified Trade,METAL PRODUCTS - FABRICATED   
STREET FORCE BALANCE SHEET    ,776,4332101 INVOICES PAID         ,04/07/2011,3068099,1934/677                 ,675.00,THE POST & COLUMN CO LTD                ,460157,Unclassified Trade,METAL PRODUCTS - FABRICATED   
STREET FORCE BALANCE SHEET    ,776,4332101 INVOICES PAID         ,04/07/2011,3068105,9026874498,1872.40,TARMAC LTD                              ,463393,Building Construction Materials,BUILDING BLOCK MNFRS & DISTRIB
STREET FORCE BALANCE SHEET    ,776,4332101 INVOICES PAID         ,04/07/2011,3068106,9026874499,4196.12,TARMAC LTD                              ,463393,Building Construction Materials,BUILDING BLOCK MNFRS & DISTRIB
STREET FORCE BALANCE SHEET    ,776,4332101 INVOICES PAID         ,04/07/2011,3068107,9026874500,3851.13,TARMAC LTD                              ,463393,Building Construction Materials,BUILDING BLOCK MNFRS & DISTRIB
STREET FORCE BALANCE SHEET    ,776,4332101 INVOICES PAID         ,04/07/2011,3068109,9026882284,702.13,TARMAC LTD                              ,463393,Building Construction Materials,BUILDING BLOCK MNFRS & DISTRIB
STREET FORCE BALANCE SHEET    ,776,4332101 INVOICES PAID         ,04/07/2011,3068111,9026882288,509.44,TARMAC LTD                              ,463393,Building Construction Materials,BUILDING BLOCK MNFRS & DISTRIB
STREET FORCE BALANCE SHEET    ,776,4332101 INVOICES PAID         ,04/07/2011,3068112,9026882289,659.80,TARMAC LTD                              ,463393,Building Construction Materials,BUILDING BLOCK MNFRS & DISTRIB
STREET FORCE BALANCE SHEET    ,776,4332101 INVOICES PAID         ,04/07/2011,3068113,9026882290,582.16,TARMAC LTD                              ,463393,Building Construction Materials,BUILDING BLOCK MNFRS & DISTRIB
STREET FORCE BALANCE SHEET    ,776,4332101 INVOICES PAID         ,04/07/2011,3068114,9026882291,785.70,TARMAC LTD                              ,463393,Building Construction Materials,BUILDING BLOCK MNFRS & DISTRIB
STREET FORCE BALANCE SHEET    ,776,4332101 INVOICES PAID         ,04/07/2011,3068115,9026882292,766.59,TARMAC LTD                              ,463393,Building Construction Materials,BUILDING BLOCK MNFRS & DISTRIB
STREET FORCE BALANCE SHEET    ,776,4332101 INVOICES PAID         ,04/07/2011,3068117,9026894593,1272.56,TARMAC LTD                              ,463393,Building Construction Materials,BUILDING BLOCK MNFRS & DISTRIB
STREET FORCE BALANCE SHEET    ,776,4332101 INVOICES PAID         ,04/07/2011,3068121,9026894596,1224.14,TARMAC LTD                              ,463393,Building Construction Materials,BUILDING BLOCK MNFRS & DISTRIB
STREET FORCE BALANCE SHEET    ,776,4332101 INVOICES PAID         ,04/07/2011,3068124,9026935405,815.77,TARMAC LTD                              ,463393,Building Construction Materials,BUILDING BLOCK MNFRS & DISTRIB
STREET FORCE BALANCE SHEET    ,776,4332101 INVOICES PAID         ,04/07/2011,3068128,ZBB0088702               ,3236.40,MARSHALLS MONO LIMITED                  ,460984,Building Construction Materials,QUARRIES                      
STREET FORCE BALANCE SHEET    ,776,4332101 INVOICES PAID         ,04/07/2011,3068130,1/456139                 ,1700.16,BUILDERS CENTRE (SHEFFIELD) LTD         ,203585,Building Construction Materials,BUILDERS' MERCHANTS           
DISABLED GRANTS               ,1165,NC&A OTHER                    ,04/07/2011,3068246,ERS INVOICE52969         ,3680.00,DUTTON PHILLIPS PS LIMITED              ,488023,Construction,CENTRAL HEATING - INSTALLATION
CLAIMS                        ,8740,EMPLOYERS LIABILITY           ,04/07/2011,3068908,ERS INVOICE52993         ,5500.00,ACCIDENT SOLICITORS DIRECT              ,299480,Legal Services,SOLICITORS                    
CLAIMS                        ,8740,EMPLOYERS LIABILITY           ,04/07/2011,3068912,ERS INVOICE52997         ,4100.00,THOMPSONS CLIENT ACCOUNT                ,505870,Legal Services,SOLICITORS                    
CARE PROCEEDINGS (LEGAL FEES) ,8470,LEGAL FEES                    ,04/07/2011,3068913,ERS INVOICE52998         ,2225.00,CEC MORLEY                              ,537729,Unclassified Non Trade,COURTS                        
CLAIMS                        ,8740,MOTOR VEHICLE                 ,04/07/2011,3068914,ERS INVOICE52999         ,11500.00,LPS SOLICITORS                          ,507132,Legal Services,SOLICITORS                    
OCCUPATIONAL HEALTH RECHARGES ,5790,EMPLOYEE EXPENSES-INVOICED    ,04/07/2011,3068915,ERS INVOICE53000         ,3080.00,DR J P O'CONNELL                        ,345381,Medical ,DOCTORS                       
CLAIMS                        ,8740,HIGHWAYS                      ,04/07/2011,3068916,ERS INVOICE53001         ,3541.00,REDACTED PERSONAL DATA,554339,Unclassified Non Trade,OUT OF SCOPE FOR SIC MONITORIN
COMMUNITY ASSEMBLY SOUTH EAST ,8180,GRANTS                        ,04/07/2011,3068917,ERS INVOICE53002         ,2000.00,FRIENDS OF CHARNOCK RECREATION GROUNDS  ,462372,Unclassified Non Trade,CHARITIES & VOLUNTARY ORGANISA
CLAIMS                        ,8740,HIGHWAYS                      ,04/07/2011,3068919,ERS INVOICE53004         ,566.00,DEPARTMENT FOR WORK & PENSIONS          ,326920,Unclassified Non Trade,CENTRAL GOVERNMENT            
CLAIMS                        ,8740,MOTOR VEHICLE                 ,04/07/2011,3068921,ERS INVOICE53006         ,4200.12,MSL LEGAL EXPENSES LTD                  ,463706,Legal Services,LEGAL SERVICES                
DISABLED GRANTS               ,1165,NC&A OTHER                    ,04/07/2011,3069125,ERS INVOICE53009         ,3685.75,MOREABILITY                             ,553972,Medical ,MOBILITY EQUIPMENT            
DISABLED GRANTS               ,1165,NC&A OTHER                    ,04/07/2011,3069127,ERS INVOICE53010         ,3578.35,MOREABILITY                             ,553972,Medical ,MOBILITY EQUIPMENT            
DISABLED GRANTS               ,1165,NC&A OTHER                    ,04/07/2011,3069128,ERS INVOICE53011         ,4576.00,STANNAH LIFT SERVICES LTD.              ,208625,Social Community Care,STAIRLIFTS - MNFRS & INSTALLER
DISABLED GRANTS               ,1165,NC&A OTHER                    ,04/07/2011,3069129,ERS INVOICE53012         ,2462.00,STANNAH LIFT SERVICES LTD.              ,208625,Social Community Care,STAIRLIFTS - MNFRS & INSTALLER
DISABLED GRANTS               ,1165,NC&A OTHER                    ,04/07/2011,3069130,ERS INVOICE53013         ,6640.00,R B ALLAN & SONS                        ,540523,Construction,BUILDERS                      
MINOR WORK GRANTS             ,1165,NC&A OTHER                    ,04/07/2011,3069131,ERS INVOICE53014         ,1847.00,CHAPELTOWN GLASS WINDOW & FACIA COMPANY ,427494,Construction,DOUBLE GLAZING INSTALLERS     
CLAIMS                        ,8740,EMPLOYERS LIABILITY           ,04/07/2011,3069132,ERS INVOICE53015         ,7500.00,REDACTED PERSONAL DATA,554343,Unclassified Non Trade,OUT OF SCOPE FOR SIC MONITORIN
CLAIMS                        ,8740,EMPLOYERS LIABILITY           ,04/07/2011,3069133,ERS INVOICE53016         ,6498.38,DEPARTMENT FOR WORK & PENSIONS          ,326920,Unclassified Non Trade,CENTRAL GOVERNMENT            
TDLC                          ,9120,OTHER AGENCIES                ,04/07/2011,3069320,ERS INVOICE53027         ,1000.00,NHS PROVIDER SERVICES                   ,455606,Unclassified Non Trade,HEALTH AUTHORITIES            
STRENGTHENING PUBLIC HEALTH   ,9120,OTHER AGENCIES                ,04/07/2011,3069321,ERS INVOICE53028         ,600.00,CRESWICK GREAVE METHODIST CHURCH        ,554116,Unclassified Non Trade,PLACES OF WORSHIP             
STRENGTHENING PUBLIC HEALTH   ,9120,OTHER AGENCIES                ,04/07/2011,3069322,ERS INVOICE53029         ,535.00,GROW SHEFFIELD                          ,509289,Unclassified Non Trade,COMMUNITY PROJECTS            
STRENGTHENING PUBLIC HEALTH   ,9120,OTHER AGENCIES                ,04/07/2011,3069323,ERS INVOICE53030         ,535.00,GROW SHEFFIELD                          ,509289,Unclassified Non Trade,COMMUNITY PROJECTS            
STRENGTHENING PUBLIC HEALTH   ,9120,OTHER AGENCIES                ,04/07/2011,3069324,ERS INVOICE53031         ,535.00,GROW SHEFFIELD                          ,509289,Unclassified Non Trade,COMMUNITY PROJECTS            
MINOR WORK GRANTS             ,1165,NC&A OTHER                    ,04/07/2011,3069325,ERS INVOICE53032         ,2000.00,GOLDGLAZE LTD                           ,528255,Construction,DOUBLE GLAZING INSTALLERS     
STRENGTHENING PUBLIC HEALTH   ,9120,OTHER AGENCIES                ,04/07/2011,3069326,ERS INVOICE53033         ,875.00,FRIENDS OF OWLER BROOK                  ,554225,Social Community Care,NURSERIES & CRECHES           
CHILDRENS' FESTIVAL           ,8440,FEE EXPENSES                  ,04/07/2011,3069375,ERS INVOICE53082         ,500.00,LOVEBYTES LTD                           ,319294,Leisure Services,ARTS CENTRES                  
HIGHWAYS - FORGE VALLEY       ,1165,NC&A OTHER                    ,04/07/2011,3053480,YD20121499               ,18075.47,YEDL CASHIER                            ,353721,Utilities,ELECTRICITY COMPANIES         
FIR VALE EXPANSION            ,1161,NC&A MAIN CONTRACT            ,04/07/2011,3054052,VYO7217                  ,253164.18,INTERSERVE PROJECT SERVICES LTD         ,547901,Construction,BUILDERS                      
INTER AGENCY FEES             ,9120,OTHER AGENCIES                ,04/07/2011,3055890,43464,2686.00,ADOPTION MATTERS                        ,340890,Unclassified Non Trade,CHARITIES & VOLUNTARY ORGANISA
CITY WIDE CONTRACTS           ,8440,FEE EXPENSES                  ,04/07/2011,3056222,237,7660.00,HOME-START SHEFFIELD                    ,323471,Unclassified Non Trade,CHARITIES & VOLUNTARY ORGANISA
CITY WIDE CONTRACTS           ,8440,FEE EXPENSES                  ,04/07/2011,3056223,236,9012.00,HOME-START SHEFFIELD                    ,323471,Unclassified Non Trade,CHARITIES & VOLUNTARY ORGANISA
FURNISHED ACCOMMODATION       ,6020,VOID PAINTING INITIATIVE      ,04/07/2011,3063981,L06585                   ,570.00,BELL GROUP (LEEDS)                      ,441427,Construction,PAINTERS & DECORATORS         
MGT  & DELIVERY (BIG)         ,8440,FEE EXPENSES                  ,04/07/2011,3063989,104447,1075.00,YORKSHIRE FORWARD                       ,322766,Unclassified Non Trade,DEVELOPMENT AGENCIES          
PURCHASING ELDERLY            ,7060,EXTERNAL VEHICLE HIRE         ,04/07/2011,3064142,21002,1800.00,SHEFFIELD COMMUNITY TRANSPORT           ,296356,Unclassified Non Trade,CHARITIES & VOLUNTARY ORGANISA
RESOURCES EFFICIENCY NORTH    ,8460,CONSULTANTS FEES              ,04/07/2011,3064181,16377,16400.00,DIVA CREATIVE  LTD                      ,204401,Facilities Management,MARKETING CONSULTANTS & SERVIC
CITY STEWARDSHIP - GENERAL    ,6030,REPAIRS TO TENANTED PROPERTIES,04/07/2011,3064454,10120204,122907.99,KIER SHEFFIELD LLP                      ,352687,Construction,PROPERTY MAINTENANCE & REPAIRS
FURNISHED ACCOMMODATION       ,8050,SOFT FURNISHINGS              ,04/07/2011,3064555,15405,1260.00,ALLEN UPHOLSTERY                        ,295763,Furniture,FURNITURE MNFRS - HOME & OFFIC
FURNISHED ACCOMMODATION       ,8050,SOFT FURNISHINGS              ,04/07/2011,3064566,15406,1550.00,ALLEN UPHOLSTERY                        ,295763,Furniture,FURNITURE MNFRS - HOME & OFFIC
FURNISHED ACCOMMODATION       ,8050,SOFT FURNISHINGS              ,04/07/2011,3064577,15407,4680.00,ALLEN UPHOLSTERY                        ,295763,Furniture,FURNITURE MNFRS - HOME & OFFIC
YOUTH JUSTICE ISSP GRANT      ,9650,OTHER SERVICE RECHARGES       ,04/07/2011,3064732,6163,3429.49,SHEFFIELD FUTURES - URBAN LYNKS         ,335719,Medical ,COUNSELLING & ADVICE SERVICES 
YOUTH JUSTICE ISSP GRANT      ,9650,OTHER SERVICE RECHARGES       ,04/07/2011,3064735,6164,3419.16,SHEFFIELD FUTURES - URBAN LYNKS         ,335719,Medical ,COUNSELLING & ADVICE SERVICES 
CITY WIDE CONTRACTS           ,8440,FEE EXPENSES                  ,04/07/2011,3065526,R03INV/00004759          ,334313.00,ACTION FOR CHILDREN                     ,326212,Unclassified Non Trade,CHARITIES & VOLUNTARY ORGANISA
CITY WIDE CONTRACTS           ,8440,FEE EXPENSES                  ,04/07/2011,3065636,11/12Q2                  ,74763.00,COMMUNITY LEGAL ADVICE SERVICE          ,472004,Legal Services,LEGAL SERVICES                
PURCHASING ELDERLY            ,9160,PARTNERSHIP CONTRACTS         ,04/07/2011,3065720,INVOICE5                 ,1146.60,TOTAL WEST LTD                          ,315080,Social Community Care,Residential Care Homes
PURCHASING ELDERLY            ,9160,PARTNERSHIP CONTRACTS         ,04/07/2011,3065721,INVOICE6                 ,3949.40,TOTAL WEST LTD                          ,315080,Social Community Care,Residential Care Homes
CITY WIDE CONTRACTS           ,8440,FEE EXPENSES                  ,04/07/2011,3066511,140,31666.00,MANOR & CASTLE DEVELOPMENT TRUST        ,314473,Unclassified Non Trade,CHARITIES & VOLUNTARY ORGANISA
CITY WIDE CHILD CARE CONTRACT ,8440,FEE EXPENSES                  ,04/07/2011,3066516,139,27017.00,MANOR & CASTLE DEVELOPMENT TRUST        ,314473,Unclassified Non Trade,CHARITIES & VOLUNTARY ORGANISA
PURCHASING ELDERLY            ,9160,PARTNERSHIP CONTRACTS         ,04/07/2011,3066518,40879,11481.00,DARNALL DEMENTIA GROUP                  ,299898,Unclassified Non Trade,CHARITIES & VOLUNTARY ORGANISA
CITY WIDE CHILD CARE CONTRACT ,8440,FEE EXPENSES                  ,04/07/2011,3067518,40715,4688.00,OSBOURNE HOUSE COMMUNITY NRSY LTD       ,311900,Social Community Care,NURSERIES & CRECHES           
PUBLIC REALM OH AND SUPPORT   ,7020,VEHICLE FUEL COSTS            ,04/07/2011,3067713,6399925,1239.44,CARLTON FUELS LIMITED                   ,490002,Utilities,OIL FUEL DISTRIBUTORS         
PLAYGROUND MAINTENANCE & INSPE,8010,EQUIPMENT PURCHASE AND REPAIR ,04/07/2011,3067754,77906,3400.00,HAGUE PLANT LTD                         ,205330,Vehicles Not Buses,PLANT & MACHINERY HIRE & LEASI
SHEFFIELD HOMES ACCOMODATION  ,6030,REPAIRS AND MTCE - RESPONSIVE ,04/07/2011,3067758,871596,1552.59,NEIGHBOURHOODS DIRECTORATE (HOMES)      ,402953,Unclassified Non Trade,LOCAL GOVERNMENT              
MILLENIUM GALLERY LIFE CYCLE  ,1161,NC&A MAIN CONTRACT            ,04/07/2011,3067762,SIN001729                ,600.00,MUSEUMS SHEFFIELD                       ,519265,Leisure Services,MUSEUMS                       
FURNISHED ACCOMMODATION       ,6020,VOID PAINTING INITIATIVE      ,04/07/2011,3067764,L06617                   ,854.00,BELL GROUP (LEEDS)                      ,441427,Construction,PAINTERS & DECORATORS         
SEN PUPIL PLACEMENTS - EDUCAT ,9120,OTHER AGENCIES                ,04/07/2011,3067768,2900000133E              ,1782.50,CHEADLE ROYAL HOSPITAL                  ,504139,Unclassified Non Trade,HOSPITALS                     
FURNISHED ACCOMMODATION       ,6020,VOID PAINTING INITIATIVE      ,04/07/2011,3067774,L06615                   ,714.00,BELL GROUP (LEEDS)                      ,441427,Construction,PAINTERS & DECORATORS         
FURNISHED ACCOMMODATION       ,6020,VOID PAINTING INITIATIVE      ,04/07/2011,3067778,L06614                   ,584.00,BELL GROUP (LEEDS)                      ,441427,Construction,PAINTERS & DECORATORS         
FURNISHED ACCOMMODATION       ,6020,VOID PAINTING INITIATIVE      ,04/07/2011,3067781,L06613                   ,584.00,BELL GROUP (LEEDS)                      ,441427,Construction,PAINTERS & DECORATORS         
FURNISHED ACCOMMODATION       ,6020,VOID PAINTING INITIATIVE      ,04/07/2011,3067785,L06612                   ,584.00,BELL GROUP (LEEDS)                      ,441427,Construction,PAINTERS & DECORATORS         
FURNISHED ACCOMMODATION       ,6020,VOID PAINTING INITIATIVE      ,04/07/2011,3067789,L06611                   ,584.00,BELL GROUP (LEEDS)                      ,441427,Construction,PAINTERS & DECORATORS         
PLAYGROUND MAINTENANCE & INSPE,8010,EQUIPMENT PURCHASE AND REPAIR ,04/07/2011,3067826,78037,1093.51,HAGUE PLANT LTD                         ,205330,Vehicles Not Buses,PLANT & MACHINERY HIRE & LEASI
TRANSPORT FLEET MANAGEMENT    ,7060,EXTERNAL VEHICLE HIRE         ,04/07/2011,3067838,3247821,1000.00,LEEDS COMMERCIAL LTD                    ,446673,Vehicles Not Buses,CAR & TRUCK LEASING & CONTRACT
TRANSPORT FLEET MANAGEMENT    ,8020,EQUIPMENT LEASE/ RENTAL/ HIRE ,04/07/2011,3067844,F10198                   ,1270.00,SGM CONTRACTS LLP                       ,419459,Horticultural,LAWNMOWERS & GARDEN MACHINERY 
TRANSPORT FLEET MANAGEMENT    ,8020,EQUIPMENT LEASE/ RENTAL/ HIRE ,04/07/2011,3067847,F10286                   ,635.00,SGM CONTRACTS LLP                       ,419459,Horticultural,LAWNMOWERS & GARDEN MACHINERY 
FURNISHED ACCOMMODATION       ,6020,VOID PAINTING INITIATIVE      ,04/07/2011,3067874,L06618                   ,854.00,BELL GROUP (LEEDS)                      ,441427,Construction,PAINTERS & DECORATORS         
RESPONSIVE REPAIRS            ,6030,PURCHASE OF KEYS / SACKS      ,04/07/2011,3067949,117957,584.50,H HARROLD & SONS LTD                    ,205285,Facilities Management,LOCK SMITHS                   
CARFIELD                      ,1161,NC&A MAIN CONTRACT            ,04/07/2011,3068064,ED03212/6                ,57600.00,KIER SHEFFIELD LLP                      ,352687,Construction,PROPERTY MAINTENANCE & REPAIRS
POPULATION GROWTH - F&DESIGN  ,1161,NC&A MAIN CONTRACT            ,04/07/2011,3068065,ED03217/9                ,310100.00,WILLMOTT DIXON CAPITAL WORKS LIMITED    ,544310,Construction,BUILDERS                      
POPULATION GROWTH - F&DESIGN  ,1161,NC&A MAIN CONTRACT            ,04/07/2011,3068066,ED03293/2                ,14700.00,IDEAL BUILDING SYSTEMS LIMITED          ,492867,Construction,BUILDINGS - SECTIONAL & PORTAB
WORKSTYLE REDVERS             ,8440,FEE EXPENSES                  ,04/07/2011,3068067,CE03311/1                ,45500.00,KIER SHEFFIELD LLP                      ,352687,Construction,PROPERTY MAINTENANCE & REPAIRS
WALKLEY                       ,1161,NC&A MAIN CONTRACT            ,04/07/2011,3068068,ED03214/6                ,64700.00,KIER SHEFFIELD LLP                      ,352687,Construction,PROPERTY MAINTENANCE & REPAIRS
PARSON CROSS LIBRARY PROJECT  ,1194,OTHER FEES                    ,04/07/2011,3068069,LS01898/13               ,87400.00,QUARMBY CONSTRUCTION COMPANY LTD        ,533202,Construction,CONSTRUCTION CONTRACTORS - GEN
PARKS OPERATIONS EAST         ,8060,MATERIALS AND SUPPLIES GENERAL,04/07/2011,3068886,41025,1200.00,CRYSTALS LTD                            ,455044,Construction,TENNIS COURTS & SPORTS SURFACE
NORTON NURSERY                ,8060,MATERIALS AND SUPPLIES GENERAL,04/07/2011,3068887,2060384,972.00,EAST RIDING HORTICULTURE LTD            ,204576,Horticultural,HORTICULTURAL EQUIPMENT & SUPP
NORTON NURSERY                ,8060,MATERIALS AND SUPPLIES GENERAL,04/07/2011,3068904,37893,814.50,TILLAGE SPECIALIST GROWERS              ,454097,Horticultural,NURSERIES - WHOLESALE         
INCOME MANAGEMENT UNIT        ,8370,PRINTING                      ,04/07/2011,3068941,871486,577.68,DESIGN & PRINT SERVICE (SHEFFIELD HOMES),387617,Facilities Management,PRINTERS                      
SECURE PLACEMENTS             ,9270,SECURE PLACEMENTS - REMAND    ,04/07/2011,3068983,QC10263                  ,897.00,QUAYSIDE CARE                           ,317889,Social Community Care,SOCIAL SERVICES               
YOUTH JUSTICE ISSP GRANT      ,6280,HIRE OF PREMISES              ,04/07/2011,3069072,11628,1108.00,BURTON STREET PROJECT                   ,342774,Unclassified Non Trade,CHARITIES & VOLUNTARY ORGANISA
SECURE PLACEMENTS             ,9270,SECURE PLACEMENTS - REMAND    ,04/07/2011,3069076,QC10270                  ,759.00,QUAYSIDE CARE                           ,317889,Social Community Care,SOCIAL SERVICES               
SECURE PLACEMENTS             ,9270,SECURE PLACEMENTS - REMAND    ,04/07/2011,3069078,QC10272                  ,552.00,QUAYSIDE CARE                           ,317889,Social Community Care,SOCIAL SERVICES               
DISTRICT HEATING GENERAL      ,6140,SOLID FUEL                    ,04/07/2011,3068072,INV-0585                 ,3596.64,SILVAPOWER LTD                          ,406670,Building Construction Materials,SAWMILLS & WOOD SHAVINGS      
DISTRICT HEATING GENERAL      ,6140,SOLID FUEL                    ,04/07/2011,3068073,INV-0584                 ,1158.24,SILVAPOWER LTD                          ,406670,Building Construction Materials,SAWMILLS & WOOD SHAVINGS      
DISTRICT HEATING GENERAL      ,6160,GAS                           ,04/07/2011,3068133,3669279/S1862698         ,2255.43,BRITISH GAS BUSINESS                    ,370790,Utilities,GAS COMPANIES                 
HILLSBOROUGH PARK             ,6190,WATER SERVICES                ,04/07/2011,3068230,800682203/1              ,1939.32,YORKSHIRE WATER PLC                     ,295854,Utilities,WATER COMPANIES               
REPRESENTATIVE MANAGEMENT     ,6280,HIRE OF PREMISES              ,05/07/2011,3062371,1002424690,995.00,COMPASS GROUP LTD                       ,530602,Catering,CATERERS                      
PARKS OPERATIONS NORTH        ,7020,VEHICLE FUEL COSTS            ,05/07/2011,3069714,6415115,1449.36,CARLTON FUELS LIMITED                   ,490002,Utilities,OIL FUEL DISTRIBUTORS         
CLAIMS                        ,8740,EMPLOYERS LIABILITY           ,05/07/2011,3069952,ERS INVOICE53086         ,57659.11,RUSSELL JONES & WALKER                  ,350698,Legal Services,SOLICITORS                    
CLAIMS                        ,8740,EMPLOYERS LIABILITY           ,05/07/2011,3069953,ERS INVOICE53087         ,22500.00,THOMPSONS CLIENT ACCOUNT                ,505870,Legal Services,SOLICITORS                    
COMPLAINTS                    ,8460,CONSULTANTS FEES              ,05/07/2011,3069955,ERS INVOICE53091         ,552.12,JOHN FARRAR                             ,505273,Consultancy,BUSINESS & MANAGEMENT CONSULTA
COMMUNITY BASED CHILDCARE     ,8440,FEE EXPENSES                  ,05/07/2011,3070083,ERS INVOICE53103         ,2000.00,REBECCA BERGMANN                        ,510453,Education,BOOKSELLERS                   
FUTURE SHAPE-LEARNING         ,8240,CONFERENCE EXPENSES           ,05/07/2011,3070084,ERS INVOICE53104         ,991.10,PROFESSOR DAVID H HARGREAVES            ,552513,Leisure Services,PROFESSIONAL SPEAKERS         
ADOPTION SUPPORT              ,9120,OTHER AGENCIES                ,05/07/2011,3070085,ERS INVOICE53105         ,523.80,REDACTED PERSONAL DATA,554080,Unclassified Non Trade,OUT OF SCOPE FOR SIC MONITORIN
COMMUNITY ASSEMBLY EAST       ,9120,OTHER AGENCIES                ,05/07/2011,3070093,ERS INVOICE53114         ,750.00,STRADBROKE PRIMARY SCHOOL               ,507984,Unclassified Non Trade,SCHOOLS - LOCAL AUTHORITY     
SCC INTERNAL PROG. COSTS - W4 ,1194,OTHER FEES                    ,05/07/2011,3070095,ERS INVOICE53116         ,775.00,REDACTED PERSONAL DATA,484204,Unclassified Non Trade,OUT OF SCOPE FOR SIC MONITORIN
DELEGATED BUDGETS             ,9120,OTHER AGENCIES                ,05/07/2011,3070096,ERS INVOICE53117         ,24159.74,AON LIMITED                             ,319158,Financial Services,INSURANCE - OTHER             
ALDINE HOUSE                  ,5610,AGENCY STAFF                  ,05/07/2011,3070097,ERS INVOICE53118         ,1440.00,REDACTED PERSONAL DATA,543584,Unclassified Non Trade,OUT OF SCOPE FOR SIC MONITORIN
LAEF                          ,1165,NC&A OTHER                    ,05/07/2011,3031963,5981,1132.00,ENERGY SYSTEMS (CPM) LTD                ,204667,Environmental Services,CONTROL SYSTEM EQUIPMENT      
MILLENIUM GALLERY LIFE CYCLE  ,1161,NC&A MAIN CONTRACT            ,05/07/2011,3034965,SIN001697                ,25097.00,MUSEUMS SHEFFIELD                       ,380579,Leisure Services,MUSEUMS                       
ENERGY -SCHEME                ,8440,FEE EXPENSES                  ,05/07/2011,3038940,5987,850.00,ENERGY SYSTEMS (CPM) LTD                ,204667,Environmental Services,CONTROL SYSTEM EQUIPMENT      
CORONIAL SERVICES             ,8100,RECHARGEABLE PURCHASES        ,05/07/2011,3052964,6012507,7100.16,BARNSLEY HOSPITAL NHS FT                ,308864,Unclassified Non Trade,HOSPITALS                     
FIRTH PARK                    ,1161,NC&A MAIN CONTRACT            ,05/07/2011,3054058,637,217661.43,SHEFFIELD LEP LTD                       ,482230,Unclassified Non Trade,LOCAL GOVERNMENT              
SHEFFIELD TOURISM             ,8350,MISCELLANEOUS EXPENSES        ,05/07/2011,3058549,1554,4790.00,EVANS FAMILY LTD                        ,205764,Facilities Management,PRINTERS                      
CAPITAL DELIVERY              ,8390,STATIONERY                    ,05/07/2011,3058661,SINV00208378             ,535.48,R A ROBERTS (OFFICE EQUIPMENT) LTD      ,207777,Furniture,OFFICE FURNITURE & EQUIPMENT  
DCEX/RESOURCES/PLACE          ,8490,TRANSLATN/SIGN/INTERPRET FEES ,05/07/2011,3059725,17881,1573.44,LANGUAGE LINE LIMITED                   ,471915,Human Resources,TRANSLATORS & INTERPRETERS    
HIGHFIELDS ADVENTURE PLAYGROUN,8010,EQUIPMENT PURCHASE AND REPAIR ,05/07/2011,3062840,P02807217                ,573.78,ARNOLD LAVER & CO LTD                   ,302585,Building Construction Materials,"TIMBER MERCHANTS, IMPORTERS & "
CORPORATE LEASING             ,7070,OPERATING LEASES              ,05/07/2011,3063294,ILCXSM10105              ,7354.00,BANK OF SCOTLAND ASSET FINANCE          ,493552,Financial Services,BANKS & OTHER FINANCIAL INSTIT
CITY WIDE CHILD CARE CONTRACT ,8440,FEE EXPENSES                  ,05/07/2011,3064071,CGF07-09/11              ,12497.00,EL-NISAH                                ,404020,Social Community Care,NURSERIES & CRECHES           
COMPLEX NEEDS                 ,5010,GENERAL BASIC PAY             ,05/07/2011,3065512,2100064492,1442.01,SHEFFIELD CARE TRUST                    ,455262,Unclassified Non Trade,CHARITIES & VOLUNTARY ORGANISA
COMPLEX NEEDS                 ,5010,GENERAL BASIC PAY             ,05/07/2011,3065514,2100064489,1442.01,SHEFFIELD CARE TRUST                    ,455262,Unclassified Non Trade,CHARITIES & VOLUNTARY ORGANISA
COMPLEX NEEDS                 ,5010,GENERAL BASIC PAY             ,05/07/2011,3065595,2100064493,1442.01,SHEFFIELD CARE TRUST                    ,455262,Unclassified Non Trade,CHARITIES & VOLUNTARY ORGANISA
MILLENIUM GALLERY LIFE CYCLE  ,1161,NC&A MAIN CONTRACT            ,05/07/2011,3065788,SIN001722                ,12623.67,MUSEUMS SHEFFIELD                       ,380579,Leisure Services,MUSEUMS                       
ADOPTION SUPPORT              ,8440,FEE EXPENSES                  ,05/07/2011,3066472,43426,1800.00,YORKSHIRE ADOPTION AGENCY LTD           ,347957,Social Community Care,ADOPTION & FOSTERING          
SOCIAL SERVICES LOCATION PLACE,9050,OTHER LOCAL AUTHORITIES       ,05/07/2011,3066493,8004060590,9592.22,STAFFORDSHIRE COUNTY COUNCIL            ,329191,Unclassified Non Trade,LOCAL GOVERNMENT              
EVENTS IN PARKS               ,8200,EVENTS EXPENDITURE            ,05/07/2011,3066501,21048,1535.00,SHEFFIELD COMMUNITY TRANSPORT (WORKSHOP),297061,Unclassified Non Trade,CHARITIES & VOLUNTARY ORGANISA
EVENTS IN PARKS               ,8200,EVENTS EXPENDITURE            ,05/07/2011,3067122,1017,13000.00,MOBILE STADIUMS LIMITED                 ,491261,Leisure Services,"MARQUEES, TENTS & PORTABLE FLO"
MOBILITY STRATEGY TEAM        ,5610,AGENCY STAFF                  ,05/07/2011,3067213,CTL5073                  ,1147.50,CENTRAL TRAVEL SHEFFIELD LTD            ,203630,Transport,TAXIS & PRIVATE HIRE          
MOBILITY STRATEGY TEAM        ,5610,AGENCY STAFF                  ,05/07/2011,3067220,CTL5075                  ,1275.00,CENTRAL TRAVEL SHEFFIELD LTD            ,203630,Transport,TAXIS & PRIVATE HIRE          
FURNISHED ACCOMMODATION       ,8050,FLOOR COVERINGS               ,05/07/2011,3067359,13501,774.00,PYRAMID CARPETS                         ,243612,Building Construction Materials,CARPETS & RUGS - RETAIL       
FURNISHED ACCOMMODATION       ,8050,FLOOR COVERINGS               ,05/07/2011,3067406,13504,754.00,PYRAMID CARPETS                         ,243612,Building Construction Materials,CARPETS & RUGS - RETAIL       
CARE4YOU EQUIPMENT            ,8110,"CLOTHING, UNIFORM AND LAUNDRY ",05/07/2011,3067782,13067,509.60,BLUE DIAMOND HYGIENE SUPPLIES           ,203403,Cleaning and Janitorial,TOWEL SUPPLY & WASHROOM SERVIC
COMMUNITY BUILDINGS           ,6080,CONTRACT CLEANING             ,05/07/2011,3067790,3655,619.83,CLEAN AND BRIGHT                        ,363368,Cleaning and Janitorial,CLEANING SERVICES - DOMESTIC  
VSP DELIVER                   ,9140,PRIVATE CONTRACTORS           ,05/07/2011,3067829,TGT/047                  ,1379.42,TINSLEY PARENTS & CHILDRENS CONSORTIUM  ,478244,Social Community Care,NURSERIES & CRECHES           
VSP DELIVER                   ,9120,OTHER AGENCIES                ,05/07/2011,3067831,TGT/046                  ,775.57,TINSLEY PARENTS & CHILDRENS CONSORTIUM  ,478244,Social Community Care,NURSERIES & CRECHES           
14-16 NEETS                   ,9120,OTHER AGENCIES                ,05/07/2011,3067943,3375,4310.00,PROGRESSIVE EDUCATIONAL TOOLS LTD.      ,454271,Education,EDUCATIONAL EQUIPMENT & SUPPLI
14-16 NEETS                   ,9120,OTHER AGENCIES                ,05/07/2011,3067947,3372,7850.00,PROGRESSIVE EDUCATIONAL TOOLS LTD.      ,454271,Education,EDUCATIONAL EQUIPMENT & SUPPLI
14-16 NEETS                   ,9120,OTHER AGENCIES                ,05/07/2011,3067950,3376,6765.00,PROGRESSIVE EDUCATIONAL TOOLS LTD.      ,454271,Education,EDUCATIONAL EQUIPMENT & SUPPLI
HOWDEN HOUSE (PF1)            ,6020,REPAIRS AND MTCE - PROGRAMMED ,05/07/2011,3068048,11061063,88526.87,TAYLOR WOODROW CONSTRUCTION             ,531232,Construction,BUILDERS                      
VSP DELIVER                   ,9120,OTHER AGENCIES                ,05/07/2011,3068056,10/11SH10                ,8473.40,DIMENSIONS TRAINING SOLUTIONS           ,433070,Education,HAIRDRESSING SCHOOLS          
LENDING SERVICES GENERAL      ,8010,EQUIPMENT PURCHASE AND REPAIR ,05/07/2011,3068934,1456,620.00,THE DESIGNCONCEPT LTD                   ,549521,Facilities Management,Interior Designers & Furnishers
FSSG                          ,8440,FEE EXPENSES                  ,05/07/2011,3068935,41691,43483.00,VELOS-IT LTD                            ,473485,Consultancy,COMPUTER SYSTEMS & SOFTWARE (D
VSP DELIVER                   ,8490,EXAM FEES                     ,05/07/2011,3068942,10000563,685.80,LEARNING WORLD                          ,548077,Education,EDUCATIONAL TRAINING PROVIDERS
VSP DELIVER                   ,9140,PRIVATE CONTRACTORS           ,05/07/2011,3068944,10000552,711.20,LEARNING WORLD                          ,548077,Education,EDUCATIONAL TRAINING PROVIDERS
VSP DELIVER                   ,9140,PRIVATE CONTRACTORS           ,05/07/2011,3068945,10000553,711.20,LEARNING WORLD                          ,548077,Education,EDUCATIONAL TRAINING PROVIDERS
VSP DELIVER                   ,9140,PRIVATE CONTRACTORS           ,05/07/2011,3068947,10000551,584.20,LEARNING WORLD                          ,548077,Education,EDUCATIONAL TRAINING PROVIDERS
PERFORMANCE IMPROV & PROJECTS ,8620,COMPUTER SOFTWARE LICENCES    ,05/07/2011,3068949,105251155,784.00,IBM UNITED KINGDOM LTD                  ,554163,ICT,COMPUTER MNFRS                
EVENTS IN PARKS               ,8200,EVENTS EXPENDITURE            ,05/07/2011,3068977,2001/03077846            ,1847.00,TIMBER SPECIALISTS (SHEFFIELD) LTD.     ,209055,Building Construction Materials,"TIMBER MERCHANTS, IMPORTERS & "
SNIPS                         ,8390,STATIONERY                    ,05/07/2011,3069005,K2/I394734               ,503.42,XMA LIMITED                             ,480777,ICT,COMPUTER CONSUMABLES & STATION
VSP DELIVER                   ,9140,PRIVATE CONTRACTORS           ,05/07/2011,3069073,10000550,3556.00,LEARNING WORLD                          ,548077,Education,EDUCATIONAL TRAINING PROVIDERS
ELECTORAL REGISTRATION        ,8020,EQUIPMENT LEASE/ RENTAL/ HIRE ,05/07/2011,3069089,413870,1030.98,NEOPOST FINANCE LIMITED                 ,207084,Financial Services,LEASING SERVICES              
NEETS 16+                     ,9120,OTHER AGENCIES                ,05/07/2011,3069104,43422,939.00,SHEFFIELD INDEPENDENT FILM AND TELEVISIO,534504,Leisure Services,FILM STUDIOS & PRODUCTION SERV
CLAIMS                        ,8470,LEGAL FEES                    ,05/07/2011,3069181,CITY/3121479/V/1/1       ,1620.33,KENNEDYS LAW LLP                        ,543971,Legal Services,SOLICITORS                    
CLAIMS                        ,8470,LEGAL FEES                    ,05/07/2011,3069183,CITY/3121477/V/1/1       ,690.00,KENNEDYS LAW LLP                        ,543971,Legal Services,SOLICITORS                    
CLAIMS                        ,8470,LEGAL FEES                    ,05/07/2011,3069185,CITY/3121474/V/1/1       ,897.00,KENNEDYS LAW LLP                        ,543971,Legal Services,SOLICITORS                    
HERITAGE WOODLANDS            ,8260,WOODLAND DEVELOPMENT EXPENSES ,05/07/2011,3069189,20433,800.00,CONTROL UNION (UK) LTD                  ,464557,Mail Services,SHIPPING COMPANIES            
CLAIMS                        ,8470,LEGAL FEES                    ,05/07/2011,3069198,CITY/3120804/V/1/1       ,625.00,KENNEDYS LAW LLP                        ,543971,Legal Services,SOLICITORS                    
CLAIMS                        ,8470,LEGAL FEES                    ,05/07/2011,3069203,CITY/3120809/V/1/1       ,625.00,KENNEDYS LAW LLP                        ,543971,Legal Services,SOLICITORS                    
CLAIMS                        ,8470,LEGAL FEES                    ,05/07/2011,3069214,CITY/3120811/V/1/1       ,625.00,KENNEDYS LAW LLP                        ,543971,Legal Services,SOLICITORS                    
ENERGY -SCHEME                ,8440,FEE EXPENSES                  ,05/07/2011,3069219,800686764,48617.82,YORKSHIRE WATER                         ,362345,Utilities,WATER COMPANIES               
KEY STAGE 3 INCLUSION CENTRE  ,5610,AGENCY STAFF - INVOICE        ,05/07/2011,3069253,3440078,563.55,CAPITA EDUCATION RESOURCING             ,203721,Human Resources,EMPLOYMENT & RECRUITMENT AGENC
KEY STAGE 3 INCLUSION CENTRE  ,5610,AGENCY STAFF - INVOICE        ,05/07/2011,3069254,3440077,563.55,CAPITA EDUCATION RESOURCING             ,203721,Human Resources,EMPLOYMENT & RECRUITMENT AGENC
KEY STAGE 3 INCLUSION CENTRE  ,5610,AGENCY STAFF - INVOICE        ,05/07/2011,3069260,3440073,613.55,CAPITA EDUCATION RESOURCING             ,203721,Human Resources,EMPLOYMENT & RECRUITMENT AGENC
KEY STAGE 3 INCLUSION CENTRE  ,5610,AGENCY STAFF - INVOICE        ,05/07/2011,3069261,3440072,914.00,CAPITA EDUCATION RESOURCING             ,203721,Human Resources,EMPLOYMENT & RECRUITMENT AGENC
KEY STAGE 3 INCLUSION CENTRE  ,5610,AGENCY STAFF - INVOICE        ,05/07/2011,3069262,3440071,563.55,CAPITA EDUCATION RESOURCING             ,203721,Human Resources,EMPLOYMENT & RECRUITMENT AGENC
KEY STAGE 3 INCLUSION CENTRE  ,5610,AGENCY STAFF - INVOICE        ,05/07/2011,3069263,3440070,1047.50,CAPITA EDUCATION RESOURCING             ,203721,Human Resources,EMPLOYMENT & RECRUITMENT AGENC
KEY STAGE 3 INCLUSION CENTRE  ,5610,AGENCY STAFF - INVOICE        ,05/07/2011,3069265,3440069,583.50,CAPITA EDUCATION RESOURCING             ,203721,Human Resources,EMPLOYMENT & RECRUITMENT AGENC
HOSPITAL SOCIAL WORK - GENERAL,7160,CAR PARKING SPACES AND FEES   ,05/07/2011,3069270,4000283738,1169.86,SHEFFIELD TEACHING HOSPITAL NHS         ,309216,Unclassified Non Trade,HOSPITALS                     
VSP DELIVER                   ,9140,PRIVATE CONTRACTORS           ,05/07/2011,3069288,4314,4371.99,HEELEY CITY FARM                        ,301277,Unclassified Non Trade,CHARITIES & VOLUNTARY ORGANISA
LEARNING DIS DEVELOPMENT FUND ,9120,OTHER AGENCIES                ,05/07/2011,3069312,1674,3060.00,SHEFFIELD MENCAP & GATEWAY              ,328741,Unclassified Non Trade,CHARITIES & VOLUNTARY ORGANISA
CAPITA CONTROL A/C            ,9620,FINANCIAL PROCESSES           ,05/07/2011,3069700,92106710,1829965.00,CAPITA BUSINESS SERVICES LTD            ,505663,Human Resources,BUSINESS INFORMATION SERVICES 
HOLDBACK ACCOUNT              ,8440,FEE EXPENSES                  ,05/07/2011,3069733,2100050129,19213.00,NHS PROVIDER SERVICES                   ,455606,Unclassified Non Trade,HEALTH AUTHORITIES            
CITY WIDE CHILD CARE CONTRACT ,8440,FEE EXPENSES                  ,05/07/2011,3069755,S64                      ,25487.00,HANDSWORTH COMMUNITY NURSERY            ,297395,Social Community Care,NURSERIES & CRECHES           
CITY WIDE CHILD CARE CONTRACT ,8440,FEE EXPENSES                  ,05/07/2011,3069836,G82117                   ,3750.00,NDNA                                    ,335727,Social Community Care,CHILDCARE SERVICES            
CORONIAL SERVICES             ,8440,FEE EXPENSES                  ,05/07/2011,3069862,2100133860,2028.00,SHEFFIELD CHILDRENS HOSPITAL            ,489904,Unclassified Non Trade,HOSPITALS                     
MINIBUSES - SHEFFTAX TENDERED ,7060,EXTERNAL VEHICLE HIRE         ,05/07/2011,3069977,916,52402.12,SHEFFIELD TAXI SERVICES LTD             ,208407,Transport,TAXIS & PRIVATE HIRE          
MAINSTREAM TRANSPORT          ,7060,EXTERNAL VEHICLE HIRE         ,05/07/2011,3069978,917,1664.00,SHEFFIELD TAXI SERVICES LTD             ,208407,Transport,TAXIS & PRIVATE HIRE          
PURCHASING ELDERLY            ,9190,DIRECT PAYMENTS               ,05/07/2011,3069560,J384751                  ,600.75,REDACTED PERSONAL DATA,554144,Social Community Care,CAREFIRST DIRECT PAYMENTS     
PHYSICAL DISABILITIES PURCHASI,9190,DIRECT PAYMENTS               ,05/07/2011,3069561,J384751                  ,583.02,REDACTED PERSONAL DATA,554148,Social Community Care,CAREFIRST DIRECT PAYMENTS     
PURCHASING LEARNING DISABILITI,9250,INDEPENDENT DAY CARE          ,05/07/2011,3069563,11727,1153.20,BURTON STREET PROJECT                   ,342774,Unclassified Non Trade,CHARITIES & VOLUNTARY ORGANISA
PURCHASING LEARNING DISABILITI,9250,INDEPENDENT DAY CARE          ,05/07/2011,3069564,11728,1340.00,BURTON STREET PROJECT                   ,342774,Unclassified Non Trade,CHARITIES & VOLUNTARY ORGANISA
PURCHASING LEARNING DISABILITI,9250,INDEPENDENT DAY CARE          ,05/07/2011,3069565,11729,878.40,BURTON STREET PROJECT                   ,342774,Unclassified Non Trade,CHARITIES & VOLUNTARY ORGANISA
PURCHASING LEARNING DISABILITI,9250,INDEPENDENT DAY CARE          ,05/07/2011,3069567,Y/13/164875              ,1998.40,H F TRUST LIMITED                       ,362078,Unclassified Non Trade,CHARITIES & VOLUNTARY ORGANISA
PURCHASING LEARNING DISABILITI,9250,INDEPENDENT DAY CARE          ,05/07/2011,3069568,11731,684.00,BURTON STREET PROJECT                   ,342774,Unclassified Non Trade,CHARITIES & VOLUNTARY ORGANISA
PURCHASING LEARNING DISABILITI,9250,INDEPENDENT DAY CARE          ,05/07/2011,3069569,Y/14/166516              ,1998.40,H F TRUST LIMITED                       ,362078,Unclassified Non Trade,CHARITIES & VOLUNTARY ORGANISA
PURCHASING LEARNING DISABILITI,9250,INDEPENDENT DAY CARE          ,05/07/2011,3069571,Z/1/167647               ,1998.40,H F TRUST LIMITED                       ,362078,Unclassified Non Trade,CHARITIES & VOLUNTARY ORGANISA
PURCHASING LEARNING DISABILITI,9250,INDEPENDENT DAY CARE          ,05/07/2011,3069573,Z/2/169429               ,1998.40,H F TRUST LIMITED                       ,362078,Unclassified Non Trade,CHARITIES & VOLUNTARY ORGANISA
PURCHASING LEARNING DISABILITI,9250,INDEPENDENT DAY CARE          ,05/07/2011,3069574,Z/3/171099               ,1998.40,H F TRUST LIMITED                       ,362078,Unclassified Non Trade,CHARITIES & VOLUNTARY ORGANISA
PURCHASING LEARNING DISABILITI,9250,INDEPENDENT DAY CARE          ,05/07/2011,3069575,Z/3/172188               ,2015.48,H F TRUST LIMITED                       ,362078,Unclassified Non Trade,CHARITIES & VOLUNTARY ORGANISA
PURCHASING LEARNING DISABILITI,9250,INDEPENDENT DAY CARE          ,05/07/2011,3069576,184/1                    ,2458.80,THE GOOD DAYS PROJECT                   ,532126,Unclassified Non Trade,CHARITIES & VOLUNTARY ORGANISA
PURCHASING LEARNING DISABILITI,9250,INDEPENDENT DAY CARE          ,05/07/2011,3069577,2536,516.00,BURTON STREET PROJECT                   ,342774,Unclassified Non Trade,CHARITIES & VOLUNTARY ORGANISA
PURCHASING LEARNING DISABILITI,9190,CITYWIDE SPOT                 ,05/07/2011,3069579,J384989 260611           ,5631.13,CITIZENSHIP FIRST                       ,329379,Unclassified Non Trade,CHARITIES & VOLUNTARY ORGANISA
PURCHASING                    ,9190,CITYWIDE SPOT                 ,05/07/2011,3069579,J384989 260611           ,1113.80,CITIZENSHIP FIRST                       ,329379,Unclassified Non Trade,CHARITIES & VOLUNTARY ORGANISA
PURCHASING ELDERLY            ,9190,CITYWIDE SPOT                 ,05/07/2011,3069579,J384989 260611           ,4521.15,CITIZENSHIP FIRST                       ,329379,Unclassified Non Trade,CHARITIES & VOLUNTARY ORGANISA
PHYSICAL DISABILITIES PURCHASI,9190,CITYWIDE SPOT                 ,05/07/2011,3069579,J384989 260611           ,1936.58,CITIZENSHIP FIRST                       ,329379,Unclassified Non Trade,CHARITIES & VOLUNTARY ORGANISA
PURCHASING LEARNING DISABILITI,9230,CCSP TRANSPORT                ,05/07/2011,3069581,SEN013352                ,807.72,SENSE                                   ,361885,Unclassified Non Trade,CHARITIES & VOLUNTARY ORGANISA
PURCHASING LEARNING DISABILITI,9190,CITYWIDE SPOT                 ,05/07/2011,3069583,Y/13/164876              ,1445.52,H F TRUST LIMITED                       ,362078,Unclassified Non Trade,CHARITIES & VOLUNTARY ORGANISA
PURCHASING LEARNING DISABILITI,9190,CITYWIDE SPOT                 ,05/07/2011,3069584,Y/13/165113              ,1100.44,H F TRUST LIMITED                       ,362078,Unclassified Non Trade,CHARITIES & VOLUNTARY ORGANISA
PURCHASING LEARNING DISABILITI,9190,CITYWIDE SPOT                 ,05/07/2011,3069585,Y/13/165115              ,1662.12,H F TRUST LIMITED                       ,362078,Unclassified Non Trade,CHARITIES & VOLUNTARY ORGANISA
PURCHASING LEARNING DISABILITI,9190,CITYWIDE SPOT                 ,05/07/2011,3069586,Y/13/165116              ,5650.28,H F TRUST LIMITED                       ,362078,Unclassified Non Trade,CHARITIES & VOLUNTARY ORGANISA
PURCHASING LEARNING DISABILITI,9190,CITYWIDE SPOT                 ,05/07/2011,3069587,Y/13/165118              ,1015.96,H F TRUST LIMITED                       ,362078,Unclassified Non Trade,CHARITIES & VOLUNTARY ORGANISA
PURCHASING LEARNING DISABILITI,9190,CITYWIDE SPOT                 ,05/07/2011,3069588,Y/13/166128              ,1216.44,H F TRUST LIMITED                       ,362078,Unclassified Non Trade,CHARITIES & VOLUNTARY ORGANISA
PURCHASING LEARNING DISABILITI,9190,CITYWIDE SPOT                 ,05/07/2011,3069589,Y/14/166517              ,1445.52,H F TRUST LIMITED                       ,362078,Unclassified Non Trade,CHARITIES & VOLUNTARY ORGANISA
PURCHASING LEARNING DISABILITI,9190,CITYWIDE SPOT                 ,05/07/2011,3069590,Y/14/166600              ,723.08,H F TRUST LIMITED                       ,362078,Unclassified Non Trade,CHARITIES & VOLUNTARY ORGANISA
PURCHASING LEARNING DISABILITI,9190,CITYWIDE SPOT                 ,05/07/2011,3069591,Y/14/166601              ,1662.12,H F TRUST LIMITED                       ,362078,Unclassified Non Trade,CHARITIES & VOLUNTARY ORGANISA
PURCHASING LEARNING DISABILITI,9190,CITYWIDE SPOT                 ,05/07/2011,3069592,Y/14/166602              ,5650.28,H F TRUST LIMITED                       ,362078,Unclassified Non Trade,CHARITIES & VOLUNTARY ORGANISA
PURCHASING LEARNING DISABILITI,9190,CITYWIDE SPOT                 ,05/07/2011,3069593,Y/14/166603              ,2749.40,H F TRUST LIMITED                       ,362078,Unclassified Non Trade,CHARITIES & VOLUNTARY ORGANISA
PURCHASING LEARNING DISABILITI,9190,CITYWIDE SPOT                 ,05/07/2011,3069594,Y/14/166604              ,1015.96,H F TRUST LIMITED                       ,362078,Unclassified Non Trade,CHARITIES & VOLUNTARY ORGANISA
PURCHASING LEARNING DISABILITI,9190,CITYWIDE SPOT                 ,05/07/2011,3069595,Y/14/166605              ,715.68,H F TRUST LIMITED                       ,362078,Unclassified Non Trade,CHARITIES & VOLUNTARY ORGANISA
PURCHASING LEARNING DISABILITI,9190,CITYWIDE SPOT                 ,05/07/2011,3069597,Y13/165114               ,723.08,H F TRUST LIMITED                       ,362078,Unclassified Non Trade,CHARITIES & VOLUNTARY ORGANISA
PURCHASING LEARNING DISABILITI,9190,CITYWIDE SPOT                 ,05/07/2011,3069598,Z/1/167648               ,1445.52,H F TRUST LIMITED                       ,362078,Unclassified Non Trade,CHARITIES & VOLUNTARY ORGANISA
PURCHASING LEARNING DISABILITI,9190,CITYWIDE SPOT                 ,05/07/2011,3069599,Z/1/167872               ,1100.44,H F TRUST LIMITED                       ,362078,Unclassified Non Trade,CHARITIES & VOLUNTARY ORGANISA
PURCHASING LEARNING DISABILITI,9190,CITYWIDE SPOT                 ,05/07/2011,3069600,Z/1/167873               ,723.08,H F TRUST LIMITED                       ,362078,Unclassified Non Trade,CHARITIES & VOLUNTARY ORGANISA
PURCHASING LEARNING DISABILITI,9190,CITYWIDE SPOT                 ,05/07/2011,3069601,Z/1/167874               ,1662.12,H F TRUST LIMITED                       ,362078,Unclassified Non Trade,CHARITIES & VOLUNTARY ORGANISA
PURCHASING LEARNING DISABILITI,9190,CITYWIDE SPOT                 ,05/07/2011,3069602,Z/1/167875               ,5650.28,H F TRUST LIMITED                       ,362078,Unclassified Non Trade,CHARITIES & VOLUNTARY ORGANISA
PURCHASING LEARNING DISABILITI,9190,CITYWIDE SPOT                 ,05/07/2011,3069603,Z/1/167877               ,1015.96,H F TRUST LIMITED                       ,362078,Unclassified Non Trade,CHARITIES & VOLUNTARY ORGANISA
PURCHASING LEARNING DISABILITI,9190,CITYWIDE SPOT                 ,05/07/2011,3069604,Z/1/167878               ,715.68,H F TRUST LIMITED                       ,362078,Unclassified Non Trade,CHARITIES & VOLUNTARY ORGANISA
PURCHASING LEARNING DISABILITI,9190,CITYWIDE SPOT                 ,05/07/2011,3069606,Z/2/169430               ,1445.52,H F TRUST LIMITED                       ,362078,Unclassified Non Trade,CHARITIES & VOLUNTARY ORGANISA
PURCHASING LEARNING DISABILITI,9190,CITYWIDE SPOT                 ,05/07/2011,3069607,Z/2/169662               ,1100.44,H F TRUST LIMITED                       ,362078,Unclassified Non Trade,CHARITIES & VOLUNTARY ORGANISA
PURCHASING LEARNING DISABILITI,9190,CITYWIDE SPOT                 ,05/07/2011,3069608,Z/2/169663               ,723.08,H F TRUST LIMITED                       ,362078,Unclassified Non Trade,CHARITIES & VOLUNTARY ORGANISA
PURCHASING LEARNING DISABILITI,9190,CITYWIDE SPOT                 ,05/07/2011,3069609,Z/2/169664               ,1662.12,H F TRUST LIMITED                       ,362078,Unclassified Non Trade,CHARITIES & VOLUNTARY ORGANISA
PURCHASING LEARNING DISABILITI,9190,CITYWIDE SPOT                 ,05/07/2011,3069610,Z/2/169666               ,2299.96,H F TRUST LIMITED                       ,362078,Unclassified Non Trade,CHARITIES & VOLUNTARY ORGANISA
PURCHASING LEARNING DISABILITI,9190,CITYWIDE SPOT                 ,05/07/2011,3069611,Z/2/169668               ,1015.96,H F TRUST LIMITED                       ,362078,Unclassified Non Trade,CHARITIES & VOLUNTARY ORGANISA
PURCHASING LEARNING DISABILITI,9190,CITYWIDE SPOT                 ,05/07/2011,3069612,Z/2/169669               ,715.68,H F TRUST LIMITED                       ,362078,Unclassified Non Trade,CHARITIES & VOLUNTARY ORGANISA
PURCHASING LEARNING DISABILITI,9190,CITYWIDE SPOT                 ,05/07/2011,3069615,Z/3/171100               ,1445.52,H F TRUST LIMITED                       ,362078,Unclassified Non Trade,CHARITIES & VOLUNTARY ORGANISA
PURCHASING LEARNING DISABILITI,9190,CITYWIDE SPOT                 ,05/07/2011,3069616,Z/3/171332               ,1100.44,H F TRUST LIMITED                       ,362078,Unclassified Non Trade,CHARITIES & VOLUNTARY ORGANISA
PURCHASING LEARNING DISABILITI,9190,CITYWIDE SPOT                 ,05/07/2011,3069617,Z/3/171333               ,723.08,H F TRUST LIMITED                       ,362078,Unclassified Non Trade,CHARITIES & VOLUNTARY ORGANISA
PURCHASING LEARNING DISABILITI,9190,CITYWIDE SPOT                 ,05/07/2011,3069618,Z/3/171334               ,1662.12,H F TRUST LIMITED                       ,362078,Unclassified Non Trade,CHARITIES & VOLUNTARY ORGANISA
PURCHASING LEARNING DISABILITI,9190,CITYWIDE SPOT                 ,05/07/2011,3069619,Z/3/171335               ,5650.28,H F TRUST LIMITED                       ,362078,Unclassified Non Trade,CHARITIES & VOLUNTARY ORGANISA
PURCHASING LEARNING DISABILITI,9190,CITYWIDE SPOT                 ,05/07/2011,3069620,Z/3/171336               ,2299.96,H F TRUST LIMITED                       ,362078,Unclassified Non Trade,CHARITIES & VOLUNTARY ORGANISA
PURCHASING LEARNING DISABILITI,9190,CITYWIDE SPOT                 ,05/07/2011,3069621,Z/3/171337               ,2749.40,H F TRUST LIMITED                       ,362078,Unclassified Non Trade,CHARITIES & VOLUNTARY ORGANISA
PURCHASING LEARNING DISABILITI,9190,CITYWIDE SPOT                 ,05/07/2011,3069622,Z/3/171338               ,1015.96,H F TRUST LIMITED                       ,362078,Unclassified Non Trade,CHARITIES & VOLUNTARY ORGANISA
PURCHASING LEARNING DISABILITI,9190,CITYWIDE SPOT                 ,05/07/2011,3069623,Z/3/171339               ,715.68,H F TRUST LIMITED                       ,362078,Unclassified Non Trade,CHARITIES & VOLUNTARY ORGANISA
PURCHASING LEARNING DISABILITI,9190,CITYWIDE SPOT                 ,05/07/2011,3069625,Z/3/172340               ,1418.88,H F TRUST LIMITED                       ,362078,Unclassified Non Trade,CHARITIES & VOLUNTARY ORGANISA
PURCHASING LEARNING DISABILITI,9190,CITYWIDE SPOT                 ,05/07/2011,3069626,Z/3/172341               ,1216.44,H F TRUST LIMITED                       ,362078,Unclassified Non Trade,CHARITIES & VOLUNTARY ORGANISA
PURCHASING LEARNING DISABILITI,9190,CITYWIDE SPOT                 ,05/07/2011,3069627,1424325,1172.80,MENCAP HOMECARE                         ,361858,Unclassified Non Trade,CHARITIES & VOLUNTARY ORGANISA
PURCHASING LEARNING DISABILITI,9190,CITYWIDE SPOT                 ,05/07/2011,3069628,1524329,2915.08,MENCAP HOMECARE                         ,361858,Unclassified Non Trade,CHARITIES & VOLUNTARY ORGANISA
PURCHASING LEARNING DISABILITI,9190,CITYWIDE SPOT                 ,05/07/2011,3069629,1524330,1024.40,MENCAP HOMECARE                         ,361858,Unclassified Non Trade,CHARITIES & VOLUNTARY ORGANISA
PURCHASING LEARNING DISABILITI,9190,CITYWIDE SPOT                 ,05/07/2011,3069630,1524332,2517.64,MENCAP HOMECARE                         ,361858,Unclassified Non Trade,CHARITIES & VOLUNTARY ORGANISA
PURCHASING LEARNING DISABILITI,9190,CITYWIDE SPOT                 ,05/07/2011,3069631,1524334,531.36,MENCAP HOMECARE                         ,361858,Unclassified Non Trade,CHARITIES & VOLUNTARY ORGANISA
PURCHASING LEARNING DISABILITI,9190,CITYWIDE SPOT                 ,05/07/2011,3069634,1524342,1761.60,MENCAP HOMECARE                         ,361858,Unclassified Non Trade,CHARITIES & VOLUNTARY ORGANISA
PURCHASING                    ,9190,CITYWIDE SPOT                 ,05/07/2011,3069635,10512,1114.40,SUPPORTED HOUSING SERVICES              ,294949,Facilities Management,HOSTELS                       
PURCHASING LEARNING DISABILITI,9190,CITYWIDE SPOT                 ,05/07/2011,3069637,1524345,4140.92,MENCAP HOMECARE                         ,361858,Unclassified Non Trade,CHARITIES & VOLUNTARY ORGANISA
PURCHASING LEARNING DISABILITI,9190,CITYWIDE SPOT                 ,05/07/2011,3069638,1524350,2890.80,MENCAP HOMECARE                         ,361858,Unclassified Non Trade,CHARITIES & VOLUNTARY ORGANISA
PURCHASING LEARNING DISABILITI,9190,CITYWIDE SPOT                 ,05/07/2011,3069639,1524352,4167.88,MENCAP HOMECARE                         ,361858,Unclassified Non Trade,CHARITIES & VOLUNTARY ORGANISA
PURCHASING LEARNING DISABILITI,9190,CITYWIDE SPOT                 ,05/07/2011,3069641,1535105,1024.40,MENCAP HOMECARE                         ,361858,Unclassified Non Trade,CHARITIES & VOLUNTARY ORGANISA
PURCHASING LEARNING DISABILITI,9190,CITYWIDE SPOT                 ,05/07/2011,3069642,1535106,2915.08,MENCAP HOMECARE                         ,361858,Unclassified Non Trade,CHARITIES & VOLUNTARY ORGANISA
PURCHASING LEARNING DISABILITI,9190,CITYWIDE SPOT                 ,05/07/2011,3069643,1535110,1172.80,MENCAP HOMECARE                         ,361858,Unclassified Non Trade,CHARITIES & VOLUNTARY ORGANISA
PURCHASING LEARNING DISABILITI,9190,CITYWIDE SPOT                 ,05/07/2011,3069644,1535111,2517.64,MENCAP HOMECARE                         ,361858,Unclassified Non Trade,CHARITIES & VOLUNTARY ORGANISA
PURCHASING LEARNING DISABILITI,9190,CITYWIDE SPOT                 ,05/07/2011,3069645,1535114,531.36,MENCAP HOMECARE                         ,361858,Unclassified Non Trade,CHARITIES & VOLUNTARY ORGANISA
PURCHASING                    ,9190,CITYWIDE SPOT                 ,05/07/2011,3069646,10515,1918.24,SUPPORTED HOUSING SERVICES              ,294949,Facilities Management,HOSTELS                       
PURCHASING LEARNING DISABILITI,9190,CITYWIDE SPOT                 ,05/07/2011,3069650,1535125,4140.92,MENCAP HOMECARE                         ,361858,Unclassified Non Trade,CHARITIES & VOLUNTARY ORGANISA
PURCHASING LEARNING DISABILITI,9190,CITYWIDE SPOT                 ,05/07/2011,3069651,1535129,1761.60,MENCAP HOMECARE                         ,361858,Unclassified Non Trade,CHARITIES & VOLUNTARY ORGANISA
PURCHASING LEARNING DISABILITI,9190,CITYWIDE SPOT                 ,05/07/2011,3069653,1535133,2890.80,MENCAP HOMECARE                         ,361858,Unclassified Non Trade,CHARITIES & VOLUNTARY ORGANISA
PURCHASING LEARNING DISABILITI,9190,CITYWIDE SPOT                 ,05/07/2011,3069654,1535135,4167.88,MENCAP HOMECARE                         ,361858,Unclassified Non Trade,CHARITIES & VOLUNTARY ORGANISA
PURCHASING LEARNING DISABILITI,9190,CITYWIDE SPOT                 ,05/07/2011,3069655,1535193,1411.20,MENCAP HOMECARE                         ,361858,Unclassified Non Trade,CHARITIES & VOLUNTARY ORGANISA
PURCHASING LEARNING DISABILITI,9190,CITYWIDE SPOT                 ,05/07/2011,3069656,1538692,2655.04,MENCAP HOMECARE                         ,361858,Unclassified Non Trade,CHARITIES & VOLUNTARY ORGANISA
PURCHASING ELDERLY            ,9190,CITYWIDE SPOT                 ,05/07/2011,3069657,10516,1504.44,SUPPORTED HOUSING SERVICES              ,294949,Facilities Management,HOSTELS                       
PURCHASING LEARNING DISABILITI,9190,CITYWIDE SPOT                 ,05/07/2011,3069658,1546568,4167.88,MENCAP HOMECARE                         ,361858,Unclassified Non Trade,CHARITIES & VOLUNTARY ORGANISA
PURCHASING LEARNING DISABILITI,9190,CITYWIDE SPOT                 ,05/07/2011,3069659,1546625+1535             ,1425.60,MENCAP HOMECARE                         ,361858,Unclassified Non Trade,CHARITIES & VOLUNTARY ORGANISA
PURCHASING LEARNING DISABILITI,9190,CITYWIDE SPOT                 ,05/07/2011,3069663,21213+430                ,2080.80,SPECTRUM SOCIAL CARE LTD                ,328608,Human Resources,EMPLOYMENT & RECRUITMENT AGENC
PURCHASING LEARNING DISABILITI,9190,CITYWIDE SPOT                 ,05/07/2011,3069664,21216+432                ,783.20,SPECTRUM SOCIAL CARE LTD                ,328608,Human Resources,EMPLOYMENT & RECRUITMENT AGENC
PURCHASING LEARNING DISABILITI,9190,CITYWIDE SPOT                 ,05/07/2011,3069665,21223+441                ,2080.80,SPECTRUM SOCIAL CARE LTD                ,328608,Human Resources,EMPLOYMENT & RECRUITMENT AGENC
PURCHASING                    ,9190,CITYWIDE SPOT                 ,05/07/2011,3069666,10517,1114.40,SUPPORTED HOUSING SERVICES              ,294949,Facilities Management,HOSTELS                       
PURCHASING LEARNING DISABILITI,9190,CITYWIDE SPOT                 ,05/07/2011,3069667,21226+443                ,783.20,SPECTRUM SOCIAL CARE LTD                ,328608,Human Resources,EMPLOYMENT & RECRUITMENT AGENC
PURCHASING LEARNING DISABILITI,9190,CITYWIDE SPOT                 ,05/07/2011,3069673,25955,1160.00,LINKAGE COMMUNITY TRUST                 ,362116,Unclassified Non Trade,CHARITIES & VOLUNTARY ORGANISA
PURCHASING LEARNING DISABILITI,9190,CITYWIDE SPOT                 ,05/07/2011,3069674,26023,1307.68,LINKAGE COMMUNITY TRUST                 ,362116,Unclassified Non Trade,CHARITIES & VOLUNTARY ORGANISA
PURCHASING LEARNING DISABILITI,9190,CITYWIDE SPOT                 ,05/07/2011,3069675,40692,5650.28,H F TRUST LIMITED                       ,362078,Unclassified Non Trade,CHARITIES & VOLUNTARY ORGANISA
PURCHASING ELDERLY            ,9190,CITYWIDE SPOT                 ,05/07/2011,3069676,10518,501.48,SUPPORTED HOUSING SERVICES              ,294949,Facilities Management,HOSTELS                       
PURCHASING ELDERLY            ,9190,CITYWIDE SPOT                 ,05/07/2011,3069679,10519,1170.12,SUPPORTED HOUSING SERVICES              ,294949,Facilities Management,HOSTELS                       
PURCHASING LEARNING DISABILITI,9190,CITYWIDE SPOT                 ,05/07/2011,3069685,90230,1825.16,UNITED RESPONSE                         ,329604,Unclassified Non Trade,CHARITIES & VOLUNTARY ORGANISA
PURCHASING LEARNING DISABILITI,9190,CITYWIDE SPOT                 ,05/07/2011,3069688,90353,2143.68,UNITED RESPONSE                         ,329604,Unclassified Non Trade,CHARITIES & VOLUNTARY ORGANISA
PURCHASING LEARNING DISABILITI,9190,CITYWIDE SPOT                 ,05/07/2011,3069690,90382,844.48,UNITED RESPONSE                         ,329604,Unclassified Non Trade,CHARITIES & VOLUNTARY ORGANISA
PURCHASING ELDERLY            ,9190,CITYWIDE SPOT                 ,05/07/2011,3069691,90395,1970.72,UNITED RESPONSE                         ,329604,Unclassified Non Trade,CHARITIES & VOLUNTARY ORGANISA
PURCHASING LEARNING DISABILITI,9190,CITYWIDE SPOT                 ,05/07/2011,3069692,90399,649.60,UNITED RESPONSE                         ,329604,Unclassified Non Trade,CHARITIES & VOLUNTARY ORGANISA
PHYSICAL DISABILITIES PURCHASI,9190,CITYWIDE SPOT                 ,05/07/2011,3069693,90419,871.92,UNITED RESPONSE                         ,329604,Unclassified Non Trade,CHARITIES & VOLUNTARY ORGANISA
PURCHASING LEARNING DISABILITI,9190,CITYWIDE SPOT                 ,05/07/2011,3069694,90420,560.52,UNITED RESPONSE                         ,329604,Unclassified Non Trade,CHARITIES & VOLUNTARY ORGANISA
TRANSITIONS                   ,9190,CITYWIDE SPOT                 ,05/07/2011,3069695,90489,777.60,UNITED RESPONSE                         ,329604,Unclassified Non Trade,CHARITIES & VOLUNTARY ORGANISA
INDEPENDENT FOSTERING PLACEMEN,9270,INDEPENDENT FOSTERING         ,05/07/2011,3069537,97017,874.00,SWIIS FOSTER CARE LTD.                  ,349291,Social Community Care,ADOPTION & FOSTERING          
INDEPENDENT FOSTERING PLACEMEN,9270,INDEPENDENT FOSTERING         ,05/07/2011,3069538,97018,855.00,SWIIS FOSTER CARE LTD.                  ,349291,Social Community Care,ADOPTION & FOSTERING          
INDEPENDENT FOSTERING PLACEMEN,9270,INDEPENDENT FOSTERING         ,05/07/2011,3069539,97019,855.00,SWIIS FOSTER CARE LTD.                  ,349291,Social Community Care,ADOPTION & FOSTERING          
CWD INDEPENDENT PLACEMENTS    ,9270,INDEPENDENT FOSTERING         ,05/07/2011,3069540,14374,5061.00,TEAM FOSTERING                          ,352082,Social Community Care,ADOPTION & FOSTERING          
INDEPENDENT FOSTERING PLACEMEN,9270,INDEPENDENT FOSTERING         ,05/07/2011,3069542,97016,830.00,SWIIS FOSTER CARE LTD.                  ,349291,Social Community Care,ADOPTION & FOSTERING          
CWD INDEPENDENT PLACEMENTS    ,9270,CARELEAVERS ACCOMMODATION     ,05/07/2011,3069543,SRO1099497               ,1176.00,THE NATIONAL AUTISTIC SOCIETY           ,334778,Unclassified Non Trade,CHARITIES & VOLUNTARY ORGANISA
LEAVING CARE                  ,9270,CARELEAVERS ACCOMMODATION     ,05/07/2011,3069544,138,1003.78,IMPACT PROPERTY SERVICES                ,546813,Social Community Care,SHELTERED HOUSING             
LEAVING CARE                  ,9270,CARELEAVERS ACCOMMODATION     ,05/07/2011,3069546,139,1003.78,IMPACT PROPERTY SERVICES                ,546813,Social Community Care,SHELTERED HOUSING             
LEAVING CARE                  ,9270,CARELEAVERS ACCOMMODATION     ,05/07/2011,3069547,4143,1311.43,THE LEAVING CARE COMPANY LTD            ,542890,Social Community Care,SOCIAL SERVICES               
LEAVING CARE                  ,9270,CARELEAVERS ACCOMMODATION     ,05/07/2011,3069548,4143A                    ,1615.71,THE LEAVING CARE COMPANY LTD            ,542890,Social Community Care,SOCIAL SERVICES               
LEAVING CARE                  ,9270,CARELEAVERS ACCOMMODATION     ,05/07/2011,3069549,4398,1028.57,PROGRESSIVE CARE LTD                    ,343548,Social Community Care,CHILDREN'S HOMES              
LEAVING CARE                  ,9270,CARELEAVERS ACCOMMODATION     ,05/07/2011,3069550,4402,3542.86,PROGRESSIVE CARE LTD                    ,343548,Social Community Care,CHILDREN'S HOMES              
LEAVING CARE                  ,9270,CARELEAVERS ACCOMMODATION     ,05/07/2011,3069551,4407,1371.43,PROGRESSIVE CARE LTD                    ,343548,Social Community Care,CHILDREN'S HOMES              
INDEPENDENT RES BLOCK PLACEMEN,9270,INDEPENDENT RESIDENTIAL PMENT ,05/07/2011,3069552,4422,11400.00,PROGRESSIVE CARE LTD                    ,343548,Social Community Care,CHILDREN'S HOMES              
NORTH SA - LAC                ,9440,LOOKED AFTER CHILDREN         ,05/07/2011,3069557,85794,9000.00,REDACTED PERSONAL DATA,502201,Social Community Care,ADOPTION & FOSTERING          
CWD SOUTH S17                 ,9270,CARELEAVERS INDEPENDENT LIVING,05/07/2011,3069558,937,1980.72,CROSSROADS CARE ATTENDANT S.            ,361857,Unclassified Non Trade,CHARITIES & VOLUNTARY ORGANISA
PHYSICAL DISABILITIES PURCHASI,9210,CONTINUING NURSING CARE       ,05/07/2011,3069502,J357274 010511           ,3901.03,STOCKSBRIDGE NEURO REHAB                ,387028,Social Community Care,NURSING HOMES                 
PURCHASING ELDERLY            ,9200,CONTINUING RESIDENTIAL CARE   ,05/07/2011,3069503,J357301 010511           ,1615.00,THE OLD VICARAGE CARE CENTRE            ,443734,Social Community Care,RESIDENTIAL CARE HOMES        
PHYSICAL DISABILITIES PURCHASI,9210,CONTINUING NURSING CARE       ,05/07/2011,3069504,J365158 290511           ,3891.20,STOCKSBRIDGE NEURO REHAB                ,387028,Social Community Care,NURSING HOMES                 
PURCHASING ELDERLY            ,9200,CONTINUING RESIDENTIAL CARE   ,05/07/2011,3069505,J365185 290511           ,1612.00,THE OLD VICARAGE CARE CENTRE            ,443734,Social Community Care,RESIDENTIAL CARE HOMES        
PURCHASING LEARNING DISABILITI,9200,CONTINUING RESIDENTIAL CARE   ,05/07/2011,3069506,J374192 260611           ,5333.24,UNITED RESPONSE(GATESHEAD)              ,362032,Unclassified Non Trade,CHARITIES & VOLUNTARY ORGANISA
PURCHASING ELDERLY            ,9200,CONTINUING RESIDENTIAL CARE   ,05/07/2011,3069507,J374270 260611           ,29120.00,ABBEY GRANGE RESIDENTIAL HOME           ,361753,Social Community Care,RESIDENTIAL CARE HOMES        
PURCHASING ELDERLY            ,9210,CONTINUING NURSING CARE       ,05/07/2011,3069507,J374270 260611           ,4500.00,ABBEY GRANGE RESIDENTIAL HOME           ,361753,Social Community Care,RESIDENTIAL CARE HOMES        
PHYSICAL DISABILITIES PURCHASI,9210,CONTINUING NURSING CARE       ,05/07/2011,3069508,J374331 260611           ,3891.20,STOCKSBRIDGE NEURO REHAB                ,387028,Social Community Care,NURSING HOMES                 
PURCHASING ELDERLY            ,9200,CONTINUING RESIDENTIAL CARE   ,05/07/2011,3069509,J374352 260611           ,1287.92,SAXILBY HOUSE RESIDENTIAL HOME          ,433431,Social Community Care,RESIDENTIAL CARE HOMES        
PURCHASING LEARNING DISABILITI,9200,CONTINUING RESIDENTIAL CARE   ,05/07/2011,3069510,J374355 260611           ,7359.96,SENSE NORTH                             ,437084,Unclassified Non Trade,CHARITIES & VOLUNTARY ORGANISA
PURCHASING ELDERLY            ,9200,CONTINUING RESIDENTIAL CARE   ,05/07/2011,3069511,J374358 260611           ,1612.00,THE OLD VICARAGE CARE CENTRE            ,443734,Social Community Care,RESIDENTIAL CARE HOMES        
PURCHASING ELDERLY            ,9200,CONTINUING RESIDENTIAL CARE   ,05/07/2011,3069513,J382776 240711           ,7124.00,ROSE COTTAGE                            ,361940,Social Community Care,NURSING HOMES                 
PURCHASING ELDERLY            ,9210,CONTINUING NURSING CARE       ,05/07/2011,3069513,J382776 240711           ,12120.00,ROSE COTTAGE                            ,361940,Social Community Care,NURSING HOMES                 
PURCHASING LEARNING DISABILITI,9240,SUPPORTED LIVING CARE         ,05/07/2011,3069514,J382810 240711           ,861.12,UNITED RESPONSE                         ,209238,Unclassified Non Trade,CHARITIES & VOLUNTARY ORGANISA
PURCHASING ELDERLY            ,9200,CONTINUING RESIDENTIAL CARE   ,05/07/2011,3069515,J382817 240711           ,5922.57,HADDON COURT NURSING HOME               ,361916,Social Community Care,NURSING HOMES                 
PURCHASING ELDERLY            ,9210,CONTINUING NURSING CARE       ,05/07/2011,3069515,J382817 240711           ,31453.00,HADDON COURT NURSING HOME               ,361916,Social Community Care,NURSING HOMES                 
PURCHASING LEARNING DISABILITI,9200,CONTINUING RESIDENTIAL CARE   ,05/07/2011,3069516,J382825 240711           ,5333.24,UNITED RESPONSE(GATESHEAD)              ,362032,Unclassified Non Trade,CHARITIES & VOLUNTARY ORGANISA
PURCHASING ELDERLY            ,9200,CONTINUING RESIDENTIAL CARE   ,05/07/2011,3069517,J382832 240711           ,26232.00,NORWOOD GRANGE                          ,361907,Social Community Care,RESIDENTIAL CARE HOMES        
PURCHASING ELDERLY            ,9210,CONTINUING NURSING CARE       ,05/07/2011,3069518,J382842 240711           ,2741.20,BROOMGROVE TRUST NURSING                ,361755,Social Community Care,NURSING HOMES                 
DRUG & ALCOHOL MH -PURCHASING ,9200,CONTINUING RESIDENTIAL CARE   ,05/07/2011,3069519,J382847 240711           ,1776.00,PHOENIX HOUSE (SOUTH SHIELDS)           ,361865,Medical ,DRUG MISUSE - ADVICE & COUNSEL
PURCHASING LEARNING DISABILITI,9210,CONTINUING NURSING CARE       ,05/07/2011,3069520,J382864 240711           ,1985.92,HILL HOUSE NURSING HOME                 ,362029,Social Community Care,NURSING HOMES                 
PURCHASING ELDERLY            ,9200,CONTINUING RESIDENTIAL CARE   ,05/07/2011,3069521,J382904 240711           ,29120.00,ABBEY GRANGE RESIDENTIAL HOME           ,361753,Social Community Care,RESIDENTIAL CARE HOMES        
PURCHASING ELDERLY            ,9210,CONTINUING NURSING CARE       ,05/07/2011,3069521,J382904 240711           ,4500.00,ABBEY GRANGE RESIDENTIAL HOME           ,361753,Social Community Care,RESIDENTIAL CARE HOMES        
PURCHASING ELDERLY            ,9240,SUPPORTED LIVING CARE         ,05/07/2011,3069522,J382942 240711           ,1807.40,UNITED RESPONSE                         ,209238,Unclassified Non Trade,CHARITIES & VOLUNTARY ORGANISA
PURCHASING LEARNING DISABILITI,9240,SUPPORTED LIVING CARE         ,05/07/2011,3069523,J382943 240711           ,861.12,UNITED RESPONSE                         ,209238,Unclassified Non Trade,CHARITIES & VOLUNTARY ORGANISA
PURCHASING LEARNING DISABILITI,9240,SUPPORTED LIVING CARE         ,05/07/2011,3069524,J382944 240711           ,946.28,UNITED RESPONSE                         ,209238,Unclassified Non Trade,CHARITIES & VOLUNTARY ORGANISA
PURCHASING LEARNING DISABILITI,9240,SUPPORTED LIVING CARE         ,05/07/2011,3069525,J382945 240711           ,1807.40,UNITED RESPONSE                         ,329604,Unclassified Non Trade,CHARITIES & VOLUNTARY ORGANISA
PURCHASING ELDERLY            ,9240,SUPPORTED LIVING CARE         ,05/07/2011,3069526,J382946 240711           ,861.12,UNITED RESPONSE                         ,209238,Unclassified Non Trade,CHARITIES & VOLUNTARY ORGANISA
PURCHASING ELDERLY            ,9200,CONTINUING RESIDENTIAL CARE   ,05/07/2011,3069527,J382985 240711           ,1287.92,SAXILBY HOUSE RESIDENTIAL HOME          ,433431,Social Community Care,RESIDENTIAL CARE HOMES        
PURCHASING ELDERLY            ,9200,CONTINUING RESIDENTIAL CARE   ,05/07/2011,3069528,J382986 240711           ,25349.71,NORTON LEES HALL/LODGE                  ,433750,Unclassified Non Trade,SCHOOLS - LOCAL AUTHORITY     
PURCHASING ELDERLY            ,9200,CONTINUING RESIDENTIAL CARE   ,05/07/2011,3069529,J382991 240711           ,1379.00,THE OLD VICARAGE CARE CENTRE            ,443734,Social Community Care,RESIDENTIAL CARE HOMES        
DRUG & ALCOHOL MH -PURCHASING ,9200,SHORT TERM RESIDENTIAL CARE   ,05/07/2011,3069530,J374075 290511           ,3901.43,SHEFF ALCOHOL ADV.SERVICE               ,361777,Medical ,ALCOHOL MISUSE - ADVICE & COUN
DRUG & ALCOHOL MH -PURCHASING ,9200,SHORT TERM RESIDENTIAL CARE   ,05/07/2011,3069532,J382706 260611           ,3920.00,SHEFF ALCOHOL ADV.SERVICE               ,361777,Medical ,ALCOHOL MISUSE - ADVICE & COUN
PURCHASING ELDERLY            ,9200,SHORT TERM RESIDENTIAL CARE   ,05/07/2011,3069533,J385029 260611           ,2028.00,TREETON GRANGE                          ,362005,Social Community Care,NURSING HOMES                 
PURCHASING ELDERLY            ,9200,SHORT TERM RESIDENTIAL CARE   ,05/07/2011,3069534,J385030 260611           ,1007.00,NEWFIELD NURSING HOME                   ,361980,Social Community Care,NURSING HOMES                 
STREET FORCE BALANCE SHEET    ,776,4332101 INVOICES PAID         ,06/07/2011,3070415,15,2438.00,J & R SMITH                             ,546065,Unclassified Trade,FARMING - MIXED               
STREET FORCE BALANCE SHEET    ,776,4332101 INVOICES PAID         ,06/07/2011,3070417,301840,1288.75,FACELIFT GB LTD                         ,449564,Vehicles Not Buses,PLANT & MACHINERY HIRE & LEASI
HLF WINCOBANK WOOD/HILL       ,8260,WOODLAND DEVELOPMENT EXPENSES ,06/07/2011,3065629,1791,550.00,MOUNTAIN FOUNDRY ACTIVITIES LTD         ,473484,Leisure Services,OUTDOOR PURSUIT ORGANISERS & E
CREMATORIA                    ,8010,EQUIPMENT PURCHASE AND REPAIR ,06/07/2011,3069082,47555,864.00,FIBROUS LIMITED                         ,204853,Furniture,DISPLAY FIXTURES & MATERIALS  
STREET FORCE BALANCE SHEET    ,776,4332101 INVOICES PAID         ,06/07/2011,3070149,P13386                   ,2220.00,POWER PLANE LIMITED                     ,504430,Construction,ROAD CONSTRUCTION CONTRACTORS 
STREET FORCE BALANCE SHEET    ,776,4332101 INVOICES PAID         ,06/07/2011,3070151,21740,949.98,W J ROADMARKINGS LIMITED                ,502466,Highway Equipment and Materials,ROAD MARKING & SURFACING EQUIP
STREET FORCE BALANCE SHEET    ,776,4332101 INVOICES PAID         ,06/07/2011,3070153,P13088A                  ,3755.00,POWER PLANE LIMITED                     ,504430,Construction,ROAD CONSTRUCTION CONTRACTORS 
STREET FORCE BALANCE SHEET    ,776,4332101 INVOICES PAID         ,06/07/2011,3070414,14,1270.00,J & R SMITH                             ,546065,Unclassified Trade,FARMING - MIXED               
CARE PROCEEDINGS (LEGAL FEES) ,8470,LEGAL FEES                    ,06/07/2011,3070508,ERS INVOICE53208         ,1002.38,DR N AHLUWALIA                          ,424561,Medical ,DOCTORS                       
CARE PROCEEDINGS (LEGAL FEES) ,8470,LEGAL FEES                    ,06/07/2011,3070509,ERS INVOICE53209         ,1126.13,DR N AHLUWALIA                          ,424561,Medical ,DOCTORS                       
CARE PROCEEDINGS (LEGAL FEES) ,8470,LEGAL FEES                    ,06/07/2011,3070510,ERS INVOICE53210         ,540.00,DR M DI LUSTRO                          ,331254,Medical ,DOCTORS                       
CLAIMS                        ,8740,MOTOR VEHICLE                 ,06/07/2011,3070513,ERS INVOICE53213         ,1158.12,ACROMAS INSURANCE COMPANY LTD           ,525211,Financial Services,INSURANCE - OTHER             
VS-ADVICE AND ADVOCACY        ,8180,GRANTS                        ,06/07/2011,3070514,ERS INVOICE53214         ,5583.50,CHAPEL GREEN ADVICE CENTRE              ,336946,Medical ,COUNSELLING & ADVICE SERVICES 
VS- VCS GENERAL               ,8180,GRANTS                        ,06/07/2011,3070515,ERS INVOICE53215         ,3000.00,SHEFFIELD PRIDE                         ,510529,Unclassified Non Trade,CHARITIES & VOLUNTARY ORGANISA
CLAIMS                        ,8740,HIGHWAYS                      ,06/07/2011,3070517,ERS INVOICE53217         ,923.76,REDACTED PERSONAL DATA,554464,Unclassified Non Trade,OUT OF SCOPE FOR SIC MONITORIN
CLAIMS                        ,8740,MOTOR VEHICLE                 ,06/07/2011,3070519,ERS INVOICE53219         ,910.62,JB AUTOS                                ,554426,Unclassified Non Trade,OUT OF SCOPE FOR SIC MONITORIN
CLAIMS                        ,8740,MOTOR VEHICLE                 ,06/07/2011,3070522,ERS INVOICE53222         ,4425.00,DIRECT LINE INSURANCE PLC               ,304477,Financial Services,INSURANCE - OTHER             
CLAIMS                        ,8740,MOTOR VEHICLE                 ,06/07/2011,3070524,ERS INVOICE53224         ,856.48,GPG 2000 LTD                            ,416225,Vehicles Not Buses,CAR BODY REPAIRS              
LITIGATION COURT ACCOUNT      ,8480,COURT COSTS                   ,06/07/2011,3070525,ERS INVOICE53225         ,20000.00,HER MAJESTY'S COURTS SERVICE            ,492282,Unclassified Non Trade,COURTS                        
CLAIMS                        ,8740,HIGHWAYS                      ,06/07/2011,3070526,ERS INVOICE53226         ,12500.00,RUSSELL JONES & WALKER                  ,350698,Legal Services,SOLICITORS                    
TRAINING - BROCKWOOD          ,8440,FEE EXPENSES                  ,06/07/2011,3070529,ERS INVOICE53229         ,1000.00,REDACTED PERSONAL DATA,547770,Unclassified Non Trade,OUT OF SCOPE FOR SIC MONITORIN
TRAINING - BROCKWOOD          ,8440,FEE EXPENSES                  ,06/07/2011,3070530,ERS INVOICE53230         ,1000.00,MS SUSAN GOODSON                        ,518188,Human Resources,TRAINING SERVICES             
TRAINING - BROCKWOOD          ,8440,FEE EXPENSES                  ,06/07/2011,3070532,ERS INVOICE53232         ,1000.00,REDACTED PERSONAL DATA,548292,Unclassified Non Trade,OUT OF SCOPE FOR SIC MONITORIN
TRAINING - BROCKWOOD          ,8440,FEE EXPENSES                  ,06/07/2011,3070533,ERS INVOICE53233         ,1000.00,REDACTED PERSONAL DATA,509824,Unclassified Non Trade,OUT OF SCOPE FOR SIC MONITORIN
INTEGRATED PLACEMENT STRATEGY ,8350,MISCELLANEOUS EXPENSES        ,06/07/2011,2989544,OUKI10088                ,2225.02,POSITIVE OPTIONS LTD                    ,328692,Human Resources,TRAINING CONSULTANTS          
PERMANENCE & THROUGHCARE STAFF,6210,RENTS                         ,06/07/2011,3038159,0110-1864                ,25500.00,TOWERS INVESTMENTS                      ,338083,Construction,PROPERTY DEVELOPERS           
BRT NORTH AND TINSLEY LINK    ,1192,DESIGN FEES                   ,06/07/2011,3040388,A103352                  ,5978.00,BT OPENREACH                            ,501995,ICT,TELECOMMUNICATION SERVICES    
CATERING PREMISES & EQUIPMENT ,8010,EQUIPMENT PURCHASE AND REPAIR ,06/07/2011,3048870,42902,1395.55,BARNSLEY CATERING SERVICES LTD          ,203262,Catering,CATERING EQUIPMENT            
CATERING CONTRACT             ,8620,COMPUTER SOFTWARE LICENCES    ,06/07/2011,3049526,4009,600.00,THE TECHNOLOGY FORGE                    ,371682,Consultancy,COMPUTER SYSTEMS & SOFTWARE (D
LEISURE GARDENS               ,6370,GROUNDS MTCE AND ARBORICULTURE,06/07/2011,3049639,7988,850.00,AMK FENCE-IN  LTD                       ,202934,Construction,FENCING CONTRACTORS           
CATERING PREMISES & EQUIPMENT ,8010,EQUIPMENT PURCHASE AND REPAIR ,06/07/2011,3055468,43002,868.00,BARNSLEY CATERING SERVICES LTD          ,203262,Catering,CATERING EQUIPMENT            
MGT  & DELIVERY (BIG)         ,8460,CONSULTANTS FEES              ,06/07/2011,3056803,4129,800.00,INTERNATIONAL INNOVATION SERVICES LTD.  ,405966,Consultancy,BUSINESS & MANAGEMENT CONSULTA
ACHIEVEMENT FOR ALL           ,8440,FEE EXPENSES                  ,06/07/2011,3057606,3656,3465.00,SGA SYSTEMS LIMITED                     ,538607,ICT,COMPUTER SYSTEMS & SOFTWARE (S
SCHOOL CPD SERVICES           ,8440,FEE EXPENSES                  ,06/07/2011,3059537,4,5600.00,THE BENJAMIN CURTIS FOUNDATION          ,489262,Education,EDUCATIONAL TRAINING PROVIDERS
ADAPTATIONS                   ,1157,DWELLINGS MAIN CONTRACT       ,06/07/2011,3063325,229,960.00,VIEWPOINT RESEARCH COMMUNITY INTEREST CO,511698,Facilities Management,MARKET RESEARCH               
POSITIVE ACTIVITIES FOR 8-13'S,9120,OTHER AGENCIES                ,06/07/2011,3064078,10/4773/55PA/40306       ,14758.54,THE WILDLIFE TRUSTS                     ,380500,Unclassified Non Trade,CHARITIES & VOLUNTARY ORGANISA
CONTACT CONTRACTS             ,9280,CONTACT                       ,06/07/2011,3064201,383,3122.02,SHEFFIELD CHILDREN'S CENTRE             ,311908,Social Community Care,NURSERIES & CRECHES           
CONTACT CONTRACTS             ,9280,CONTACT                       ,06/07/2011,3064202,384,3295.88,SHEFFIELD CHILDREN'S CENTRE             ,311908,Social Community Care,NURSERIES & CRECHES           
ADULT EDUCATION ADMIN         ,8440,FEE EXPENSES                  ,06/07/2011,3064484,00155425A                ,510.00,TRINITY                                 ,423546,Education,EDUCATIONAL SERVICES          
THORNBRIDGE OUTDOOR CENTRE    ,8130,CATERING SUPPLIES             ,06/07/2011,3064510,1040,1707.20,HAZEL'S QUALITY CATERING LTD            ,300944,Catering,CATERERS                      
ADULT EDUCATION ADMIN         ,8440,FEE EXPENSES                  ,06/07/2011,3064523,00155456A                ,510.00,TRINITY                                 ,423546,Education,EDUCATIONAL SERVICES          
CONTACT CONTRACTS             ,9280,CONTACT                       ,06/07/2011,3064554,4433,7087.05,PROGRESSIVE CARE LTD                    ,343548,Social Community Care,CHILDREN'S HOMES              
CORPORATE ROOM BOOKINGS       ,8440,FEE EXPENSES                  ,06/07/2011,3064700,CONF022447               ,3037.60,THE MEGA CENTRE                         ,326348,Human Resources,CONFERENCE ROOMS & CENTRES    
PARKWOOD                      ,1161,NC&A MAIN CONTRACT            ,06/07/2011,3065481,641,1249150.00,SHEFFIELD LEP LTD                       ,482230,Unclassified Non Trade,LOCAL GOVERNMENT              
TOWN HALL                     ,6030,REPAIRS AND MTCE - RESPONSIVE ,06/07/2011,3065496,12216,1996.75,PYRAMID CARPETS                         ,243612,Building Construction Materials,CARPETS & RUGS - RETAIL       
POSITIVE ACTIVITIES FOR 8-13'S,9120,OTHER AGENCIES                ,06/07/2011,3065646,CA811                    ,96010.00,ZEST                                    ,507419,Unclassified Non Trade,CHARITIES & VOLUNTARY ORGANISA
CARE PROCEEDINGS (LEGAL FEES) ,8470,LEGAL FEES                    ,06/07/2011,3066533,91406,989.58,CARTER BROWN ASSOCIATES LTD             ,417243,Medical ,PSYCHOLOGISTS                 
FAM LEARNING LIT & NUM 2010/11,9120,OTHER AGENCIES                ,06/07/2011,3067211,R03INV/00004769          ,500.00,ACTION FOR CHILDREN                     ,326212,Unclassified Non Trade,CHARITIES & VOLUNTARY ORGANISA
TRAINING                      ,8270,SUBSCRIPTIONS                 ,06/07/2011,3067301,9000111143,1000.00,BARNSLEY MBC                            ,472053,Unclassified Non Trade,LOCAL GOVERNMENT              
POSITIVE ACTIVITIES FOR 8-13'S,9120,OTHER AGENCIES                ,06/07/2011,3067366,40724,7124.00,SOUTHEY DEVELOPMENT FORUM               ,422647,Unclassified Non Trade,SCHOOLS - LOCAL AUTHORITY     
CREMATORIA                    ,6020,REPAIRS AND MTCE - PROGRAMMED ,06/07/2011,3067515,811,742.80,FURNACE CONSTRUCTION CREMATORS LIMITED  ,204974,Cemetery & Crematorium ,FURNACES                      
CREMATORIA                    ,6020,REPAIRS AND MTCE - PROGRAMMED ,06/07/2011,3067516,813,953.20,FURNACE CONSTRUCTION CREMATORS LIMITED  ,204974,Cemetery & Crematorium ,FURNACES                      
FURNISHED ACCOMMODATION       ,6020,VOID PAINTING INITIATIVE      ,06/07/2011,3067766,L06616                   ,854.00,BELL GROUP (LEEDS)                      ,441427,Construction,PAINTERS & DECORATORS         
SHEFFIELD FIRST PARTNERSHIP   ,8440,FEE EXPENSES                  ,06/07/2011,3067808,2378,1690.00,ELEVEN DESIGN CONSULTANTS LTD.          ,447835,Facilities Management,DESIGNERS - GRAPHIC           
SHARROW ALMO WORKS            ,1165,NC&A OTHER                    ,06/07/2011,3067825,10110164,53115.66,KIER SHEFFIELD LLP                      ,352687,Construction,PROPERTY MAINTENANCE & REPAIRS
SHARROW ALMO WORKS            ,1165,NC&A OTHER                    ,06/07/2011,3067827,10110165,13592.98,KIER SHEFFIELD LLP                      ,352687,Construction,PROPERTY MAINTENANCE & REPAIRS
THORNBRIDGE OUTDOOR CENTRE    ,8130,CATERING SUPPLIES             ,06/07/2011,3067879,1061,941.50,HAZEL'S QUALITY CATERING LTD            ,300944,Catering,CATERERS                      
THORNBRIDGE OUTDOOR CENTRE    ,6020,REPAIRS AND MTCE - PROGRAMMED ,06/07/2011,3067885,985,1265.00,S B SECURITY SYSTEMS LTD                ,440198,Facilities Management,CCTV & VIDEO EQUIPMENT        
CONTACT CONTRACTS             ,9280,CONTACT                       ,06/07/2011,3068882,21265,654.08,SPECTRUM SOCIAL CARE LTD                ,328608,Human Resources,EMPLOYMENT & RECRUITMENT AGENC
CUSTOMER FIRST PROGRAMME      ,8460,CONSULTANTS FEES              ,06/07/2011,3068900,276,16380.00,SYNECTIC MANAGEMENT CONSULTANCY LTD     ,545189,Consultancy,BUSINESS & MANAGEMENT CONSULTA
LAND AND PROPERTY             ,8420,ADVERTISING AND PUBLICITY     ,06/07/2011,3068952,FPK079                   ,975.00,SG PROPERTY AGENTS T/A BAIRSTOW EVES    ,538311,Unclassified Trade,ESTATE AGENTS                 
LAND AND PROPERTY             ,8420,ADVERTISING AND PUBLICITY     ,06/07/2011,3068954,CRO158                   ,711.79,SG PROPERTY AGENTS T/A BAIRSTOW EVES    ,538311,Unclassified Trade,ESTATE AGENTS                 
CITY CENTRE PROMOTIONAL PLAN  ,8440,FEE EXPENSES                  ,06/07/2011,3069074,775/345                  ,4120.00,YELLOW BUS EVENTS LTD                   ,505362,Leisure Services,"EXHIBITION, EVENT & TRADE FAIR"
HERITAGE WOODLANDS            ,8260,WOODLAND DEVELOPMENT EXPENSES ,06/07/2011,3069140,7,3050.00,HN WOODLAND & ESTATE MANAGEMENT         ,317072,Environmental Services,TREE WORK & FORESTRY SERVICES 
LEISURE GARDENS               ,6370,GROUNDS MTCE AND ARBORICULTURE,06/07/2011,3069174,6,1000.00,HN WOODLAND & ESTATE MANAGEMENT         ,317072,Environmental Services,TREE WORK & FORESTRY SERVICES 
FUTURE SHAPE-LEARNING         ,8440,FEE EXPENSES                  ,06/07/2011,3069264,2,8712.25,MR TONY DESSENT                         ,524993,Unclassified Non Trade,LOCAL GOVERNMENT              
LD PARTNERSHIP CONTRACTS      ,9160,PARTNERSHIP CONTRACTS         ,06/07/2011,3069311,4316,8940.00,HEELEY CITY FARM TRUST                  ,346386,Unclassified Non Trade,CHARITIES & VOLUNTARY ORGANISA
COMMUNITY ENGAGEMENT          ,9120,OTHER AGENCIES                ,06/07/2011,3069314,872739,868.84,DESIGN & PRINT SERVICE (SHEFFIELD HOMES),387617,Facilities Management,PRINTERS                      
RESOURCES EFFICIENCY NORTH    ,9120,OTHER AGENCIES                ,06/07/2011,3069748,4952/31                  ,14480.00,ENERGY SAVING TRUST                     ,547946,Consultancy,ENERGY CONSERVATION CONSULTANT
EMPLOYEE DEVELOPMENT          ,5750,EXTERNAL TRAINERS COSTS       ,06/07/2011,3069761,003/11/SH                ,800.00,TARGET INVESTIGATION & TRAINING SERVICES,487776,Human Resources,TRAINING SERVICES             
CITY CENTRE PROMOTIONAL PLAN  ,8440,FEE EXPENSES                  ,06/07/2011,3069762,2590,3149.00,ROCK TECH PROJECTS LTD                  ,553160,ICT,AUDIO-VISUAL EQUIPMENT & SUPPL
CITY CENTRE PROMOTIONAL PLAN  ,8440,FEE EXPENSES                  ,06/07/2011,3069763,2592,909.00,ROCK TECH PROJECTS LTD                  ,553160,ICT,AUDIO-VISUAL EQUIPMENT & SUPPL
CITY CENTRE PROMOTIONAL PLAN  ,8440,FEE EXPENSES                  ,06/07/2011,3069764,2591,1422.00,ROCK TECH PROJECTS LTD                  ,553160,ICT,AUDIO-VISUAL EQUIPMENT & SUPPL
KENNELLING                    ,6030,REPAIRS AND MTCE - RESPONSIVE ,06/07/2011,3069834,1048,500.00,DRONFIELD TREE SERVICES LTD             ,405525,Environmental Services,TREE WORK & FORESTRY SERVICES 
SHEFFIELD HOMES TREES         ,6370,GROUNDS MTCE AND ARBORICULTURE,06/07/2011,3069835,1049,2598.00,DRONFIELD TREE SERVICES LTD             ,405525,Environmental Services,TREE WORK & FORESTRY SERVICES 
RFID PROJECT                  ,1183,PURCHASE OF EQUIPMENT         ,06/07/2011,3069845,3522437,3822.83,DEMCO INTERIORS                         ,303280,Education,EDUCATIONAL EQUIPMENT & SUPPLI
RFID PROJECT                  ,1183,PURCHASE OF EQUIPMENT         ,06/07/2011,3069848,3522438,6667.93,DEMCO INTERIORS                         ,303280,Education,EDUCATIONAL EQUIPMENT & SUPPLI
RFID PROJECT                  ,1183,PURCHASE OF EQUIPMENT         ,06/07/2011,3069849,3522446,10114.06,DEMCO INTERIORS                         ,303280,Education,EDUCATIONAL EQUIPMENT & SUPPLI
SHIRECLIFFE NEW COUNCIL HOMES ,1192,DESIGN FEES                   ,06/07/2011,3069972,BJH/033J1113050511       ,2020.00,STEPHENSON BELL ARCHITECTS LIMITED      ,490413,Consultancy,ARCHITECTS                    
NOT SCHOOL                    ,8440,FEE EXPENSES                  ,06/07/2011,3070002,2709,900.00,INCLUSION TRUST                         ,466185,Unclassified Non Trade,CHARITIES & VOLUNTARY ORGANISA
NOT SCHOOL                    ,8440,FEE EXPENSES                  ,06/07/2011,3070004,2731,1100.00,INCLUSION TRUST                         ,466185,Unclassified Non Trade,CHARITIES & VOLUNTARY ORGANISA
NOT SCHOOL                    ,8440,FEE EXPENSES                  ,06/07/2011,3070005,2694,953.32,INCLUSION TRUST                         ,466185,Unclassified Non Trade,CHARITIES & VOLUNTARY ORGANISA
HR ADMINISTRATION             ,8440,FEE EXPENSES                  ,06/07/2011,3070069,CYP0611                  ,1950.00,COLLINS-DONNELLY CONSULTANCY            ,504223,Human Resources,TRAINING CONSULTANTS          
ELECTORAL REGISTRATION        ,8550,OTHER SERVICES                ,06/07/2011,3070128,02V11/210                ,1222.00,OPT2VOTE LTD                            ,388014,Consultancy,COMPUTER SYSTEMS & SOFTWARE (D
ECS MEALS                     ,8150,CONTRACT CATERING             ,06/07/2011,3070130,92028251,9058.13,CHARTWELLS                              ,321443,Catering,CATERERS                      
ELECTORAL REGISTRATION        ,8550,OTHER SERVICES                ,06/07/2011,3070131,02V11/172                ,112226.20,OPT2VOTE LTD                            ,388014,Consultancy,COMPUTER SYSTEMS & SOFTWARE (D
INTER AGENCY FEES             ,9120,OTHER AGENCIES                ,06/07/2011,3070132,899,20640.00,THE SCOTTISH ADOPTION ASSOCIATION       ,552898,Social Community Care,ADOPTION & FOSTERING          
NLDC 2010/11                  ,9120,OTHER AGENCIES                ,06/07/2011,3070147,40718,1795.56,LOWEDGES COMMUNITY AND SAFETY FORUM     ,325237,Unclassified Non Trade,CHARITIES & VOLUNTARY ORGANISA
PFI 4 - UNITARY CHARGE        ,6270,SERVICE / PFI UNITARY CHARGE  ,06/07/2011,3070396,102,755811.06,PARADIGM (SHEFFIELD BSF) LIMITED        ,472691,Facilities Management,FACILITIES MANAGEMENT         
DISTRICT HEATING GENERAL      ,6160,GAS                           ,06/07/2011,3070367,A3669279/S1862970        ,1038.55,BRITISH GAS BUSINESS                    ,370790,Utilities,GAS COMPANIES                 
DISTRICT HEATING GENERAL      ,6160,GAS                           ,06/07/2011,3070368,A3669279/S1862970        ,924.17,BRITISH GAS BUSINESS                    ,370790,Utilities,GAS COMPANIES                 
DISTRICT HEATING GENERAL      ,6160,GAS                           ,06/07/2011,3070371,A3669279/S1862988        ,683.74,BRITISH GAS BUSINESS                    ,370790,Utilities,GAS COMPANIES                 
DISTRICT HEATING GENERAL      ,6160,GAS                           ,06/07/2011,3070372,A3669279/S1862988        ,678.97,BRITISH GAS BUSINESS                    ,370790,Utilities,GAS COMPANIES                 
FIRTH PARK LIBRARY            ,6150,ELECTRICITY                   ,06/07/2011,3070382,27140452,1442.02,NPOWER NORTHERN LTD                     ,207191,Utilities,ELECTRICITY COMPANIES         
DISTRICT HEATING GENERAL      ,6140,SOLID FUEL                    ,06/07/2011,3070383,INV-0599                 ,4693.92,SILVAPOWER LTD                          ,406670,Building Construction Materials,SAWMILLS & WOOD SHAVINGS      
DISTRICT HEATING GENERAL      ,6140,SOLID FUEL                    ,06/07/2011,3070384,INV-0600                 ,762.00,SILVAPOWER LTD                          ,406670,Building Construction Materials,SAWMILLS & WOOD SHAVINGS      
DISTRICT HEATING GENERAL      ,6160,GAS                           ,06/07/2011,3070389,A3669279/S1862988        ,1322.11,BRITISH GAS BUSINESS                    ,370790,Utilities,GAS COMPANIES                 
DISTRICT HEATING GENERAL      ,6160,GAS                           ,06/07/2011,3070397,A3669279/S1862988        ,1339.36,BRITISH GAS BUSINESS                    ,370790,Utilities,GAS COMPANIES                 
DISTRICT HEATING GENERAL      ,6160,GAS                           ,06/07/2011,3070398,A3669279/S1862988        ,1716.61,BRITISH GAS BUSINESS                    ,370790,Utilities,GAS COMPANIES                 
DISTRICT HEATING GENERAL      ,6160,GAS                           ,06/07/2011,3070399,A3669279/S1862988        ,1868.27,BRITISH GAS BUSINESS                    ,370790,Utilities,GAS COMPANIES                 
DISTRICT HEATING GENERAL      ,6160,GAS                           ,06/07/2011,3070400,A3669279/S1862988        ,1391.04,BRITISH GAS BUSINESS                    ,370790,Utilities,GAS COMPANIES                 
DISTRICT HEATING GENERAL      ,6160,GAS                           ,06/07/2011,3070401,A3669279/S1862988        ,1451.57,BRITISH GAS BUSINESS                    ,370790,Utilities,GAS COMPANIES                 
DISTRICT HEATING GENERAL      ,6160,GAS                           ,06/07/2011,3070402,A3669279/S1862988        ,891.22,BRITISH GAS BUSINESS                    ,370790,Utilities,GAS COMPANIES                 
DISTRICT HEATING GENERAL      ,6160,GAS                           ,06/07/2011,3070403,A3669279/S1862988        ,888.76,BRITISH GAS BUSINESS                    ,370790,Utilities,GAS COMPANIES                 
DISTRICT HEATING GENERAL      ,6160,GAS                           ,06/07/2011,3070406,A3669279/S1862970        ,1117.05,BRITISH GAS BUSINESS                    ,370790,Utilities,GAS COMPANIES                 
DISTRICT HEATING GENERAL      ,6160,GAS                           ,06/07/2011,3070407,A3669279/S1862970        ,2224.73,BRITISH GAS BUSINESS                    ,370790,Utilities,GAS COMPANIES                 
DISTRICT HEATING GENERAL      ,6160,GAS                           ,06/07/2011,3070408,A3669279/S1862970        ,1918.62,BRITISH GAS BUSINESS                    ,370790,Utilities,GAS COMPANIES                 
DISTRICT HEATING GENERAL      ,6160,GAS                           ,06/07/2011,3070409,A3669279/S1862970        ,2381.89,BRITISH GAS BUSINESS                    ,370790,Utilities,GAS COMPANIES                 
DISTRICT HEATING GENERAL      ,6160,GAS                           ,06/07/2011,3070410,A3669279/S1862970        ,1426.08,BRITISH GAS BUSINESS                    ,370790,Utilities,GAS COMPANIES                 
PURCHASING LEARNING DISABILITI,9250,INDEPENDENT DAY CARE          ,06/07/2011,3070225,4340,560.00,HEELEY CITY FARM                        ,301277,Unclassified Non Trade,CHARITIES & VOLUNTARY ORGANISA
PURCHASING LEARNING DISABILITI,9190,CITYWIDE SPOT                 ,06/07/2011,3070229,18186/1                  ,709.72,ST ANNE'S COMMUNITY SERVICES            ,351501,Unclassified Non Trade,"HOUSING ASSOCIATIONS, SOCIETIE"
PURCHASING                    ,9190,CITYWIDE SPOT                 ,06/07/2011,3070230,18480,709.72,ST ANNE'S COMMUNITY SERVICES            ,351501,Unclassified Non Trade,"HOUSING ASSOCIATIONS, SOCIETIE"
PURCHASING LEARNING DISABILITI,9190,CITYWIDE SPOT                 ,06/07/2011,3070231,18481,709.72,ST ANNE'S COMMUNITY SERVICES            ,351501,Unclassified Non Trade,"HOUSING ASSOCIATIONS, SOCIETIE"
PURCHASING LEARNING DISABILITI,9190,CITYWIDE SPOT                 ,06/07/2011,3070232,18482,709.72,ST ANNE'S COMMUNITY SERVICES            ,351501,Unclassified Non Trade,"HOUSING ASSOCIATIONS, SOCIETIE"
PURCHASING LEARNING DISABILITI,9190,CITYWIDE SPOT                 ,06/07/2011,3070235,93512+19318+             ,2461.62,UNITED RESPONSE                         ,329604,Unclassified Non Trade,CHARITIES & VOLUNTARY ORGANISA
PURCHASING LEARNING DISABILITI,9190,CITYWIDE SPOT                 ,06/07/2011,3070236,G2932/MS                 ,3171.28,GMS CARERS LTD                          ,361896,Social Community Care,HOME CARE SERVICES            
PURCHASING LEARNING DISABILITI,9190,CITYWIDE SPOT                 ,06/07/2011,3070237,G2933/MS                 ,3171.28,GMS CARERS LTD                          ,361896,Social Community Care,HOME CARE SERVICES            
LEAVING CARE                  ,9270,CARELEAVERS ACCOMMODATION     ,06/07/2011,3070200,4401,2628.57,PROGRESSIVE CARE LTD                    ,343548,Social Community Care,CHILDREN'S HOMES              
LEAVING CARE                  ,9270,CARELEAVERS ACCOMMODATION     ,06/07/2011,3070201,4403,800.00,PROGRESSIVE CARE LTD                    ,343548,Social Community Care,CHILDREN'S HOMES              
LEAVING CARE                  ,9270,CARELEAVERS ACCOMMODATION     ,06/07/2011,3070202,4405,1142.86,PROGRESSIVE CARE LTD                    ,343548,Social Community Care,CHILDREN'S HOMES              
LEAVING CARE                  ,9270,CARELEAVERS ACCOMMODATION     ,06/07/2011,3070205,10107A                   ,925.53,REDACTED PERSONAL DATA,551011,Unclassified Non Trade,OUT OF SCOPE FOR SIC MONITORIN
EAST SA - CIN S17             ,9270,CARELEAVERS INDEPENDENT LIVING,06/07/2011,3070207,15990,2078.60,LANGUAGE LINE LIMITED                   ,471915,Human Resources,TRANSLATORS & INTERPRETERS    
PURCHASING ELDERLY            ,9200,CONTINUING RESIDENTIAL CARE   ,06/07/2011,3070177,J382788 240711           ,6016.00,TAPTON EDGE REST HOME LTD               ,361786,Social Community Care,REST & RETIREMENT HOMES       
PURCHASING LEARNING DISABILITI,9240,SUPPORTED LIVING CARE         ,06/07/2011,3070178,J382947 240711           ,861.12,UNITED RESPONSE                         ,209238,Unclassified Non Trade,CHARITIES & VOLUNTARY ORGANISA
PURCHASING LEARNING DISABILITI,9210,CONTINUING NURSING CARE       ,06/07/2011,3070179,J383007 240711           ,15272.04,THE LODGE                               ,475754,Social Community Care,RESIDENTIAL CARE HOMES        
PURCHASING ELDERLY            ,9200,CONTINUING RESIDENTIAL CARE   ,06/07/2011,3070180,J383035 240711           ,1552.80,HOLLY TREE LODGE                        ,519365,Social Community Care,RESIDENTIAL CARE HOMES        
PURCHASING ELDERLY            ,9210,CONTINUING NURSING CARE       ,06/07/2011,3070181,J384755 240711           ,3918.86,LOWER BOWSHAW VIEW NH                   ,362101,Social Community Care,NURSING HOMES                 
PURCHASING ELDERLY            ,9200,CONTINUING RESIDENTIAL CARE   ,06/07/2011,3070183,J386431 240711           ,17807.14,GRANGE CRESCENT                         ,361898,Social Community Care,RESIDENTIAL CARE HOMES        
PURCHASING ELDERLY            ,9200,CONTINUING RESIDENTIAL CARE   ,06/07/2011,3070184,J386432 240711           ,2945.43,DEERLANDS                               ,361836,Social Community Care,RESIDENTIAL CARE HOMES        
PURCHASING ELDERLY            ,9200,CONTINUING RESIDENTIAL CARE   ,06/07/2011,3070185,J386433 240711           ,1352.00,KNOWLE HILL                             ,361798,Social Community Care,RESIDENTIAL CARE HOMES        
PURCHASING ELDERLY            ,9210,CONTINUING NURSING CARE       ,06/07/2011,3070186,J386434 240711           ,2662.71,THE GLEN PRIVATE NURSING                ,361760,Social Community Care,NURSING HOMES                 
PURCHASING ELDERLY            ,9210,CONTINUING NURSING CARE       ,06/07/2011,3070187,J386437 240711           ,2930.14,WESTBOURNE HOUSE                        ,362111,Social Community Care,NURSING HOMES                 
PURCHASING ELDERLY            ,9210,CONTINUING NURSING CARE       ,06/07/2011,3070188,J386438 240711           ,9694.86,MOOREND PLACE                           ,361904,Social Community Care,NURSING HOMES                 
PHYSICAL DISABILITIES PURCHASI,9210,SHORT TERM NURSING CARE       ,06/07/2011,3070189,J377187 290511           ,2720.00,GATEFORD HILL                           ,368326,Social Community Care,NURSING HOMES                 
PURCHASING ELDERLY            ,9200,SHORT TERM RESIDENTIAL CARE   ,06/07/2011,3070191,J384744 260611           ,2143.43,HOUSTEADS                               ,361860,Social Community Care,RESIDENTIAL CARE HOMES        
PURCHASING ELDERLY            ,9200,SHORT TERM RESIDENTIAL CARE   ,06/07/2011,3070193,J386422 260611           ,1352.00,KNOWLE HILL                             ,361798,Social Community Care,RESIDENTIAL CARE HOMES        
PURCHASING ELDERLY            ,9200,SHORT TERM RESIDENTIAL CARE   ,06/07/2011,3070194,J386423 260611           ,1073.42,PADDOCK HILL                            ,361797,Social Community Care,RESIDENTIAL CARE HOMES        
PURCHASING ELDERLY            ,9200,SHORT TERM RESIDENTIAL CARE   ,06/07/2011,3070195,J386425 260611           ,1821.44,LOWER BOWSHAW VIEW NH                   ,362101,Social Community Care,NURSING HOMES                 
PHYSICAL DISABILITIES PURCHASI,9200,SHORT TERM RESIDENTIAL CARE   ,06/07/2011,3070195,J386425 260611           ,535.71,LOWER BOWSHAW VIEW NH                   ,362101,Social Community Care,NURSING HOMES                 
PURCHASING ELDERLY            ,9200,SHORT TERM RESIDENTIAL CARE   ,06/07/2011,3070196,J386426 260611           ,2406.00,HARTWELL HOUSE                          ,361785,Social Community Care,NURSING HOMES                 
PURCHASING ELDERLY            ,9200,SHORT TERM RESIDENTIAL CARE   ,06/07/2011,3070199,J386429 260611           ,3337.57,NORTON LEES HALL/LODGE                  ,433750,Unclassified Non Trade,SCHOOLS - LOCAL AUTHORITY     
STREET FORCE BALANCE SHEET    ,776,4332101 INVOICES PAID         ,07/07/2011,3070837,155368RI                 ,872.00,HARSCO METALS GROUP LTD                 ,493119,Vehicles Not Buses,PLANT & MACHINERY HIRE & LEASI
STREET FORCE BALANCE SHEET    ,776,4332101 INVOICES PAID         ,07/07/2011,3070838,155996/153875RI          ,635.00,HARSCO METALS GROUP LTD                 ,493119,Vehicles Not Buses,PLANT & MACHINERY HIRE & LEASI
STREET FORCE BALANCE SHEET    ,776,4332101 INVOICES PAID         ,07/07/2011,3070845,341816,779.52,INSTARMAC GROUP PLC                     ,483173,Building Construction Materials,CONCRETE PRODUCTS             
STREET FORCE BALANCE SHEET    ,776,4332101 INVOICES PAID         ,07/07/2011,3070846,409426,1824.00,WESTERN                                 ,484022,Environmental Services,WATER TREATMENT EQUIPMENT & SE
STREET FORCE BALANCE SHEET    ,776,4332101 INVOICES PAID         ,07/07/2011,3070847,4301,851.20,PROBRUSH T/A NORTHERN MUNICIPAL SPARES  ,538000,Building Construction Materials,BRUSH MNFRS                   
STREET FORCE BALANCE SHEET    ,776,4332101 INVOICES PAID         ,07/07/2011,3070849,6347784,1087.47,CARLTON FUELS                           ,466741,Vehicles Not Buses,FUEL DEALERS                  
STREET FORCE BALANCE SHEET    ,776,4332101 INVOICES PAID         ,07/07/2011,3070850,6350579,2266.40,CARLTON FUELS                           ,466741,Vehicles Not Buses,FUEL DEALERS                  
STREET FORCE BALANCE SHEET    ,776,4332101 INVOICES PAID         ,07/07/2011,3070856,136093,1897.56,SMITH BROTHERS (CAER CONAN) LIMITED     ,493148,Utilities,ELECTRICAL DISTRIBUTION COMPAN
STREET FORCE BALANCE SHEET    ,776,4332101 INVOICES PAID         ,07/07/2011,3070858,9026874501,4020.81,TARMAC LTD                              ,463393,Building Construction Materials,BUILDING BLOCK MNFRS & DISTRIB
STREET FORCE BALANCE SHEET    ,776,4332101 INVOICES PAID         ,07/07/2011,3070859,9026882286/CRED          ,1429.88,TARMAC LTD                              ,463393,Building Construction Materials,BUILDING BLOCK MNFRS & DISTRIB
STREET FORCE BALANCE SHEET    ,776,4332101 INVOICES PAID         ,07/07/2011,3070860,9026882293,524.36,TARMAC LTD                              ,463393,Building Construction Materials,BUILDING BLOCK MNFRS & DISTRIB
STREET FORCE BALANCE SHEET    ,776,4332101 INVOICES PAID         ,07/07/2011,3070864,9026882297,1017.18,TARMAC LTD                              ,463393,Building Construction Materials,BUILDING BLOCK MNFRS & DISTRIB
STREET FORCE BALANCE SHEET    ,776,4332101 INVOICES PAID         ,07/07/2011,3070865,9026882298,4029.90,TARMAC LTD                              ,463393,Building Construction Materials,BUILDING BLOCK MNFRS & DISTRIB
STREET FORCE BALANCE SHEET    ,776,4332101 INVOICES PAID         ,07/07/2011,3070866,9026882299,791.52,TARMAC LTD                              ,463393,Building Construction Materials,BUILDING BLOCK MNFRS & DISTRIB
STREET FORCE BALANCE SHEET    ,776,4332101 INVOICES PAID         ,07/07/2011,3070870,9026891297,814.40,TARMAC LTD                              ,463393,Building Construction Materials,BUILDING BLOCK MNFRS & DISTRIB
STREET FORCE BALANCE SHEET    ,776,4332101 INVOICES PAID         ,07/07/2011,3070871,9026891298,617.47,TARMAC LTD                              ,463393,Building Construction Materials,BUILDING BLOCK MNFRS & DISTRIB
STREET FORCE BALANCE SHEET    ,776,4332101 INVOICES PAID         ,07/07/2011,3070873,9026954237,1079.39,TARMAC LTD                              ,463393,Building Construction Materials,BUILDING BLOCK MNFRS & DISTRIB
STREET FORCE BALANCE SHEET    ,776,4332101 INVOICES PAID         ,07/07/2011,3070877,BBP35053                 ,2436.00,BITUCHEM BUILDING PRODUCTS LIMITED      ,493182,Building Construction Materials,BUILDERS' MERCHANTS           
STREET FORCE BALANCE SHEET    ,776,4332101 INVOICES PAID         ,07/07/2011,3070878,136354,872.00,SMITH BROTHERS (CAER CONAN) LIMITED     ,493148,Utilities,ELECTRICAL DISTRIBUTION COMPAN
STREET FORCE BALANCE SHEET    ,776,4332101 INVOICES PAID         ,07/07/2011,3070883,139259/138512            ,11115.60,SMITH BROTHERS (CAER CONAN) LIMITED     ,493148,Utilities,ELECTRICAL DISTRIBUTION COMPAN
STREET FORCE BALANCE SHEET    ,776,4332101 INVOICES PAID         ,07/07/2011,3070884,155338RI                 ,614.00,HARSCO METALS GROUP LTD                 ,493119,Vehicles Not Buses,PLANT & MACHINERY HIRE & LEASI
STREET FORCE BALANCE SHEET    ,776,4332101 INVOICES PAID         ,07/07/2011,3070885,155340RI                 ,1006.00,HARSCO METALS GROUP LTD                 ,493119,Vehicles Not Buses,PLANT & MACHINERY HIRE & LEASI
STREET FORCE BALANCE SHEET    ,776,4332101 INVOICES PAID         ,07/07/2011,3070886,155367RI                 ,1019.00,HARSCO METALS GROUP LTD                 ,493119,Vehicles Not Buses,PLANT & MACHINERY HIRE & LEASI
ADULT PROTECTION              ,8440,FEE EXPENSES                  ,07/07/2011,3071205,ERS INVOICE53346         ,570.95,REDACTED PERSONAL DATA,507783,Unclassified Non Trade,OUT OF SCOPE FOR SIC MONITORIN
MIGRATION COHESION TEAM       ,9120,OTHER AGENCIES                ,07/07/2011,3071207,ERS INVOICE53349         ,720.00,ASSIST SHEFFIELD                        ,423420,Unclassified Non Trade,CHARITIES & VOLUNTARY ORGANISA
CLAIMS                        ,8740,PUBLIC LIABILITY              ,07/07/2011,3071212,ERS INVOICE53360         ,1050.40,YEDL                                    ,349525,Utilities,ELECTRICITY COMPANIES         
CLAIMS                        ,8740,HIGHWAYS                      ,07/07/2011,3071213,ERS INVOICE53361         ,6900.00,DELTA LEGAL                             ,466964,Legal Services,SOLICITORS                    
RECORD MANAGEMENT             ,8060,MATERIALS AND SUPPLIES GENERAL,07/07/2011,3071218,ERS INVOICE53366         ,919.20,MWV STORAGE                             ,520355,Transport,STORAGE SERVICES              
THORNBRIDGE OUTDOOR CENTRE    ,8440,FEE EXPENSES                  ,07/07/2011,3071229,ERS INVOICE53400         ,680.00,MR MICHAEL FAIREST                      ,338564,Construction,PAINTERS & DECORATORS         
COMMUNITY ASSEMBLY SOUTH WEST ,8180,GRANTS                        ,07/07/2011,3071236,ERS INVOICE53410         ,1820.00,FRIENDS OF MILLHOUSES PARK              ,445077,Unclassified Non Trade,CHARITIES & VOLUNTARY ORGANISA
CORONIAL SERVICES             ,8440,DOCTORS ATTENDANCE            ,07/07/2011,3071240,ERS INVOICE53414         ,1656.35,PROF DAME PAULINE FIELDING              ,518251,Medical ,DOCTORS                       
DELEGATED BUDGETS             ,8470,LEGAL FEES                    ,07/07/2011,3071241,ERS INVOICE53415         ,5000.00,WALKER & CO SOLICITORS                  ,514743,Legal Services,SOLICITORS                    
HULL - HUMBER SUB REGION HAL  ,1194,OTHER FEES                    ,07/07/2011,3071580,ERS INVOICE53457         ,6786.29,S WRAY BULLDING SERVICES                ,544637,Construction,BUILDING SERVICES             
RESIDENTS PARKING-HIGHFIELDS  ,1165,NC&A OTHER                    ,07/07/2011,2771750,SL0058433                ,632.00,SYPTE                                   ,208757,Transport,BUS & COACH OPERATORS & STATIO
STUDENT FINANCE               ,9430,SEN DISCRETIONARY             ,07/07/2011,3009650,I00289                   ,3323.50,LONGLEY PARK SIXTH FORM COLLEGE         ,375671,Unclassified Non Trade,SCHOOLS & COLLEGES - FURTHER E
MINOR WALL STRENGTH REPAIR SCH,1165,NC&A OTHER                    ,07/07/2011,3047729,1097174,3917.26,NETWORK RAIL                            ,399041,Facilities Management,RAILWAYS                      
WOODLAND MGMT FOR BIRDS EM    ,1164,NC&A LANDSCAPING              ,07/07/2011,3049877,L1225                    ,13155.87,SCURRAH ASSOCIATES                      ,311480,Environmental Services,TREE WORK & FORESTRY SERVICES 
TRANSPORT FLEET PASSENGER SERV,5610,AGENCY STAFF                  ,07/07/2011,3052767,52042,955.46,LYNX SERVICES LTD                       ,349384,Human Resources,EMPLOYMENT & RECRUITMENT AGENC
EXECUTIVE DIRECTOR & SECRETARI,8350,MISCELLANEOUS EXPENSES        ,07/07/2011,3053662,2911,25000.00,GREEN ESTATE LTD                        ,388189,Environmental Services,WASTE DISPOSAL SERVICES       
RECRUITMENT ADVERTISING       ,5720,RECRUIT. ADV. - INVOICE       ,07/07/2011,3054814,20677909,2790.00,REED BUSINESS INFORMATION LIMITED       ,350053,Education,PUBLISHERS                    
TRANSPORT FLEET PASSENGER SERV,5610,AGENCY STAFF                  ,07/07/2011,3056984,52089,1111.55,LYNX SERVICES LTD                       ,349384,Human Resources,EMPLOYMENT & RECRUITMENT AGENC
SCC INTERNAL PROG. COSTS - W4 ,1194,OTHER FEES                    ,07/07/2011,3058594,3825,1923.50,FLORIDA MARQUEES LIMITED                ,392481,Leisure Services,"MARQUEES, TENTS & PORTABLE FLO"
NLDC 2010/11                  ,9120,OTHER AGENCIES                ,07/07/2011,3058651,40704,3638.25,FLOWER ESTATE FAMILY ACTION (GROUP A/C) ,418616,Unclassified Non Trade,CHARITIES & VOLUNTARY ORGANISA
DRIVER TRAINING/TESTING       ,5750,TRAINING EXPENDITURE          ,07/07/2011,3063972,1861,600.00,ON SITE TRAINING COMPANY                ,553016,Human Resources,TRAINING SERVICES             
NORBURY                       ,7040,OTHER VEHICLE RUNNING COSTS   ,07/07/2011,3064207,2100064292,556.21,SHEFFIELD HEALTH & SOCIAL CARE NHS      ,353994,Unclassified Non Trade,HOSPITALS                     
STATUTORY ADVERTISING         ,8420,ADVERTISING AND PUBL-INVOICED ,07/07/2011,3065599,7243275,1777.23,SHEFFIELD NEWSPAPERS LTD                ,208391,Education,NEWSPAPER & MAGAZINE PUBLISHER
STATUTORY ADVERTISING         ,8420,ADVERTISING AND PUBL-INVOICED ,07/07/2011,3065757,7253608,882.21,SHEFFIELD NEWSPAPERS LTD                ,208391,Education,NEWSPAPER & MAGAZINE PUBLISHER
RESPONSIVE REPAIRS            ,6030,OTHER RESPONSIVE REPAIRS      ,07/07/2011,3066429,449,900.00,ECCLESFIELD FENCING SERVICES            ,485052,Construction,FENCING CONTRACTORS           
PERMANENCE & THROUGHCARE STAFF,7160,CAR PARKING SPACES AND FEES   ,07/07/2011,3066448,404,875.10,ST VINCENT'S NEW CHURCH                 ,532071,Unclassified Non Trade,PLACES OF WORSHIP             
INTER AGENCY FEES             ,9120,OTHER AGENCIES                ,07/07/2011,3066475,6051544126,8759.00,BRISTOL CITY COUNCIL                    ,345284,Unclassified Non Trade,LOCAL GOVERNMENT              
REDVERS HOUSE                 ,6020,REPAIRS AND MTCE - PROGRAMMED ,07/07/2011,3066508,10657,1309.98,ENVIRONMENTAL HYGIENE SERVICES          ,324182,Environmental Services,WATER TREATMENT EQUIPMENT & SE
REDVERS HOUSE                 ,6020,REPAIRS AND MTCE - PROGRAMMED ,07/07/2011,3066509,10655,787.50,ENVIRONMENTAL HYGIENE SERVICES          ,324182,Environmental Services,WATER TREATMENT EQUIPMENT & SE
NEW BANK HOUSE                ,6020,REPAIRS AND MTCE - PROGRAMMED ,07/07/2011,3067210,3-766                    ,1350.00,COOLWATER DIRECT                        ,479376,Catering,WATER COOLERS                 
STATUTORY ADVERTISING         ,8420,ADVERTISING AND PUBL-INVOICED ,07/07/2011,3067466,7262991,756.18,SHEFFIELD NEWSPAPERS LTD                ,208391,Education,NEWSPAPER & MAGAZINE PUBLISHER
TRANSPORT FLEET PASSENGER SERV,5610,AGENCY STAFF                  ,07/07/2011,3067872,52175,1064.25,LYNX SERVICES LTD                       ,349384,Human Resources,EMPLOYMENT & RECRUITMENT AGENC
STATUTORY ADVERTISING         ,8420,ADVERTISING AND PUBL-INVOICED ,07/07/2011,3068901,7275376,945.22,SHEFFIELD NEWSPAPERS LTD                ,208391,Education,NEWSPAPER & MAGAZINE PUBLISHER
STATUTORY ADVERTISING         ,8420,ADVERTISING AND PUBL-INVOICED ,07/07/2011,3068902,7275868,646.27,SHEFFIELD NEWSPAPERS LTD                ,208391,Education,NEWSPAPER & MAGAZINE PUBLISHER
PLAYING FOR SUCCESS - SF 311  ,8440,FEE EXPENSES                  ,07/07/2011,3068924,107,1560.00,THE SHARKS                              ,540033,Leisure Services,SPORTS CLUBS & ASSOCIATIONS   
SNIPS                         ,8180,GRANTS                        ,07/07/2011,3068981,40707,1000.00,RASCALS                                 ,492001,Unclassified Non Trade,CHARITIES & VOLUNTARY ORGANISA
NEW BANK HOUSE                ,8540,SECURITY SERVICES             ,07/07/2011,3069015,80228,1152.25,SERVICEMASTER (C.S.) SHEFFIELD          ,208319,Cleaning and Janitorial,CLEANING SERVICES - COMMERCIAL
CONTRACT PROVIDER 2010/11     ,9120,OTHER AGENCIES                ,07/07/2011,3069068,30062011LW               ,600.00,SHIREGREEN UNITED REFORMED CHURCH       ,323483,Unclassified Non Trade,PLACES OF WORSHIP             
ENERGY PERFORMANCE CERT       ,8440,FEE EXPENSES                  ,07/07/2011,3069077,INV110671                ,1395.65,NATIONAL ENERGY SERVICES LIMITED        ,298519,Consultancy,ENERGY CONSERVATION CONSULTANT
FURNISHED ACCOMMODATION       ,8050,FURNITURE PURCHASES           ,07/07/2011,3069080,SIN062453                ,3030.00,WHITELEAF LTD                           ,441448,Furniture,FURNITURE MNFRS - HOME & OFFIC
BURGLAR ALARMS                ,6030,REPAIRS TO TENANTED PROPERTIES,07/07/2011,3069121,RESPONSIVE/110/11        ,3383.80,TELSTAR SECURITY                        ,299814,Facilities Management,SECURITY EQUIPMENT            
INCOME MANAGEMENT UNIT        ,9140,DEBT COLLECTION AGENCY        ,07/07/2011,3069144,86630,552.24,ROSSENDALES COLLECT LTD                 ,477656,Financial Services,BAILIFFS                      
FURNISHED ACCOMMODATION       ,8050,FLOOR COVERINGS               ,07/07/2011,3069149,13517,657.00,PYRAMID CARPETS                         ,243612,Building Construction Materials,CARPETS & RUGS - RETAIL       
FURNISHED ACCOMMODATION       ,8050,FLOOR COVERINGS               ,07/07/2011,3069151,13516,566.00,PYRAMID CARPETS                         ,243612,Building Construction Materials,CARPETS & RUGS - RETAIL       
PREMIUMS                      ,8740,PREMIUMS                      ,07/07/2011,3069217,TA549798                 ,14778.07,SCHOOLS ADVISORY SERVICE                ,533894,Financial Services,FINANCIAL SERVICES            
PREMIUMS                      ,8740,PREMIUMS                      ,07/07/2011,3069220,1169260,3500.00,JARDINE LLOYD THOMSON UK LTD            ,508277,Financial Services,INSURANCE - OTHER             
HOWDEN HOUSE PFI CONTRACT     ,9620,FINANCIAL PROCESSES           ,07/07/2011,3069740,19287,413534.03,LONDON & REGIONAL PROPERTIES LIMITED    ,489789,Construction,PROPERTY DEVELOPERS           
AFM MGT & ADMIN               ,6030,REPAIRS AND MTCE - RESPONSIVE ,07/07/2011,3069827,1344,560.00,COVERT CAMERA SOLUTIONS                 ,396431,Facilities Management,SECURITY EQUIPMENT            
CRYSTAL PEAKS                 ,6270,SERVICE / PFI UNITARY CHARGE  ,07/07/2011,3069880,500771/001267            ,21759.33,CUSHMAN & WAKEFIELD                     ,461760,Consultancy,SURVEYORS & VALUERS           
PURCHASING & PAYMENTS TEAM    ,7020,VEHICLE FUEL COSTS            ,07/07/2011,3069889,1016549689,585.43,ARVAL PHH LTD                           ,444333,Vehicles Not Buses,CAR & TRUCK LEASING & CONTRACT
AGENCY STAFF                  ,5610,AGENCY STAFF - INVOICE        ,07/07/2011,3069899,CE0222538596C1           ,65116.64,REED                                    ,341818,Human Resources,EMPLOYMENT & RECRUITMENT AGENC
SHEFFIELD HOMES ACCOMODATION  ,6210,RENTS                         ,07/07/2011,3069912,98005,51991.50,SOLPRO MANUFACTURING LTD                ,512326,Unclassified Trade,ELECTRONIC COMPONENT MNFRS & D
SHEFFIELD HOMES ACCOMODATION  ,6210,RENTS                         ,07/07/2011,3069913,98006,3900.00,SOLPRO MANUFACTURING LTD                ,512326,Unclassified Trade,ELECTRONIC COMPONENT MNFRS & D
SHEFFIELD HOMES ACCOMODATION  ,6090,WASTE DISPOSAL                ,07/07/2011,3069914,98007,1572.48,SOLPRO MANUFACTURING LTD                ,512326,Unclassified Trade,ELECTRONIC COMPONENT MNFRS & D
SHEFFIELD HOMES ACCOMODATION  ,6150,ELECTRICITY                   ,07/07/2011,3069914,98007,754.89,SOLPRO MANUFACTURING LTD                ,512326,Unclassified Trade,ELECTRONIC COMPONENT MNFRS & D
SHEFFIELD HOMES ACCOMODATION  ,6240,PREMISES INSURANCE            ,07/07/2011,3069914,98007,966.58,SOLPRO MANUFACTURING LTD                ,512326,Unclassified Trade,ELECTRONIC COMPONENT MNFRS & D
PURCHASING & PAYMENTS TEAM    ,7020,VEHICLE FUEL COSTS            ,07/07/2011,3069944,1016549693,790.59,ARVAL PHH LTD                           ,444333,Vehicles Not Buses,CAR & TRUCK LEASING & CONTRACT
PURCHASING & PAYMENTS TEAM    ,7020,VEHICLE FUEL COSTS            ,07/07/2011,3069946,1016549691,663.70,ARVAL PHH LTD                           ,444333,Vehicles Not Buses,CAR & TRUCK LEASING & CONTRACT
PURCHASING & PAYMENTS TEAM    ,7020,VEHICLE FUEL COSTS            ,07/07/2011,3069948,1016549690,886.58,ARVAL PHH LTD                           ,444333,Vehicles Not Buses,CAR & TRUCK LEASING & CONTRACT
PURCHASING & PAYMENTS TEAM    ,7020,VEHICLE FUEL COSTS            ,07/07/2011,3069950,1016549692,668.19,ARVAL PHH LTD                           ,444333,Vehicles Not Buses,CAR & TRUCK LEASING & CONTRACT
ARCHITECTS - SCHEME           ,8350,MISCELLANEOUS EXPENSES        ,07/07/2011,3070058,SLINV2/00036707          ,5711.00,IOM CONSULTING LTD                      ,442538,Health and Safety,SAFETY CONSULTANTS            
NLDC 2010/11                  ,9120,OTHER AGENCIES                ,07/07/2011,3070154,10/943                   ,3803.59,WESTWOOD TRAINING LTD                   ,405816,Unclassified Non Trade,CHARITIES & VOLUNTARY ORGANISA
SHOPPING SERVICES             ,4260,COSTS RECOVERED               ,07/07/2011,3070344,4720000000000000,3946.60,BARCLAYS HMG PROCUREMENT CARD           ,412703,Financial Services,CREDIT CARDS & DISCOUNT CARDS 
BIRLEY                        ,1161,NC&A MAIN CONTRACT            ,07/07/2011,3070418,640,1933171.42,SHEFFIELD LEP LTD                       ,482230,Unclassified Non Trade,LOCAL GOVERNMENT              
PAYMENT HOLDING ACCOUNT       ,8350,MISCELLANEOUS EXPENSES        ,07/07/2011,3070419,11010002,758125.00,KIER SHEFFIELD LLP                      ,352687,Construction,PROPERTY MAINTENANCE & REPAIRS
PAYMENT HOLDING ACCOUNT       ,8350,MISCELLANEOUS EXPENSES        ,07/07/2011,3070420,11010001,758125.00,KIER SHEFFIELD LLP                      ,352687,Construction,PROPERTY MAINTENANCE & REPAIRS
SGMT (MUSEUMS SHEFFIELD)      ,8180,GRANTS                        ,07/07/2011,3070426,SIN001721                ,26666.67,MUSEUMS SHEFFIELD                       ,380579,Leisure Services,MUSEUMS                       
SGMT (MUSEUMS SHEFFIELD)      ,8180,GRANTS                        ,07/07/2011,3070427,SIN001720                ,138256.44,MUSEUMS SHEFFIELD                       ,380579,Leisure Services,MUSEUMS                       
TRANSPORT FLEET MANAGEMENT    ,7060,EXTERNAL VEHICLE HIRE         ,07/07/2011,3070430,23770,674.00,RANSKILL HIRE LTD                       ,458031,Vehicles Not Buses,AGRICULTURAL VEHICLES         
LEP BUSINESS PLAN - W4        ,1194,OTHER FEES                    ,07/07/2011,3070431,654,9524.00,SHEFFIELD LEP LTD                       ,482230,Unclassified Non Trade,LOCAL GOVERNMENT              
MOSBOROUGH                    ,1194,OTHER FEES                    ,07/07/2011,3070432,639,15150.00,SHEFFIELD LEP LTD                       ,482230,Unclassified Non Trade,LOCAL GOVERNMENT              
TRANSPORT FLEET PASSENGER SERV,5610,AGENCY STAFF                  ,07/07/2011,3070561,52221,800.11,LYNX SERVICES LTD                       ,349384,Human Resources,EMPLOYMENT & RECRUITMENT AGENC
WORK CHOICE                   ,9120,OTHER AGENCIES                ,07/07/2011,3070566,INV0000000043297         ,1063.55,MENCAP                                  ,361774,Unclassified Non Trade,CHARITIES & VOLUNTARY ORGANISA
TRANSPORT FLEET PASSENGER SERV,5610,AGENCY STAFF                  ,07/07/2011,3070570,52220,1196.68,LYNX SERVICES LTD                       ,349384,Human Resources,EMPLOYMENT & RECRUITMENT AGENC
OBSOLETE HEATING              ,1157,DWELLINGS MAIN CONTRACT       ,07/07/2011,3070572,10120236,10796.24,KIER SHEFFIELD LLP                      ,352687,Construction,PROPERTY MAINTENANCE & REPAIRS
OBSOLETE HEATING              ,1157,DWELLINGS MAIN CONTRACT       ,07/07/2011,3070574,10120235,63183.66,KIER SHEFFIELD LLP                      ,352687,Construction,PROPERTY MAINTENANCE & REPAIRS
YOUTH JUSTICE ISSP GRANT      ,9650,OTHER SERVICE RECHARGES       ,07/07/2011,3070630,6176,3412.27,SHEFFIELD FUTURES - URBAN LYNKS         ,335719,Medical ,COUNSELLING & ADVICE SERVICES 
YOUTH JUSTICE ISSP GRANT      ,6280,HIRE OF PREMISES              ,07/07/2011,3070632,11684,1600.80,BURTON STREET PROJECT                   ,342774,Unclassified Non Trade,CHARITIES & VOLUNTARY ORGANISA
